Workbook

Sheet Resumo
A1: PLANILHA DE CUSTO E FORMAÇÃO DE PREÇOS
A2: Tipo de serviço / posto | D2: Valor proposto por empregado (R$) | E2: Qtde de empregados por posto | F2: Valor proposto por posto (R$) | G2: Qtde de postos | H2: Valor total do serviço (R$)
A3: Item | B3: CBO | C3: (A) | D3: (B) | E3: (C) | F3: (D) = (B x C) | G3: (E) | H3: (F) = (D x E)
A4: 1 | B4: 2142-05 | C4: Engenheiro | D4: ='1.Enge'!D109 -> 0 | E4: 1 | F4: =D4*E4 -> 0 | G4: 1 | H4: =F4*G4 -> 0
A5: 2 | B5: 7102-05 | C5: Encarregado | D5: ='2.Enca'!D109 -> 0 | E5: 1 | F5: 0 | G5: 1 | H5: 0
A6: 3 | B6: 9511-05 | C6: Técnico Eletricista | D6: ='3.Elet'!D109 -> 0 | E6: 1 | F6: 0 | G6: 1 | H6: 0
A7: 4 | B7: 7156-15 | C7: Ajudante Eletricista | D7: ='4.Aju-3'!D109 -> 0 | E7: 1 | F7: 0 | G7: 1 | H7: 0
A8: 5 | B8: 7257-05 | C8: Técnico em Refrigeração | D8: ='5.Refr'!D109 -> 0 | E8: 1 | F8: 0 | G8: 1 | H8: 0
A9: 6 | B9: 7156-15 | C9: Ajudante em Refrigeração | D9: ='6.Aju-5'!D109 -> 0 | E9: 1 | F9: 0 | G9: 1 | H9: 0
A10: 7 | B10: 7711-05 | C10: Técnico Marceneiro | D10: ='7.Marc'!D109 -> 0 | E10: 1 | F10: 0 | G10: 1 | H10: 0
A11: 8 | B11: 7170-20 | C11: Ajudante Marceneiro | D11: ='8.Aju-7'!D109 -> 0 | E11: 1 | F11: 0 | G11: 1 | H11: 0
A12: 9 | B12: 7241-10 | C12: Técnico em Manutenção e Hidráulica | D12: ='9.Enca'!D109 -> 0 | E12: 1 | F12: 0 | G12: 1 | H12: 0
A13: 10 | B13: 7170-20 | C13: Ajudante em Manutenção e Pintura | D13: ='10.Aju-9'!D109 -> 0 | E13: 1 | F13: 0 | G13: 1 | H13: 0
A14: VALOR MENSAL DOS SERVIÇOS | G14: 1 | H14: =SUM(H4:H13) -> 0
A15: VALOR ANUAL DOS SERVIÇOS | G15: 12 | H15: =$H$14*G15 -> 0
A16: VALOR TOTAL DOS SERVIÇOS | G16: 36 | H16: =$H$14*G16 -> 0
A17: VALOR MENSAL DOS MATERIAIS | G17: 1 | H17: =ROUND(H18/12,2) -> 0
A18: VALOR ANUAL DOS MATERIAIS | G18: 12 | H18: =MAT!J5 -> 0
A19: VALOR TOTAL DOS MATERIAIS | G19: 36 | H19: =H18*3 -> 0
A20: VALOR MENSAL DO CONTRATO | G20: 1 | H20: =H14+H17 -> 0
A21: VALOR ANUAL DO CONTRATO | G21: 12 | H21: =H15+H18 -> 0
A22: VALOR TOTAL DO CONTRATO | G22: 36 | H22: 0
C24: PREENCHER CELULAS GRIFADAS

Sheet 1.Enge
A1: PLANILHAS DE CUSTOS E FORMAÇÃO DE PREÇOS
A2: Discriminação dos serviços
A3: A | B3: Data da Apresentação da Proposta: | D3: 2024-08-26
A4: B | B4: Munícipio/UF: | D4: Brasília/DF
A5: C | B5: Ano do Acordo, Convenção ou Dissídio Coletivo: | C5: SENGE/DF | D5: 2023/25
A6: D | B6: Número de meses de execução contratual: | D6: =12*5 -> 60
A7: E | B7: Tipo de serviço: | D7: Continuado
A8: F | B8: Unidade de medida | D8: Posto
A9: G | B9: Quantidade total a contratar (em função da unidade de medida): | D9: 1
A11: Mão de obra vinculada à execução contratual
A12: Dados complementares para composição dos custos referente à mão de obra
A13: 1 | B13: Tipo de serviço | C13: Coordenação de Engenharia
A14: 2 | B14: Classificação Brasileira de Ocupações (CBO) | C14: 2142-05
A15: 3 | B15: Categoria profissional (vinculada à execução contratual) | C15: Engenheiro civil
A16: 4 | B16: Data base CCT | C16: 2023-05-01
A17: 5 | B17: Vigência CCT | C17: 2025-04-30
A18: 6 | B18: Carga horia semanal | C18: 44 horas/semana
A19: 7 | B19: Piso normativo da categoria profissional | C19: 10800
A20: 8 | B20: Salário proposto no contrato | C20: 0
A22: MÓDULO 1: Composição da remuneração (M1)
A23: 1 | B23: Composição da Remuneração | D23: Valor (R$)
A24: A | B24: Salário Base | C24: 1 | D24: =C20 -> 0
A25: B | B25: Adicional de periculosidade | C25: 0 | D25: =ROUNDUP($D$24*C25,2) -> 0
A26: C | B26: Adicional de Insalubridade | C26: 0 | D26: =ROUNDUP($D$24*C26,2) -> 0
A27: D | B27: Adicional Noturno | C27: 0 | D27: 0
A28: E | B28: Hora Noturna Adicional | C28: 0 | D28: 0
A29: F | B29: Adicional de Hora Extra | C29: 0 | D29: 0
A30: G | B30: Outros (especificar) | C30: 0 | D30: 0
A31: Total do Módulo 1 | D31: =SUM(D24:D30) -> 0
A33: MÓDULO 2: Encargos e benefícios anuais, mensais e diários (M2)
A34: 2.1 | B34: 13º (décimo terceiro) salário, férias e adicional de férias | C34: Porcentagem (%) | D34: Valor (R$)
A35: A | B35: 13º salário | C35: 0.0833 | D35: =ROUNDUP($D$31/12,2) -> 0
A36: B | B36: Férias | C36: 0.0833 | D36: =ROUNDUP($D$31/12,2) -> 0
A37: C | B37: Adicional de Férias (1/3 Constitucional) | C37: =C36/3 -> 0.02776666667 | D37: =ROUNDUP($D$31/3/12,2) -> 0
A38: Total submódulo 2.1 | D38: =SUM(D35:D37) -> 0
A40: 2.2 | B40: GPS, FGTS e outras contribuições | D40: Valor (R$)
A41: A | B41: INSS (com/sem desoneração) | C41: 0 | D41: =ROUNDUP($D$31*C41,2) -> 0
A42: B | B42: Salário Educação | C42: 0.025 | D42: =ROUNDUP($D$31*C42,2) -> 0
A43: C | B43: SAT | C43: 0.03 | D43: 0
A44: D | B44: SESC - SESI | C44: 0.015 | D44: 0
A45: E | B45: SENAI - SENAC | C45: 0.01 | D45: 0
A46: F | B46: SEBRAE | C46: 0.006 | D46: 0
A47: G | B47: INCRA | C47: 0.002 | D47: 0
A48: H | B48: FGTS | C48: 0.08 | D48: 0
A49: I | B49: SECONCI | C49: 0.01 | D49: 0
B50: Total submódulo 2.2 | C50: =SUM(C41:C49) -> 0.178 | D50: =SUM(D41:D49) -> 0
A52: 2.3 | B52: Benefícios mensais e diários | C52: Referência | D52: Valor (R$)
A53: A | B53: Vale transporte | C53: CLT | D53: 0
A54: B | B54: Vale alimentação | C54: CCT | D54: 0
A55: C | B55: Assistência Médica-Odontológica e Familiar | C55: SICRO | D55: 0
A56: D | B56: Auxílio Creche | C56: CCT | D56: 0
A57: E | B57: Seguro de Vida e Assistência Funeral | C57: SICRO | D57: 0
B58: Total submódulo 2.3 | D58: =SUM(D53:D57) -> 0
A59: Total do Módulo 2 | D59: =D38+D50+D58 -> 0
A61: MÓDULO 3: Provisão para rescisão (M3)
A62: A | B62: Aviso Prévio Indenizado | C62: 0.0324 | D62: =ROUNDUP($D$31*C62,2) -> 0
A63: B | B63: Aviso Prévio Trabalhado | C63: 0.0008 | D63: =ROUNDUP($D$31*C63,2) -> 0
A64: C | B64: Incidência dos encargos sobre o Aviso Prévio | C64: 0.0029 | D64: 0
A65: D | B65: Incidencia dos encargos sobre 13o-ferias (submodulo 2.2 sobre 2.1) | C65: 0.0612 | D65: 0
A66: E | B66: Multa sobre saldo FGTS | C66: =0.08*0.4 -> 0.032 | D66: 0
A67: Total do Módulo 3 | D67: =SUM(D62:D66) -> 0
A69: MÓDULO 4: Custo mensal de reposição do profissional ausente (M4)
A70: X | B70: Custo diário do empregado substituto | C70: Dias | D70: =ROUNDUP((D31+D59+D67)/30,2) -> 0
A71: A | B71: Férias | C71: =ROUND(30/12,2) -> 2.5 | D71: =ROUNDUP($D$70*C71,2) -> 0
A72: B | B72: Ausências por enfermidade | C72: =ROUNDUP(0.66/100*360/12,2) -> 0.2 | D72: =ROUNDUP($D$70*C72,2) -> 0
A73: C | B73: Faltas Justificadas | C73: =ROUNDUP(0.56/100*360/12,2) -> 0.17 | D73: 0
A74: D | B74: Ausência por acidente de trabalho | C74: =ROUNDUP(0.08/100*360/12,2) -> 0.03 | D74: 0
A75: E | B75: Afastamento Parentalidade | C75: =ROUNDUP((0.05+0.03)/100*360/12,2) -> 0.03 | D75: 0
A76: F | B76: Outros (especificar) | C76: 0 | D76: 0
A77: Total do Módulo 4 | D77: =SUM(D71:D76) -> 0
A79: MÓDULO 5: Insumos de mão de obra (M5)
A80: A | B80: EPI e Uniforme | C80: SINAPI Engenheiro | D80: =EPI!M5 -> 0
A81: B | B81: Materiais e ferramentas | C81: SINAPI Engenheiro | D81: =FER!M5 -> 0
A82: Total do Módulo 5 | D82: =SUM(D80:D81) -> 0
A83: Nota: Valores mensais por empregado.
A85: MÓDULO 6: Custos indiretos, tributos e lucro (M6)
A86: A | B86: Custos Indiretos | C86: SINAPI | D86: =BDI!C2 -> 0
A87: A.1 | B87: Administração Central | C87: SINAPI | D87: =BDI!C3 -> 0
A88: A.2 | B88: Seguros e Garantias Contratuais | C88: SINAPI | D88: =BDI!C4 -> 0
A89: A.3 | B89: Riscos | C89: SINAPI | D89: =BDI!C5 -> 0
A90: B | B90: Despesas Financeiras | C90: SINAPI | D90: =BDI!C6 -> 0
A91: C | B91: Lucro | C91: SINAPI | D91: =BDI!C7 -> 0
A92: D | B92: Tributos Federais e Estaduais/Municipais | C92: SINAPI | D92: =BDI!C8 -> 0
A93: D.1 | B93: COFINS | C93: SINAPI | D93: =BDI!C9 -> 0
A94: D.2 | B94: PIS | C94: SINAPI | D94: =BDI!C10 -> 0
A95: D.3 | B95: CPRB - (com/sem desoneração) | C95: SINAPI | D95: =BDI!C11 -> 0
A96: D.4 | B96: ISSQN | C96: SINAPI | D96: =BDI!C12 -> 0
A97: Total | D97: =BDI!C13 -> 0
A98: Total do Módulo 6 | D98: =ROUNDUP(D107*(D97),2) -> 0
A100: QUADRO-RESUMO CUSTO POR EMPREGADO
A101: Mão-de-obra vinculada à execução contratual (valor por empregado)
A102: A | B102: MÓDULO 1: Composição da remuneração (M1) | D102: =D31 -> 0
A103: B | B103: MÓDULO 2: Encargos e benefícios anuais, mensais e diários (M2) | D103: =D59 -> 0
A104: C | B104: MÓDULO 3: Provisão para rescisão (M3) | D104: =D67 -> 0
A105: D | B105: MÓDULO 4: Custo de reposição do profissional ausente (M4) | D105: =D77 -> 0
A106: E | B106: MÓDULO 5: Insumos de mão de obra (M5) | D106: =D82 -> 0
A107: Subtotal (A + B + C + D + E) | D107: =SUM(D102:D106) -> 0
A108: F | B108: MÓDULO 6: Custos indiretos, tributos e lucro (M6) | D108: =D98 -> 0
A109: Custo mensal do posto | D109: =D107+D108 -> 0
A110: G | B110: RESERVA MENSAL CONTA VINCULADA | D110: =D38+D67 -> 0
A111: H | B111: RESERVA MENSAL REPOSIÇÃO | D111: =D77 -> 0
A112: I | B112: CUSTO MENSAL ORDINÁRIO | D112: =D109-D110-D111 -> 0

Sheet 2.Enca
A1: PLANILHAS DE CUSTOS E FORMAÇÃO DE PREÇOS
A2: Discriminação dos serviços
A3: A | B3: Data da Apresentação da Proposta: | D3: 2024-08-26
A4: B | B4: Munícipio/UF: | D4: Brasília/DF
A5: C | B5: Ano do Acordo, Convenção ou Dissídio Coletivo: | C5: SINDISERVICOS/DF | D5: 2024
A6: D | B6: Número de meses de execução contratual: | D6: =12*5 -> 60
A7: E | B7: Tipo de serviço: | D7: Continuado
A8: F | B8: Unidade de medida | D8: Posto
A9: G | B9: Quantidade total a contratar (em função da unidade de medida): | D9: 1
A11: Mão de obra vinculada à execução contratual
A12: Dados complementares para composição dos custos referente à mão de obra
A13: 1 | B13: Tipo de serviço | C13: Encarregado de manutenção
A14: 2 | B14: Classificação Brasileira de Ocupações (CBO) | C14: 7102-05
A15: 3 | B15: Categoria profissional (vinculada à execução contratual) | C15: Encarregado de manutenção de prédios
A16: 4 | B16: Data base CCT | C16: 2024-01-01
A17: 5 | B17: Vigência CCT | C17: 2024-12-31
A18: 6 | B18: Carga horia semanal | C18: 44 horas/semana
A19: 7 | B19: Piso normativo da categoria profissional | C19: 3222.38
A20: 8 | B20: Salário proposto no contrato | C20: 0
A22: MÓDULO 1: Composição da remuneração (M1)
A23: 1 | B23: Composição da Remuneração | D23: Valor (R$)
A24: A | B24: Salário Base | C24: 1 | D24: =C20 -> 0
A25: B | B25: Adicional de periculosidade | C25: 0 | D25: =ROUNDUP($D$24*C25,2) -> 0
A26: C | B26: Adicional de Insalubridade | C26: 0 | D26: =ROUNDUP($D$24*C26,2) -> 0
A27: D | B27: Adicional Noturno | C27: 0 | D27: 0
A28: E | B28: Hora Noturna Adicional | C28: 0 | D28: 0
A29: F | B29: Adicional de Hora Extra | C29: 0 | D29: 0
A30: G | B30: Outros (especificar) | C30: 0 | D30: 0
A31: Total do Módulo 1 | D31: =SUM(D24:D30) -> 0
A33: MÓDULO 2: Encargos e benefícios anuais, mensais e diários (M2)
A34: 2.1 | B34: 13º (décimo terceiro) salário, férias e adicional de férias | C34: Porcentagem (%) | D34: Valor (R$)
A35: A | B35: 13º salário | C35: 0.0833 | D35: =ROUNDUP($D$31/12,2) -> 0
A36: B | B36: Férias | C36: 0.0833 | D36: =ROUNDUP($D$31/12,2) -> 0
A37: C | B37: Adicional de Férias (1/3 Constitucional) | C37: =C36/3 -> 0.02776666667 | D37: =ROUNDUP($D$31/3/12,2) -> 0
A38: Total submódulo 2.1 | D38: =SUM(D35:D37) -> 0
A40: 2.2 | B40: GPS, FGTS e outras contribuições | D40: Valor (R$)
A41: A | B41: INSS (com/sem desoneração) | C41: 0 | D41: =ROUNDUP($D$31*C41,2) -> 0
A42: B | B42: Salário Educação | C42: 0.025 | D42: =ROUNDUP($D$31*C42,2) -> 0
A43: C | B43: SAT | C43: 0.03 | D43: 0
A44: D | B44: SESC - SESI | C44: 0.015 | D44: 0
A45: E | B45: SENAI - SENAC | C45: 0.01 | D45: 0
A46: F | B46: SEBRAE | C46: 0.006 | D46: 0
A47: G | B47: INCRA | C47: 0.002 | D47: 0
A48: H | B48: FGTS | C48: 0.08 | D48: 0
A49: I | B49: SECONCI | C49: 0.01 | D49: 0
B50: Total submódulo 2.2 | C50: =SUM(C41:C49) -> 0.178 | D50: =SUM(D41:D49) -> 0
A52: 2.3 | B52: Benefícios mensais e diários | C52: Referência | D52: Valor (R$)
A53: A | B53: Vale transporte | C53: CLT | D53: 0
A54: B | B54: Vale alimentação | C54: CCT | D54: 0
A55: C | B55: Assistência Médica-Odontológica e Familiar | C55: SICRO | D55: 0
A56: D | B56: Auxílio Creche | C56: CCT | D56: 0
A57: E | B57: Seguro de Vida e Assistência Funeral | C57: SICRO | D57: 0
B58: Total submódulo 2.3 | D58: =SUM(D53:D57) -> 0
A59: Total do Módulo 2 | D59: =D38+D50+D58 -> 0
A61: MÓDULO 3: Provisão para rescisão (M3)
A62: A | B62: Aviso Prévio Indenizado | C62: 0.0324 | D62: =ROUNDUP($D$31*C62,2) -> 0
A63: B | B63: Aviso Prévio Trabalhado | C63: 0.0008 | D63: =ROUNDUP($D$31*C63,2) -> 0
A64: C | B64: Incidência dos encargos sobre o Aviso Prévio | C64: 0.0029 | D64: 0
A65: D | B65: Incidencia dos encargos sobre 13o-ferias (submodulo 2.2 sobre 2.1) | C65: 0.0612 | D65: 0
A66: E | B66: Multa sobre saldo FGTS | C66: =0.08*0.4 -> 0.032 | D66: 0
A67: Total do Módulo 3 | D67: =SUM(D62:D66) -> 0
A69: MÓDULO 4: Custo mensal de reposição do profissional ausente (M4)
A70: X | B70: Custo diário do empregado substituto | C70: Dias | D70: =ROUNDUP((D31+D59+D67)/30,2) -> 0
A71: A | B71: Férias | C71: =ROUND(30/12,2) -> 2.5 | D71: =ROUNDUP($D$70*C71,2) -> 0
A72: B | B72: Ausências por enfermidade | C72: =ROUNDUP(0.66/100*360/12,2) -> 0.2 | D72: =ROUNDUP($D$70*C72,2) -> 0
A73: C | B73: Faltas Justificadas | C73: =ROUNDUP(0.56/100*360/12,2) -> 0.17 | D73: 0
A74: D | B74: Ausência por acidente de trabalho | C74: =ROUNDUP(0.08/100*360/12,2) -> 0.03 | D74: 0
A75: E | B75: Afastamento Parentalidade | C75: =ROUNDUP((0.05+0.03)/100*360/12,2) -> 0.03 | D75: 0
A76: F | B76: Outros (especificar) | C76: 0 | D76: 0
A77: Total do Módulo 4 | D77: =SUM(D71:D76) -> 0
A79: MÓDULO 5: Insumos de mão de obra (M5)
A80: A | B80: EPI e Uniforme | C80: SINAPI Encarregado | D80: =EPI!M6 -> 0
A81: B | B81: Materiais e ferramentas | C81: SINAPI Encarregado | D81: =FER!M6 -> 0
A82: Total do Módulo 5 | D82: =SUM(D80:D81) -> 0
A83: Nota: Valores mensais por empregado.
A85: MÓDULO 6: Custos indiretos, tributos e lucro (M6)
A86: A | B86: Custos Indiretos | C86: SINAPI | D86: =BDI!C2 -> 0
A87: A.1 | B87: Administração Central | C87: SINAPI | D87: =BDI!C3 -> 0
A88: A.2 | B88: Seguros e Garantias Contratuais | C88: SINAPI | D88: =BDI!C4 -> 0
A89: A.3 | B89: Riscos | C89: SINAPI | D89: =BDI!C5 -> 0
A90: B | B90: Despesas Financeiras | C90: SINAPI | D90: =BDI!C6 -> 0
A91: C | B91: Lucro | C91: SINAPI | D91: =BDI!C7 -> 0
A92: D | B92: Tributos Federais e Estaduais/Municipais | C92: SINAPI | D92: =BDI!C8 -> 0
A93: D.1 | B93: COFINS | C93: SINAPI | D93: =BDI!C9 -> 0
A94: D.2 | B94: PIS | C94: SINAPI | D94: =BDI!C10 -> 0
A95: D.3 | B95: CPRB - (com/sem desoneração) | C95: SINAPI | D95: =BDI!C11 -> 0
A96: D.4 | B96: ISSQN | C96: SINAPI | D96: =BDI!C12 -> 0
A97: Total | D97: =BDI!C13 -> 0
A98: Total do Módulo 6 | D98: =D107*(D97) -> 0
A100: QUADRO-RESUMO CUSTO POR EMPREGADO
A101: Mão-de-obra vinculada à execução contratual (valor por empregado)
A102: A | B102: MÓDULO 1: Composição da remuneração (M1) | D102: =D31 -> 0
A103: B | B103: MÓDULO 2: Encargos e benefícios anuais, mensais e diários (M2) | D103: =D59 -> 0
A104: C | B104: MÓDULO 3: Provisão para rescisão (M3) | D104: =D67 -> 0
A105: D | B105: MÓDULO 4: Custo de reposição do profissional ausente (M4) | D105: =D77 -> 0
A106: E | B106: MÓDULO 5: Insumos de mão de obra (M5) | D106: =D82 -> 0
A107: Subtotal (A + B + C + D + E) | D107: =SUM(D102:D106) -> 0
A108: F | B108: MÓDULO 6: Custos indiretos, tributos e lucro (M6) | D108: =D98 -> 0
A109: Custo mensal do posto | D109: =D107+D108 -> 0
A110: G | B110: RESERVA MENSAL CONTA VINCULADA | D110: =D38+D67 -> 0
A111: H | B111: RESERVA MENSAL REPOSIÇÃO | D111: =D77 -> 0
A112: I | B112: CUSTO MENSAL ORDINÁRIO | D112: =D109-D110-D111 -> 0

Sheet 3.Elet
A1: PLANILHAS DE CUSTOS E FORMAÇÃO DE PREÇOS
A2: Discriminação dos serviços
A3: A | B3: Data da Apresentação da Proposta: | D3: 2024-08-26
A4: B | B4: Munícipio/UF: | D4: Brasília/DF
A5: C | B5: Ano do Acordo, Convenção ou Dissídio Coletivo: | C5: SINDISERVICOS/DF | D5: 2024
A6: D | B6: Número de meses de execução contratual: | D6: =12*5 -> 60
A7: E | B7: Tipo de serviço: | D7: Continuado
A8: F | B8: Unidade de medida | D8: Posto
A9: G | B9: Quantidade total a contratar (em função da unidade de medida): | D9: 1
A11: Mão de obra vinculada à execução contratual
A12: Dados complementares para composição dos custos referente à mão de obra
A13: 1 | B13: Tipo de serviço | C13: Técnico Eletricista
A14: 2 | B14: Classificação Brasileira de Ocupações (CBO) | C14: 9511-05
A15: 3 | B15: Categoria profissional (vinculada à execução contratual) | C15: Eletricista de manutenção em geral
A16: 4 | B16: Data base CCT | C16: 2024-01-01
A17: 5 | B17: Vigência CCT | C17: 2024-12-31
A18: 6 | B18: Carga horia semanal | C18: 44 horas/semana
A19: 7 | B19: Piso normativo da categoria profissional | C19: 2405.96
A20: 8 | B20: Salário proposto no contrato | C20: 0
A22: MÓDULO 1: Composição da remuneração (M1)
A23: 1 | B23: Composição da Remuneração | D23: Valor (R$)
A24: A | B24: Salário Base | C24: 1 | D24: =C20 -> 0
A25: B | B25: Adicional de periculosidade | C25: 0.3 | D25: =ROUNDUP($D$24*C25,2) -> 0
A26: C | B26: Adicional de Insalubridade | C26: 0 | D26: =ROUNDUP($D$24*C26,2) -> 0
A27: D | B27: Adicional Noturno | C27: 0 | D27: 0
A28: E | B28: Hora Noturna Adicional | C28: 0 | D28: 0
A29: F | B29: Adicional de Hora Extra | C29: 0 | D29: 0
A30: G | B30: Outros (especificar) | C30: 0 | D30: 0
A31: Total do Módulo 1 | D31: =SUM(D24:D30) -> 0
A33: MÓDULO 2: Encargos e benefícios anuais, mensais e diários (M2)
A34: 2.1 | B34: 13º (décimo terceiro) salário, férias e adicional de férias | C34: Porcentagem (%) | D34: Valor (R$)
A35: A | B35: 13º salário | C35: 0.0833 | D35: =ROUNDUP($D$31/12,2) -> 0
A36: B | B36: Férias | C36: 0.0833 | D36: =ROUNDUP($D$31/12,2) -> 0
A37: C | B37: Adicional de Férias (1/3 Constitucional) | C37: =C36/3 -> 0.02776666667 | D37: =ROUNDUP($D$31/3/12,2) -> 0
A38: Total submódulo 2.1 | D38: =SUM(D35:D37) -> 0
A40: 2.2 | B40: GPS, FGTS e outras contribuições | D40: Valor (R$)
A41: A | B41: INSS (com/sem desoneração) | C41: 0 | D41: =ROUNDUP($D$31*C41,2) -> 0
A42: B | B42: Salário Educação | C42: 0.025 | D42: =ROUNDUP($D$31*C42,2) -> 0
A43: C | B43: SAT | C43: 0.03 | D43: 0
A44: D | B44: SESC - SESI | C44: 0.015 | D44: 0
A45: E | B45: SENAI - SENAC | C45: 0.01 | D45: 0
A46: F | B46: SEBRAE | C46: 0.006 | D46: 0
A47: G | B47: INCRA | C47: 0.002 | D47: 0
A48: H | B48: FGTS | C48: 0.08 | D48: 0
A49: I | B49: SECONCI | C49: 0.01 | D49: 0
B50: Total submódulo 2.2 | C50: =SUM(C41:C49) -> 0.178 | D50: =SUM(D41:D49) -> 0
A52: 2.3 | B52: Benefícios mensais e diários | C52: Referência | D52: Valor (R$)
A53: A | B53: Vale transporte | C53: CLT | D53: 0
A54: B | B54: Vale alimentação | C54: CCT | D54: 0
A55: C | B55: Assistência Médica-Odontológica e Familiar | C55: SICRO | D55: 0
A56: D | B56: Auxílio Creche | C56: CCT | D56: 0
A57: E | B57: Seguro de Vida e Assistência Funeral | C57: SICRO | D57: 0
B58: Total submódulo 2.3 | D58: =SUM(D53:D57) -> 0
A59: Total do Módulo 2 | D59: =D38+D50+D58 -> 0
A61: MÓDULO 3: Provisão para rescisão (M3)
A62: A | B62: Aviso Prévio Indenizado | C62: 0.0324 | D62: =ROUNDUP($D$31*C62,2) -> 0
A63: B | B63: Aviso Prévio Trabalhado | C63: 0.0008 | D63: =ROUNDUP($D$31*C63,2) -> 0
A64: C | B64: Incidência dos encargos sobre o Aviso Prévio | C64: 0.0029 | D64: 0
A65: D | B65: Incidencia dos encargos sobre 13o-ferias (submodulo 2.2 sobre 2.1) | C65: 0.0612 | D65: 0
A66: E | B66: Multa sobre saldo FGTS | C66: =0.08*0.4 -> 0.032 | D66: 0
A67: Total do Módulo 3 | D67: =SUM(D62:D66) -> 0
A69: MÓDULO 4: Custo mensal de reposição do profissional ausente (M4)
A70: X | B70: Custo diário do empregado substituto | C70: Dias | D70: =ROUNDUP((D31+D59+D67)/30,2) -> 0
A71: A | B71: Férias | C71: =ROUND(30/12,2) -> 2.5 | D71: 0
A72: B | B72: Ausências por enfermidade | C72: =ROUNDUP(0.66/100*360/12,2) -> 0.2 | D72: 0
A73: C | B73: Faltas Justificadas | C73: =ROUNDUP(0.56/100*360/12,2) -> 0.17 | D73: 0
A74: D | B74: Ausência por acidente de trabalho | C74: =ROUNDUP(0.08/100*360/12,2) -> 0.03 | D74: 0
A75: E | B75: Afastamento Parentalidade | C75: =ROUNDUP((0.05+0.03)/100*360/12,2) -> 0.03 | D75: 0
A76: F | B76: Outros (especificar) | C76: 0 | D76: 0
A77: Total do Módulo 4 | D77: =SUM(D71:D76) -> 0
A79: MÓDULO 5: Insumos de mão de obra (M5)
A80: A | B80: EPI e Uniforme | C80: SINAPI Eletricista | D80: =EPI!M3 -> 0
A81: B | B81: Materiais e ferramentas | C81: SINAPI Eletricista | D81: =FER!M3 -> 0
A82: Total do Módulo 5 | D82: =SUM(D80:D81) -> 0
A83: Nota: Valores mensais por empregado.
A85: MÓDULO 6: Custos indiretos, tributos e lucro (M6)
A86: A | B86: Custos Indiretos | C86: SINAPI | D86: =BDI!C2 -> 0
A87: A.1 | B87: Administração Central | C87: SINAPI | D87: =BDI!C3 -> 0
A88: A.2 | B88: Seguros e Garantias Contratuais | C88: SINAPI | D88: =BDI!C4 -> 0
A89: A.3 | B89: Riscos | C89: SINAPI | D89: =BDI!C5 -> 0
A90: B | B90: Despesas Financeiras | C90: SINAPI | D90: =BDI!C6 -> 0
A91: C | B91: Lucro | C91: SINAPI | D91: =BDI!C7 -> 0
A92: D | B92: Tributos Federais e Estaduais/Municipais | C92: SINAPI | D92: =BDI!C8 -> 0
A93: D.1 | B93: COFINS | C93: SINAPI | D93: =BDI!C9 -> 0
A94: D.2 | B94: PIS | C94: SINAPI | D94: =BDI!C10 -> 0
A95: D.3 | B95: CPRB - (com/sem desoneração) | C95: SINAPI | D95: =BDI!C11 -> 0
A96: D.4 | B96: ISSQN | C96: SINAPI | D96: =BDI!C12 -> 0
A97: Total | D97: =BDI!C13 -> 0
A98: Total do Módulo 6 | D98: =D107*(D97) -> 0
A100: QUADRO-RESUMO CUSTO POR EMPREGADO
A101: Mão-de-obra vinculada à execução contratual (valor por empregado)
A102: A | B102: MÓDULO 1: Composição da remuneração (M1) | D102: =D31 -> 0
A103: B | B103: MÓDULO 2: Encargos e benefícios anuais, mensais e diários (M2) | D103: =D59 -> 0
A104: C | B104: MÓDULO 3: Provisão para rescisão (M3) | D104: =D67 -> 0
A105: D | B105: MÓDULO 4: Custo de reposição do profissional ausente (M4) | D105: =D77 -> 0
A106: E | B106: MÓDULO 5: Insumos de mão de obra (M5) | D106: =D82 -> 0
A107: Subtotal (A + B + C + D + E) | D107: =SUM(D102:D106) -> 0
A108: F | B108: MÓDULO 6: Custos indiretos, tributos e lucro (M6) | D108: =D98 -> 0
A109: Custo mensal do posto | D109: =D107+D108 -> 0
A110: G | B110: RESERVA MENSAL CONTA VINCULADA | D110: =D38+D67 -> 0
A111: H | B111: RESERVA MENSAL REPOSIÇÃO | D111: =D77 -> 0
A112: I | B112: CUSTO MENSAL ORDINÁRIO | D112: =D109-D110-D111 -> 0

Sheet 4.Aju-3
A1: PLANILHAS DE CUSTOS E FORMAÇÃO DE PREÇOS
A2: Discriminação dos serviços
A3: A | B3: Data da Apresentação da Proposta: | D3: 2024-08-26
A4: B | B4: Munícipio/UF: | D4: Brasília/DF
A5: C | B5: Ano do Acordo, Convenção ou Dissídio Coletivo: | C5: SINDISERVICOS/DF | D5: 2024
A6: D | B6: Número de meses de execução contratual: | D6: =12*5 -> 60
A7: E | B7: Tipo de serviço: | D7: Continuado
A8: F | B8: Unidade de medida | D8: Posto
A9: G | B9: Quantidade total a contratar (em função da unidade de medida): | D9: 1
A11: Mão de obra vinculada à execução contratual
A12: Dados complementares para composição dos custos referente à mão de obra
A13: 1 | B13: Tipo de serviço | C13: Ajudante de Eletricista
A14: 2 | B14: Classificação Brasileira de Ocupações (CBO) | C14: 7156-15
A15: 3 | B15: Categoria profissional (vinculada à execução contratual) | C15: Ajudante de eletricista
A16: 4 | B16: Data base CCT | C16: 2024-01-01
A17: 5 | B17: Vigência CCT | C17: 2024-12-31
A18: 6 | B18: Carga horia semanal | C18: 44 horas/semana
A19: 7 | B19: Piso normativo da categoria profissional | C19: 1629.62
A20: 8 | B20: Salário proposto no contrato | C20: 0
A22: MÓDULO 1: Composição da remuneração (M1)
A23: 1 | B23: Composição da Remuneração | D23: Valor (R$)
A24: A | B24: Salário Base | C24: 1 | D24: =C20 -> 0
A25: B | B25: Adicional de periculosidade | C25: 0.3 | D25: =ROUNDUP($D$24*C25,2) -> 0
A26: C | B26: Adicional de Insalubridade | C26: 0 | D26: =ROUNDUP($D$24*C26,2) -> 0
A27: D | B27: Adicional Noturno | C27: 0 | D27: 0
A28: E | B28: Hora Noturna Adicional | C28: 0 | D28: 0
A29: F | B29: Adicional de Hora Extra | C29: 0 | D29: 0
A30: G | B30: Outros (especificar) | C30: 0 | D30: 0
A31: Total do Módulo 1 | D31: =SUM(D24:D30) -> 0
A33: MÓDULO 2: Encargos e benefícios anuais, mensais e diários (M2)
A34: 2.1 | B34: 13º (décimo terceiro) salário, férias e adicional de férias | C34: Porcentagem (%) | D34: Valor (R$)
A35: A | B35: 13º salário | C35: 0.0833 | D35: =ROUNDUP($D$31/12,2) -> 0
A36: B | B36: Férias | C36: 0.0833 | D36: =ROUNDUP($D$31/12,2) -> 0
A37: C | B37: Adicional de Férias (1/3 Constitucional) | C37: =C36/3 -> 0.02776666667 | D37: =ROUNDUP($D$31/3/12,2) -> 0
A38: Total submódulo 2.1 | D38: =SUM(D35:D37) -> 0
A40: 2.2 | B40: GPS, FGTS e outras contribuições | D40: Valor (R$)
A41: A | B41: INSS (com/sem desoneração) | C41: 0 | D41: =ROUNDUP($D$31*C41,2) -> 0
A42: B | B42: Salário Educação | C42: 0.025 | D42: =ROUNDUP($D$31*C42,2) -> 0
A43: C | B43: SAT | C43: 0.03 | D43: 0
A44: D | B44: SESC - SESI | C44: 0.015 | D44: 0
A45: E | B45: SENAI - SENAC | C45: 0.01 | D45: 0
A46: F | B46: SEBRAE | C46: 0.006 | D46: 0
A47: G | B47: INCRA | C47: 0.002 | D47: 0
A48: H | B48: FGTS | C48: 0.08 | D48: 0
A49: I | B49: SECONCI | C49: 0.01 | D49: 0
B50: Total submódulo 2.2 | C50: =SUM(C41:C49) -> 0.178 | D50: =SUM(D41:D49) -> 0
A52: 2.3 | B52: Benefícios mensais e diários | C52: Referência | D52: Valor (R$)
A53: A | B53: Vale transporte | C53: CLT | D53: 0
A54: B | B54: Vale alimentação | C54: CCT | D54: 0
A55: C | B55: Assistência Médica-Odontológica e Familiar | C55: SICRO | D55: 0
A56: D | B56: Auxílio Creche | C56: CCT | D56: 0
A57: E | B57: Seguro de Vida e Assistência Funeral | C57: SICRO | D57: 0
B58: Total submódulo 2.3 | D58: =SUM(D53:D57) -> 0
A59: Total do Módulo 2 | D59: =D38+D50+D58 -> 0
A61: MÓDULO 3: Provisão para rescisão (M3)
A62: A | B62: Aviso Prévio Indenizado | C62: 0.0324 | D62: =ROUNDUP($D$31*C62,2) -> 0
A63: B | B63: Aviso Prévio Trabalhado | C63: 0.0008 | D63: =ROUNDUP($D$31*C63,2) -> 0
A64: C | B64: Incidência dos encargos sobre o Aviso Prévio | C64: 0.0029 | D64: 0
A65: D | B65: Incidencia dos encargos sobre 13o-ferias (submodulo 2.2 sobre 2.1) | C65: 0.0612 | D65: 0
A66: E | B66: Multa sobre saldo FGTS | C66: =0.08*0.4 -> 0.032 | D66: 0
A67: Total do Módulo 3 | D67: =SUM(D62:D66) -> 0
A69: MÓDULO 4: Custo mensal de reposição do profissional ausente (M4)
A70: X | B70: Custo diário do empregado substituto | C70: Dias | D70: =ROUNDUP((D31+D59+D67)/30,2) -> 0
A71: A | B71: Férias | C71: =ROUND(30/12,2) -> 2.5 | D71: =ROUNDUP($D$70*C71,2) -> 0
A72: B | B72: Ausências por enfermidade | C72: =ROUNDUP(0.66/100*360/12,2) -> 0.2 | D72: =ROUNDUP($D$70*C72,2) -> 0
A73: C | B73: Faltas Justificadas | C73: =ROUNDUP(0.56/100*360/12,2) -> 0.17 | D73: 0
A74: D | B74: Ausência por acidente de trabalho | C74: =ROUNDUP(0.08/100*360/12,2) -> 0.03 | D74: 0
A75: E | B75: Afastamento Parentalidade | C75: =ROUNDUP((0.05+0.03)/100*360/12,2) -> 0.03 | D75: 0
A76: F | B76: Outros (especificar) | C76: 0 | D76: 0
A77: Total do Módulo 4 | D77: =SUM(D71:D76) -> 0
A79: MÓDULO 5: Insumos de mão de obra (M5)
A80: A | B80: EPI e Uniforme | C80: SINAPI Eletricista | D80: =EPI!M3 -> 0
A81: B | B81: Materiais e ferramentas | C81: SINAPI Eletricista | D81: =FER!M3 -> 0
A82: Total do Módulo 5 | D82: =SUM(D80:D81) -> 0
A83: Nota: Valores mensais por empregado.
A85: MÓDULO 6: Custos indiretos, tributos e lucro (M6)
A86: A | B86: Custos Indiretos | C86: SINAPI | D86: =BDI!C2 -> 0
A87: A.1 | B87: Administração Central | C87: SINAPI | D87: =BDI!C3 -> 0
A88: A.2 | B88: Seguros e Garantias Contratuais | C88: SINAPI | D88: =BDI!C4 -> 0
A89: A.3 | B89: Riscos | C89: SINAPI | D89: =BDI!C5 -> 0
A90: B | B90: Despesas Financeiras | C90: SINAPI | D90: =BDI!C6 -> 0
A91: C | B91: Lucro | C91: SINAPI | D91: =BDI!C7 -> 0
A92: D | B92: Tributos Federais e Estaduais/Municipais | C92: SINAPI | D92: =BDI!C8 -> 0
A93: D.1 | B93: COFINS | C93: SINAPI | D93: =BDI!C9 -> 0
A94: D.2 | B94: PIS | C94: SINAPI | D94: =BDI!C10 -> 0
A95: D.3 | B95: CPRB - (com/sem desoneração) | C95: SINAPI | D95: =BDI!C11 -> 0
A96: D.4 | B96: ISSQN | C96: SINAPI | D96: =BDI!C12 -> 0
A97: Total | D97: =BDI!C13 -> 0
A98: Total do Módulo 6 | D98: =D107*(D97) -> 0
A100: QUADRO-RESUMO CUSTO POR EMPREGADO
A101: Mão-de-obra vinculada à execução contratual (valor por empregado)
A102: A | B102: MÓDULO 1: Composição da remuneração (M1) | D102: =D31 -> 0
A103: B | B103: MÓDULO 2: Encargos e benefícios anuais, mensais e diários (M2) | D103: =D59 -> 0
A104: C | B104: MÓDULO 3: Provisão para rescisão (M3) | D104: =D67 -> 0
A105: D | B105: MÓDULO 4: Custo de reposição do profissional ausente (M4) | D105: =D77 -> 0
A106: E | B106: MÓDULO 5: Insumos de mão de obra (M5) | D106: =D82 -> 0
A107: Subtotal (A + B + C + D + E) | D107: =SUM(D102:D106) -> 0
A108: F | B108: MÓDULO 6: Custos indiretos, tributos e lucro (M6) | D108: =D98 -> 0
A109: Custo mensal do posto | D109: =D107+D108 -> 0
A110: G | B110: RESERVA MENSAL CONTA VINCULADA | D110: =D38+D67 -> 0
A111: H | B111: RESERVA MENSAL REPOSIÇÃO | D111: =D77 -> 0
A112: I | B112: CUSTO MENSAL ORDINÁRIO | D112: =D109-D110-D111 -> 0

Sheet 5.Refr
A1: PLANILHAS DE CUSTOS E FORMAÇÃO DE PREÇOS
A2: Discriminação dos serviços
A3: A | B3: Data da Apresentação da Proposta: | D3: 2024-08-26
A4: B | B4: Munícipio/UF: | D4: Brasília/DF
A5: C | B5: Ano do Acordo, Convenção ou Dissídio Coletivo: | C5: SINDISERVICOS/DF | D5: 2024
A6: D | B6: Número de meses de execução contratual: | D6: =12*5 -> 60
A7: E | B7: Tipo de serviço: | D7: Continuado
A8: F | B8: Unidade de medida | D8: Posto
A9: G | B9: Quantidade total a contratar (em função da unidade de medida): | D9: 1
A11: Mão de obra vinculada à execução contratual
A12: Dados complementares para composição dos custos referente à mão de obra
A13: 1 | B13: Tipo de serviço | C13: Técnico em Refrigeração
A14: 2 | B14: Classificação Brasileira de Ocupações (CBO) | C14: 7257-05
A15: 3 | B15: Categoria profissional (vinculada à execução contratual) | C15: Mecânico de refrigeração
A16: 4 | B16: Data base CCT | C16: 2024-01-01
A17: 5 | B17: Vigência CCT | C17: 2024-12-31
A18: 6 | B18: Carga horia semanal | C18: 44 horas/semana
A19: 7 | B19: Piso normativo da categoria profissional | C19: 2405.96
A20: 8 | B20: Salário proposto no contrato | C20: 0
A22: MÓDULO 1: Composição da remuneração (M1)
A23: 1 | B23: Composição da Remuneração | D23: Valor (R$)
A24: A | B24: Salário Base | C24: 1 | D24: =C20 -> 0
A25: B | B25: Adicional de periculosidade | C25: 0.3 | D25: =ROUNDUP($D$24*C25,2) -> 0
A26: C | B26: Adicional de Insalubridade | C26: 0 | D26: =ROUNDUP($D$24*C26,2) -> 0
A27: D | B27: Adicional Noturno | C27: 0 | D27: 0
A28: E | B28: Hora Noturna Adicional | C28: 0 | D28: 0
A29: F | B29: Adicional de Hora Extra | C29: 0 | D29: 0
A30: G | B30: Outros (especificar) | C30: 0 | D30: 0
A31: Total do Módulo 1 | D31: =SUM(D24:D30) -> 0
A33: MÓDULO 2: Encargos e benefícios anuais, mensais e diários (M2)
A34: 2.1 | B34: 13º (décimo terceiro) salário, férias e adicional de férias | C34: Porcentagem (%) | D34: Valor (R$)
A35: A | B35: 13º salário | C35: 0.0833 | D35: =ROUNDUP($D$31/12,2) -> 0
A36: B | B36: Férias | C36: 0.0833 | D36: =ROUNDUP($D$31/12,2) -> 0
A37: C | B37: Adicional de Férias (1/3 Constitucional) | C37: =C36/3 -> 0.02776666667 | D37: =ROUNDUP($D$31/3/12,2) -> 0
A38: Total submódulo 2.1 | D38: =SUM(D35:D37) -> 0
A40: 2.2 | B40: GPS, FGTS e outras contribuições | D40: Valor (R$)
A41: A | B41: INSS (com/sem desoneração) | C41: 0 | D41: =ROUNDUP($D$31*C41,2) -> 0
A42: B | B42: Salário Educação | C42: 0.025 | D42: =ROUNDUP($D$31*C42,2) -> 0
A43: C | B43: SAT | C43: 0.03 | D43: 0
A44: D | B44: SESC - SESI | C44: 0.015 | D44: 0
A45: E | B45: SENAI - SENAC | C45: 0.01 | D45: 0
A46: F | B46: SEBRAE | C46: 0.006 | D46: 0
A47: G | B47: INCRA | C47: 0.002 | D47: 0
A48: H | B48: FGTS | C48: 0.08 | D48: 0
A49: I | B49: SECONCI | C49: 0.01 | D49: 0
B50: Total submódulo 2.2 | C50: =SUM(C41:C49) -> 0.178 | D50: =SUM(D41:D49) -> 0
A52: 2.3 | B52: Benefícios mensais e diários | C52: Referência | D52: Valor (R$)
A53: A | B53: Vale transporte | C53: CLT | D53: 0
A54: B | B54: Vale alimentação | C54: CCT | D54: 0
A55: C | B55: Assistência Médica-Odontológica e Familiar | C55: SICRO | D55: 0
A56: D | B56: Auxílio Creche | C56: CCT | D56: 0
A57: E | B57: Seguro de Vida e Assistência Funeral | C57: SICRO | D57: 0
B58: Total submódulo 2.3 | D58: =SUM(D53:D57) -> 0
A59: Total do Módulo 2 | D59: =D38+D50+D58 -> 0
A61: MÓDULO 3: Provisão para rescisão (M3)
A62: A | B62: Aviso Prévio Indenizado | C62: 0.0324 | D62: =ROUNDUP($D$31*C62,2) -> 0
A63: B | B63: Aviso Prévio Trabalhado | C63: 0.0008 | D63: =ROUNDUP($D$31*C63,2) -> 0
A64: C | B64: Incidência dos encargos sobre o Aviso Prévio | C64: 0.0029 | D64: 0
A65: D | B65: Incidencia dos encargos sobre 13o-ferias (submodulo 2.2 sobre 2.1) | C65: 0.0612 | D65: 0
A66: E | B66: Multa sobre saldo FGTS | C66: =0.08*0.4 -> 0.032 | D66: 0
A67: Total do Módulo 3 | D67: =SUM(D62:D66) -> 0
A69: MÓDULO 4: Custo mensal de reposição do profissional ausente (M4)
A70: X | B70: Custo diário do empregado substituto | C70: Dias | D70: =ROUNDUP((D31+D59+D67)/30,2) -> 0
A71: A | B71: Férias | C71: =ROUND(30/12,2) -> 2.5 | D71: =ROUNDUP($D$70*C71,2) -> 0
A72: B | B72: Ausências por enfermidade | C72: =ROUNDUP(0.66/100*360/12,2) -> 0.2 | D72: =ROUNDUP($D$70*C72,2) -> 0
A73: C | B73: Faltas Justificadas | C73: =ROUNDUP(0.56/100*360/12,2) -> 0.17 | D73: 0
A74: D | B74: Ausência por acidente de trabalho | C74: =ROUNDUP(0.08/100*360/12,2) -> 0.03 | D74: 0
A75: E | B75: Afastamento Parentalidade | C75: =ROUNDUP((0.05+0.03)/100*360/12,2) -> 0.03 | D75: 0
A76: F | B76: Outros (especificar) | C76: 0 | D76: 0
A77: Total do Módulo 4 | D77: =SUM(D71:D76) -> 0
A79: MÓDULO 5: Insumos de mão de obra (M5)
A80: A | B80: EPI e Uniforme | C80: SINAPI Eletricista | D80: =EPI!M3 -> 0
A81: B | B81: Materiais e ferramentas | C81: SINAPI Eletricista | D81: =FER!M3 -> 0
A82: Total do Módulo 5 | D82: =SUM(D80:D81) -> 0
A83: Nota: Valores mensais por empregado.
A85: MÓDULO 6: Custos indiretos, tributos e lucro (M6)
A86: A | B86: Custos Indiretos | C86: SINAPI | D86: =BDI!C2 -> 0
A87: A.1 | B87: Administração Central | C87: SINAPI | D87: =BDI!C3 -> 0
A88: A.2 | B88: Seguros e Garantias Contratuais | C88: SINAPI | D88: =BDI!C4 -> 0
A89: A.3 | B89: Riscos | C89: SINAPI | D89: =BDI!C5 -> 0
A90: B | B90: Despesas Financeiras | C90: SINAPI | D90: =BDI!C6 -> 0
A91: C | B91: Lucro | C91: SINAPI | D91: =BDI!C7 -> 0
A92: D | B92: Tributos Federais e Estaduais/Municipais | C92: SINAPI | D92: =BDI!C8 -> 0
A93: D.1 | B93: COFINS | C93: SINAPI | D93: =BDI!C9 -> 0
A94: D.2 | B94: PIS | C94: SINAPI | D94: =BDI!C10 -> 0
A95: D.3 | B95: CPRB - (com/sem desoneração) | C95: SINAPI | D95: =BDI!C11 -> 0
A96: D.4 | B96: ISSQN | C96: SINAPI | D96: =BDI!C12 -> 0
A97: Total | D97: =BDI!C13 -> 0
A98: Total do Módulo 6 | D98: =D107*(D97) -> 0
A100: QUADRO-RESUMO CUSTO POR EMPREGADO
A101: Mão-de-obra vinculada à execução contratual (valor por empregado)
A102: A | B102: MÓDULO 1: Composição da remuneração (M1) | D102: =D31 -> 0
A103: B | B103: MÓDULO 2: Encargos e benefícios anuais, mensais e diários (M2) | D103: =D59 -> 0
A104: C | B104: MÓDULO 3: Provisão para rescisão (M3) | D104: =D67 -> 0
A105: D | B105: MÓDULO 4: Custo de reposição do profissional ausente (M4) | D105: =D77 -> 0
A106: E | B106: MÓDULO 5: Insumos de mão de obra (M5) | D106: =D82 -> 0
A107: Subtotal (A + B + C + D + E) | D107: =SUM(D102:D106) -> 0
A108: F | B108: MÓDULO 6: Custos indiretos, tributos e lucro (M6) | D108: =D98 -> 0
A109: Custo mensal do posto | D109: =D107+D108 -> 0
A110: G | B110: RESERVA MENSAL CONTA VINCULADA | D110: =D38+D67 -> 0
A111: H | B111: RESERVA MENSAL REPOSIÇÃO | D111: =D77 -> 0
A112: I | B112: CUSTO MENSAL ORDINÁRIO | D112: =D109-D110-D111 -> 0

Sheet 6.Aju-5
A1: PLANILHAS DE CUSTOS E FORMAÇÃO DE PREÇOS
A2: Discriminação dos serviços
A3: A | B3: Data da Apresentação da Proposta: | D3: 2024-08-26
A4: B | B4: Munícipio/UF: | D4: Brasília/DF
A5: C | B5: Ano do Acordo, Convenção ou Dissídio Coletivo: | C5: SINDISERVICOS/DF | D5: 2024
A6: D | B6: Número de meses de execução contratual: | D6: =12*5 -> 60
A7: E | B7: Tipo de serviço: | D7: Continuado
A8: F | B8: Unidade de medida | D8: Posto
A9: G | B9: Quantidade total a contratar (em função da unidade de medida): | D9: 1
A11: Mão de obra vinculada à execução contratual
A12: Dados complementares para composição dos custos referente à mão de obra
A13: 1 | B13: Tipo de serviço | C13: Ajudante de Refrigeração
A14: 2 | B14: Classificação Brasileira de Ocupações (CBO) | C14: 7156-15
A15: 3 | B15: Categoria profissional (vinculada à execução contratual) | C15: Ajudante de eletricista
A16: 4 | B16: Data base CCT | C16: 2024-01-01
A17: 5 | B17: Vigência CCT | C17: 2024-12-31
A18: 6 | B18: Carga horia semanal | C18: 44 horas/semana
A19: 7 | B19: Piso normativo da categoria profissional | C19: 1629.62
A20: 8 | B20: Salário proposto no contrato | C20: 0
A22: MÓDULO 1: Composição da remuneração (M1)
A23: 1 | B23: Composição da Remuneração | D23: Valor (R$)
A24: A | B24: Salário Base | C24: 1 | D24: =C20 -> 0
A25: B | B25: Adicional de periculosidade | C25: 0.3 | D25: =ROUNDUP($D$24*C25,2) -> 0
A26: C | B26: Adicional de Insalubridade | C26: 0 | D26: =ROUNDUP($D$24*C26,2) -> 0
A27: D | B27: Adicional Noturno | C27: 0 | D27: 0
A28: E | B28: Hora Noturna Adicional | C28: 0 | D28: 0
A29: F | B29: Adicional de Hora Extra | C29: 0 | D29: 0
A30: G | B30: Outros (especificar) | C30: 0 | D30: 0
A31: Total do Módulo 1 | D31: =SUM(D24:D30) -> 0
A33: MÓDULO 2: Encargos e benefícios anuais, mensais e diários (M2)
A34: 2.1 | B34: 13º (décimo terceiro) salário, férias e adicional de férias | C34: Porcentagem (%) | D34: Valor (R$)
A35: A | B35: 13º salário | C35: 0.0833 | D35: =ROUNDUP($D$31/12,2) -> 0
A36: B | B36: Férias | C36: 0.0833 | D36: =ROUNDUP($D$31/12,2) -> 0
A37: C | B37: Adicional de Férias (1/3 Constitucional) | C37: =C36/3 -> 0.02776666667 | D37: =ROUNDUP($D$31/3/12,2) -> 0
A38: Total submódulo 2.1 | D38: =SUM(D35:D37) -> 0
A40: 2.2 | B40: GPS, FGTS e outras contribuições | D40: Valor (R$)
A41: A | B41: INSS (com/sem desoneração) | C41: 0 | D41: =ROUNDUP($D$31*C41,2) -> 0
A42: B | B42: Salário Educação | C42: 0.025 | D42: =ROUNDUP($D$31*C42,2) -> 0
A43: C | B43: SAT | C43: 0.03 | D43: 0
A44: D | B44: SESC - SESI | C44: 0.015 | D44: 0
A45: E | B45: SENAI - SENAC | C45: 0.01 | D45: 0
A46: F | B46: SEBRAE | C46: 0.006 | D46: 0
A47: G | B47: INCRA | C47: 0.002 | D47: 0
A48: H | B48: FGTS | C48: 0.08 | D48: 0
A49: I | B49: SECONCI | C49: 0.01 | D49: 0
B50: Total submódulo 2.2 | C50: =SUM(C41:C49) -> 0.178 | D50: =SUM(D41:D49) -> 0
A52: 2.3 | B52: Benefícios mensais e diários | C52: Referência | D52: Valor (R$)
A53: A | B53: Vale transporte | C53: CLT | D53: 0
A54: B | B54: Vale alimentação | C54: CCT | D54: 0
A55: C | B55: Assistência Médica-Odontológica e Familiar | C55: SICRO | D55: 0
A56: D | B56: Auxílio Creche | C56: CCT | D56: 0
A57: E | B57: Seguro de Vida e Assistência Funeral | C57: SICRO | D57: 0
B58: Total submódulo 2.3 | D58: =SUM(D53:D57) -> 0
A59: Total do Módulo 2 | D59: =D38+D50+D58 -> 0
A61: MÓDULO 3: Provisão para rescisão (M3)
A62: A | B62: Aviso Prévio Indenizado | C62: 0.0324 | D62: =ROUNDUP($D$31*C62,2) -> 0
A63: B | B63: Aviso Prévio Trabalhado | C63: 0.0008 | D63: =ROUNDUP($D$31*C63,2) -> 0
A64: C | B64: Incidência dos encargos sobre o Aviso Prévio | C64: 0.0029 | D64: 0
A65: D | B65: Incidencia dos encargos sobre 13o-ferias (submodulo 2.2 sobre 2.1) | C65: 0.0612 | D65: 0
A66: E | B66: Multa sobre saldo FGTS | C66: =0.08*0.4 -> 0.032 | D66: 0
A67: Total do Módulo 3 | D67: =SUM(D62:D66) -> 0
A69: MÓDULO 4: Custo mensal de reposição do profissional ausente (M4)
A70: X | B70: Custo diário do empregado substituto | C70: Dias | D70: =ROUNDUP((D31+D59+D67)/30,2) -> 0
A71: A | B71: Férias | C71: =ROUND(30/12,2) -> 2.5 | D71: =ROUNDUP($D$70*C71,2) -> 0
A72: B | B72: Ausências por enfermidade | C72: =ROUNDUP(0.66/100*360/12,2) -> 0.2 | D72: =ROUNDUP($D$70*C72,2) -> 0
A73: C | B73: Faltas Justificadas | C73: =ROUNDUP(0.56/100*360/12,2) -> 0.17 | D73: 0
A74: D | B74: Ausência por acidente de trabalho | C74: =ROUNDUP(0.08/100*360/12,2) -> 0.03 | D74: 0
A75: E | B75: Afastamento Parentalidade | C75: =ROUNDUP((0.05+0.03)/100*360/12,2) -> 0.03 | D75: 0
A76: F | B76: Outros (especificar) | C76: 0 | D76: 0
A77: Total do Módulo 4 | D77: =SUM(D71:D76) -> 0
A79: MÓDULO 5: Insumos de mão de obra (M5)
A80: A | B80: EPI e Uniforme | C80: SINAPI Eletricista | D80: =EPI!M3 -> 0
A81: B | B81: Materiais e ferramentas | C81: SINAPI Eletricista | D81: =FER!M3 -> 0
A82: Total do Módulo 5 | D82: =SUM(D80:D81) -> 0
A83: Nota: Valores mensais por empregado.
A85: MÓDULO 6: Custos indiretos, tributos e lucro (M6)
A86: A | B86: Custos Indiretos | C86: SINAPI | D86: =BDI!C2 -> 0
A87: A.1 | B87: Administração Central | C87: SINAPI | D87: =BDI!C3 -> 0
A88: A.2 | B88: Seguros e Garantias Contratuais | C88: SINAPI | D88: =BDI!C4 -> 0
A89: A.3 | B89: Riscos | C89: SINAPI | D89: =BDI!C5 -> 0
A90: B | B90: Despesas Financeiras | C90: SINAPI | D90: =BDI!C6 -> 0
A91: C | B91: Lucro | C91: SINAPI | D91: =BDI!C7 -> 0
A92: D | B92: Tributos Federais e Estaduais/Municipais | C92: SINAPI | D92: =BDI!C8 -> 0
A93: D.1 | B93: COFINS | C93: SINAPI | D93: =BDI!C9 -> 0
A94: D.2 | B94: PIS | C94: SINAPI | D94: =BDI!C10 -> 0
A95: D.3 | B95: CPRB - (com/sem desoneração) | C95: SINAPI | D95: =BDI!C11 -> 0
A96: D.4 | B96: ISSQN | C96: SINAPI | D96: =BDI!C12 -> 0
A97: Total | D97: =BDI!C13 -> 0
A98: Total do Módulo 6 | D98: =D107*(D97) -> 0
A100: QUADRO-RESUMO CUSTO POR EMPREGADO
A101: Mão-de-obra vinculada à execução contratual (valor por empregado)
A102: A | B102: MÓDULO 1: Composição da remuneração (M1) | D102: =D31 -> 0
A103: B | B103: MÓDULO 2: Encargos e benefícios anuais, mensais e diários (M2) | D103: =D59 -> 0
A104: C | B104: MÓDULO 3: Provisão para rescisão (M3) | D104: =D67 -> 0
A105: D | B105: MÓDULO 4: Custo de reposição do profissional ausente (M4) | D105: =D77 -> 0
A106: E | B106: MÓDULO 5: Insumos de mão de obra (M5) | D106: =D82 -> 0
A107: Subtotal (A + B + C + D + E) | D107: =SUM(D102:D106) -> 0
A108: F | B108: MÓDULO 6: Custos indiretos, tributos e lucro (M6) | D108: =D98 -> 0
A109: Custo mensal do posto | D109: =D107+D108 -> 0
A110: G | B110: RESERVA MENSAL CONTA VINCULADA | D110: =D38+D67 -> 0
A111: H | B111: RESERVA MENSAL REPOSIÇÃO | D111: =D77 -> 0
A112: I | B112: CUSTO MENSAL ORDINÁRIO | D112: =D109-D110-D111 -> 0

Sheet 7.Marc
A1: PLANILHAS DE CUSTOS E FORMAÇÃO DE PREÇOS
A2: Discriminação dos serviços
A3: A | B3: Data da Apresentação da Proposta: | D3: 2024-08-26
A4: B | B4: Munícipio/UF: | D4: Brasília/DF
A5: C | B5: Ano do Acordo, Convenção ou Dissídio Coletivo: | C5: SINDISERVICOS/DF | D5: 2024
A6: D | B6: Número de meses de execução contratual: | D6: =12*5 -> 60
A7: E | B7: Tipo de serviço: | D7: Continuado
A8: F | B8: Unidade de medida | D8: Posto
A9: G | B9: Quantidade total a contratar (em função da unidade de medida): | D9: 1
A11: Mão de obra vinculada à execução contratual
A12: Dados complementares para composição dos custos referente à mão de obra
A13: 1 | B13: Tipo de serviço | C13: Técnico Marceneiro
A14: 2 | B14: Classificação Brasileira de Ocupações (CBO) | C14: 7711-05
A15: 3 | B15: Categoria profissional (vinculada à execução contratual) | C15: Marceneiro
A16: 4 | B16: Data base CCT | C16: 2024-01-01
A17: 5 | B17: Vigência CCT | C17: 2024-12-31
A18: 6 | B18: Carga horia semanal | C18: 44 horas/semana
A19: 7 | B19: Piso normativo da categoria profissional | C19: 2405.96
A20: 8 | B20: Salário proposto no contrato | C20: 0
A22: MÓDULO 1: Composição da remuneração (M1)
A23: 1 | B23: Composição da Remuneração | D23: Valor (R$)
A24: A | B24: Salário Base | C24: 1 | D24: =C20 -> 0
A25: B | B25: Adicional de periculosidade | C25: 0 | D25: =ROUNDUP($D$24*C25,2) -> 0
A26: C | B26: Adicional de Insalubridade | C26: 0 | D26: =ROUNDUP($D$24*C26,2) -> 0
A27: D | B27: Adicional Noturno | C27: 0 | D27: 0
A28: E | B28: Hora Noturna Adicional | C28: 0 | D28: 0
A29: F | B29: Adicional de Hora Extra | C29: 0 | D29: 0
A30: G | B30: Outros (especificar) | C30: 0 | D30: 0
A31: Total do Módulo 1 | D31: =SUM(D24:D30) -> 0
A33: MÓDULO 2: Encargos e benefícios anuais, mensais e diários (M2)
A34: 2.1 | B34: 13º (décimo terceiro) salário, férias e adicional de férias | C34: Porcentagem (%) | D34: Valor (R$)
A35: A | B35: 13º salário | C35: 0.0833 | D35: =ROUNDUP($D$31/12,2) -> 0
A36: B | B36: Férias | C36: 0.0833 | D36: =ROUNDUP($D$31/12,2) -> 0
A37: C | B37: Adicional de Férias (1/3 Constitucional) | C37: =C36/3 -> 0.02776666667 | D37: =ROUNDUP($D$31/3/12,2) -> 0
A38: Total submódulo 2.1 | D38: =SUM(D35:D37) -> 0
A40: 2.2 | B40: GPS, FGTS e outras contribuições | D40: Valor (R$)
A41: A | B41: INSS (com/sem desoneração) | C41: 0 | D41: =ROUNDUP($D$31*C41,2) -> 0
A42: B | B42: Salário Educação | C42: 0.025 | D42: =ROUNDUP($D$31*C42,2) -> 0
A43: C | B43: SAT | C43: 0.03 | D43: 0
A44: D | B44: SESC - SESI | C44: 0.015 | D44: 0
A45: E | B45: SENAI - SENAC | C45: 0.01 | D45: 0
A46: F | B46: SEBRAE | C46: 0.006 | D46: 0
A47: G | B47: INCRA | C47: 0.002 | D47: 0
A48: H | B48: FGTS | C48: 0.08 | D48: 0
A49: I | B49: SECONCI | C49: 0.01 | D49: 0
B50: Total submódulo 2.2 | C50: =SUM(C41:C49) -> 0.178 | D50: =SUM(D41:D49) -> 0
A52: 2.3 | B52: Benefícios mensais e diários | C52: Referência | D52: Valor (R$)
A53: A | B53: Vale transporte | C53: CLT | D53: 0
A54: B | B54: Vale alimentação | C54: CCT | D54: 0
A55: C | B55: Assistência Médica-Odontológica e Familiar | C55: SICRO | D55: 0
A56: D | B56: Auxílio Creche | C56: CCT | D56: 0
A57: E | B57: Seguro de Vida e Assistência Funeral | C57: SICRO | D57: 0
B58: Total submódulo 2.3 | D58: =SUM(D53:D57) -> 0
A59: Total do Módulo 2 | D59: =D38+D50+D58 -> 0
A61: MÓDULO 3: Provisão para rescisão (M3)
A62: A | B62: Aviso Prévio Indenizado | C62: 0.0324 | D62: =ROUNDUP($D$31*C62,2) -> 0
A63: B | B63: Aviso Prévio Trabalhado | C63: 0.0008 | D63: =ROUNDUP($D$31*C63,2) -> 0
A64: C | B64: Incidência dos encargos sobre o Aviso Prévio | C64: 0.0029 | D64: 0
A65: D | B65: Incidencia dos encargos sobre 13o-ferias (submodulo 2.2 sobre 2.1) | C65: 0.0612 | D65: 0
A66: E | B66: Multa sobre saldo FGTS | C66: =0.08*0.4 -> 0.032 | D66: 0
A67: Total do Módulo 3 | D67: =SUM(D62:D66) -> 0
A69: MÓDULO 4: Custo mensal de reposição do profissional ausente (M4)
A70: X | B70: Custo diário do empregado substituto | C70: Dias | D70: =ROUNDUP((D31+D59+D67)/30,2) -> 0
A71: A | B71: Férias | C71: =ROUND(30/12,2) -> 2.5 | D71: =ROUNDUP($D$70*C71,2) -> 0
A72: B | B72: Ausências por enfermidade | C72: =ROUNDUP(0.66/100*360/12,2) -> 0.2 | D72: =ROUNDUP($D$70*C72,2) -> 0
A73: C | B73: Faltas Justificadas | C73: =ROUNDUP(0.56/100*360/12,2) -> 0.17 | D73: 0
A74: D | B74: Ausência por acidente de trabalho | C74: =ROUNDUP(0.08/100*360/12,2) -> 0.03 | D74: 0
A75: E | B75: Afastamento Parentalidade | C75: =ROUNDUP((0.05+0.03)/100*360/12,2) -> 0.03 | D75: 0
A76: F | B76: Outros (especificar) | C76: 0 | D76: 0
A77: Total do Módulo 4 | D77: =SUM(D71:D76) -> 0
A79: MÓDULO 5: Insumos de mão de obra (M5)
A80: A | B80: EPI e Uniforme | C80: SINAPI Carpinteiro | D80: =EPI!M2 -> 0
A81: B | B81: Materiais e ferramentas | C81: SINAPI Carpinteiro | D81: =FER!M2 -> 0
A82: Total do Módulo 5 | D82: =SUM(D80:D81) -> 0
A83: Nota: Valores mensais por empregado.
A85: MÓDULO 6: Custos indiretos, tributos e lucro (M6)
A86: A | B86: Custos Indiretos | C86: SINAPI | D86: =BDI!C2 -> 0
A87: A.1 | B87: Administração Central | C87: SINAPI | D87: =BDI!C3 -> 0
A88: A.2 | B88: Seguros e Garantias Contratuais | C88: SINAPI | D88: =BDI!C4 -> 0
A89: A.3 | B89: Riscos | C89: SINAPI | D89: =BDI!C5 -> 0
A90: B | B90: Despesas Financeiras | C90: SINAPI | D90: =BDI!C6 -> 0
A91: C | B91: Lucro | C91: SINAPI | D91: =BDI!C7 -> 0
A92: D | B92: Tributos Federais e Estaduais/Municipais | C92: SINAPI | D92: =BDI!C8 -> 0
A93: D.1 | B93: COFINS | C93: SINAPI | D93: =BDI!C9 -> 0
A94: D.2 | B94: PIS | C94: SINAPI | D94: =BDI!C10 -> 0
A95: D.3 | B95: CPRB - (com/sem desoneração) | C95: SINAPI | D95: =BDI!C11 -> 0
A96: D.4 | B96: ISSQN | C96: SINAPI | D96: =BDI!C12 -> 0
A97: Total | D97: =BDI!C13 -> 0
A98: Total do Módulo 6 | D98: =D107*(D97) -> 0
A100: QUADRO-RESUMO CUSTO POR EMPREGADO
A101: Mão-de-obra vinculada à execução contratual (valor por empregado)
A102: A | B102: MÓDULO 1: Composição da remuneração (M1) | D102: =D31 -> 0
A103: B | B103: MÓDULO 2: Encargos e benefícios anuais, mensais e diários (M2) | D103: =D59 -> 0
A104: C | B104: MÓDULO 3: Provisão para rescisão (M3) | D104: =D67 -> 0
A105: D | B105: MÓDULO 4: Custo de reposição do profissional ausente (M4) | D105: =D77 -> 0
A106: E | B106: MÓDULO 5: Insumos de mão de obra (M5) | D106: =D82 -> 0
A107: Subtotal (A + B + C + D + E) | D107: =SUM(D102:D106) -> 0
A108: F | B108: MÓDULO 6: Custos indiretos, tributos e lucro (M6) | D108: =D98 -> 0
A109: Custo mensal do posto | D109: =D107+D108 -> 0
A110: G | B110: RESERVA MENSAL CONTA VINCULADA | D110: =D38+D67 -> 0
A111: H | B111: RESERVA MENSAL REPOSIÇÃO | D111: =D77 -> 0
A112: I | B112: CUSTO MENSAL ORDINÁRIO | D112: =D109-D110-D111 -> 0

Sheet 8.Aju-7
A1: PLANILHAS DE CUSTOS E FORMAÇÃO DE PREÇOS
A2: Discriminação dos serviços
A3: A | B3: Data da Apresentação da Proposta: | D3: 2024-08-26
A4: B | B4: Munícipio/UF: | D4: Brasília/DF
A5: C | B5: Ano do Acordo, Convenção ou Dissídio Coletivo: | C5: SINDISERVICOS/DF | D5: 2024
A6: D | B6: Número de meses de execução contratual: | D6: =12*5 -> 60
A7: E | B7: Tipo de serviço: | D7: Continuado
A8: F | B8: Unidade de medida | D8: Posto
A9: G | B9: Quantidade total a contratar (em função da unidade de medida): | D9: 1
A11: Mão de obra vinculada à execução contratual
A12: Dados complementares para composição dos custos referente à mão de obra
A13: 1 | B13: Tipo de serviço | C13: Ajudante Marceneiro
A14: 2 | B14: Classificação Brasileira de Ocupações (CBO) | C14: 7170-20
A15: 3 | B15: Categoria profissional (vinculada à execução contratual) | C15: Ajudante de obras
A16: 4 | B16: Data base CCT | C16: 2024-01-01
A17: 5 | B17: Vigência CCT | C17: 2024-12-31
A18: 6 | B18: Carga horia semanal | C18: 44 horas/semana
A19: 7 | B19: Piso normativo da categoria profissional | C19: 1629.62
A20: 8 | B20: Salário proposto no contrato | C20: 0
A22: MÓDULO 1: Composição da remuneração (M1)
A23: 1 | B23: Composição da Remuneração | D23: Valor (R$)
A24: A | B24: Salário Base | C24: 1 | D24: =C20 -> 0
A25: B | B25: Adicional de periculosidade | C25: 0 | D25: =ROUNDUP($D$24*C25,2) -> 0
A26: C | B26: Adicional de Insalubridade | C26: 0 | D26: =ROUNDUP($D$24*C26,2) -> 0
A27: D | B27: Adicional Noturno | C27: 0 | D27: 0
A28: E | B28: Hora Noturna Adicional | C28: 0 | D28: 0
A29: F | B29: Adicional de Hora Extra | C29: 0 | D29: 0
A30: G | B30: Outros (especificar) | C30: 0 | D30: 0
A31: Total do Módulo 1 | D31: =SUM(D24:D30) -> 0
A33: MÓDULO 2: Encargos e benefícios anuais, mensais e diários (M2)
A34: 2.1 | B34: 13º (décimo terceiro) salário, férias e adicional de férias | C34: Porcentagem (%) | D34: Valor (R$)
A35: A | B35: 13º salário | C35: 0.0833 | D35: =ROUNDUP($D$31/12,2) -> 0
A36: B | B36: Férias | C36: 0.0833 | D36: =ROUNDUP($D$31/12,2) -> 0
A37: C | B37: Adicional de Férias (1/3 Constitucional) | C37: =C36/3 -> 0.02776666667 | D37: =ROUNDUP($D$31/3/12,2) -> 0
A38: Total submódulo 2.1 | D38: =SUM(D35:D37) -> 0
A40: 2.2 | B40: GPS, FGTS e outras contribuições | D40: Valor (R$)
A41: A | B41: INSS (com/sem desoneração) | C41: 0 | D41: =ROUNDUP($D$31*C41,2) -> 0
A42: B | B42: Salário Educação | C42: 0.025 | D42: =ROUNDUP($D$31*C42,2) -> 0
A43: C | B43: SAT | C43: 0.03 | D43: 0
A44: D | B44: SESC - SESI | C44: 0.015 | D44: 0
A45: E | B45: SENAI - SENAC | C45: 0.01 | D45: 0
A46: F | B46: SEBRAE | C46: 0.006 | D46: 0
A47: G | B47: INCRA | C47: 0.002 | D47: 0
A48: H | B48: FGTS | C48: 0.08 | D48: 0
A49: I | B49: SECONCI | C49: 0.01 | D49: 0
B50: Total submódulo 2.2 | C50: =SUM(C41:C49) -> 0.178 | D50: =SUM(D41:D49) -> 0
A52: 2.3 | B52: Benefícios mensais e diários | C52: Referência | D52: Valor (R$)
A53: A | B53: Vale transporte | C53: CLT | D53: 0
A54: B | B54: Vale alimentação | C54: CCT | D54: 0
A55: C | B55: Assistência Médica-Odontológica e Familiar | C55: SICRO | D55: 0
A56: D | B56: Auxílio Creche | C56: CCT | D56: 0
A57: E | B57: Seguro de Vida e Assistência Funeral | C57: SICRO | D57: 0
B58: Total submódulo 2.3 | D58: =SUM(D53:D57) -> 0
A59: Total do Módulo 2 | D59: =D38+D50+D58 -> 0
A61: MÓDULO 3: Provisão para rescisão (M3)
A62: A | B62: Aviso Prévio Indenizado | C62: 0.0324 | D62: =ROUNDUP($D$31*C62,2) -> 0
A63: B | B63: Aviso Prévio Trabalhado | C63: 0.0008 | D63: =ROUNDUP($D$31*C63,2) -> 0
A64: C | B64: Incidência dos encargos sobre o Aviso Prévio | C64: 0.0029 | D64: 0
A65: D | B65: Incidencia dos encargos sobre 13o-ferias (submodulo 2.2 sobre 2.1) | C65: 0.0612 | D65: 0
A66: E | B66: Multa sobre saldo FGTS | C66: =0.08*0.4 -> 0.032 | D66: 0
A67: Total do Módulo 3 | D67: =SUM(D62:D66) -> 0
A69: MÓDULO 4: Custo mensal de reposição do profissional ausente (M4)
A70: X | B70: Custo diário do empregado substituto | C70: Dias | D70: =ROUNDUP((D31+D59+D67)/30,2) -> 0
A71: A | B71: Férias | C71: =ROUND(30/12,2) -> 2.5 | D71: =ROUNDUP($D$70*C71,2) -> 0
A72: B | B72: Ausências por enfermidade | C72: =ROUNDUP(0.66/100*360/12,2) -> 0.2 | D72: =ROUNDUP($D$70*C72,2) -> 0
A73: C | B73: Faltas Justificadas | C73: =ROUNDUP(0.56/100*360/12,2) -> 0.17 | D73: 0
A74: D | B74: Ausência por acidente de trabalho | C74: =ROUNDUP(0.08/100*360/12,2) -> 0.03 | D74: 0
A75: E | B75: Afastamento Parentalidade | C75: =ROUNDUP((0.05+0.03)/100*360/12,2) -> 0.03 | D75: 0
A76: F | B76: Outros (especificar) | C76: 0 | D76: 0
A77: Total do Módulo 4 | D77: =SUM(D71:D76) -> 0
A79: MÓDULO 5: Insumos de mão de obra (M5)
A80: A | B80: EPI e Uniforme | C80: SINAPI Carpinteiro | D80: =EPI!M2 -> 0
A81: B | B81: Materiais e ferramentas | C81: SINAPI Carpinteiro | D81: =FER!M2 -> 0
A82: Total do Módulo 5 | D82: =SUM(D80:D81) -> 0
A83: Nota: Valores mensais por empregado.
A85: MÓDULO 6: Custos indiretos, tributos e lucro (M6)
A86: A | B86: Custos Indiretos | C86: SINAPI | D86: =BDI!C2 -> 0
A87: A.1 | B87: Administração Central | C87: SINAPI | D87: =BDI!C3 -> 0
A88: A.2 | B88: Seguros e Garantias Contratuais | C88: SINAPI | D88: =BDI!C4 -> 0
A89: A.3 | B89: Riscos | C89: SINAPI | D89: =BDI!C5 -> 0
A90: B | B90: Despesas Financeiras | C90: SINAPI | D90: =BDI!C6 -> 0
A91: C | B91: Lucro | C91: SINAPI | D91: =BDI!C7 -> 0
A92: D | B92: Tributos Federais e Estaduais/Municipais | C92: SINAPI | D92: =BDI!C8 -> 0
A93: D.1 | B93: COFINS | C93: SINAPI | D93: =BDI!C9 -> 0
A94: D.2 | B94: PIS | C94: SINAPI | D94: =BDI!C10 -> 0
A95: D.3 | B95: CPRB - (com/sem desoneração) | C95: SINAPI | D95: =BDI!C11 -> 0
A96: D.4 | B96: ISSQN | C96: SINAPI | D96: =BDI!C12 -> 0
A97: Total | D97: =BDI!C13 -> 0
A98: Total do Módulo 6 | D98: =D107*(D97) -> 0
A100: QUADRO-RESUMO CUSTO POR EMPREGADO
A101: Mão-de-obra vinculada à execução contratual (valor por empregado)
A102: A | B102: MÓDULO 1: Composição da remuneração (M1) | D102: =D31 -> 0
A103: B | B103: MÓDULO 2: Encargos e benefícios anuais, mensais e diários (M2) | D103: =D59 -> 0
A104: C | B104: MÓDULO 3: Provisão para rescisão (M3) | D104: =D67 -> 0
A105: D | B105: MÓDULO 4: Custo de reposição do profissional ausente (M4) | D105: =D77 -> 0
A106: E | B106: MÓDULO 5: Insumos de mão de obra (M5) | D106: =D82 -> 0
A107: Subtotal (A + B + C + D + E) | D107: =SUM(D102:D106) -> 0
A108: F | B108: MÓDULO 6: Custos indiretos, tributos e lucro (M6) | D108: =D98 -> 0
A109: Custo mensal do posto | D109: =D107+D108 -> 0
A110: G | B110: RESERVA MENSAL CONTA VINCULADA | D110: =D38+D67 -> 0
A111: H | B111: RESERVA MENSAL REPOSIÇÃO | D111: =D77 -> 0
A112: I | B112: CUSTO MENSAL ORDINÁRIO | D112: =D109-D110-D111 -> 0

Sheet 9.Enca
A1: PLANILHAS DE CUSTOS E FORMAÇÃO DE PREÇOS
A2: Discriminação dos serviços
A3: A | B3: Data da Apresentação da Proposta: | D3: 2024-08-26
A4: B | B4: Munícipio/UF: | D4: Brasília/DF
A5: C | B5: Ano do Acordo, Convenção ou Dissídio Coletivo: | C5: SINDISERVICOS/DF | D5: 2024
A6: D | B6: Número de meses de execução contratual: | D6: =12*5 -> 60
A7: E | B7: Tipo de serviço: | D7: Continuado
A8: F | B8: Unidade de medida | D8: Posto
A9: G | B9: Quantidade total a contratar (em função da unidade de medida): | D9: 1
A11: Mão de obra vinculada à execução contratual
A12: Dados complementares para composição dos custos referente à mão de obra
A13: 1 | B13: Tipo de serviço | C13: Técnico em Manutenção e Hidráulica
A14: 2 | B14: Classificação Brasileira de Ocupações (CBO) | C14: 7241-10
A15: 3 | B15: Categoria profissional (vinculada à execução contratual) | C15: Encanador
A16: 4 | B16: Data base CCT | C16: 2024-01-01
A17: 5 | B17: Vigência CCT | C17: 2024-12-31
A18: 6 | B18: Carga horia semanal | C18: 44 horas/semana
A19: 7 | B19: Piso normativo da categoria profissional | C19: 2405.96
A20: 8 | B20: Salário proposto no contrato | C20: 0
A22: MÓDULO 1: Composição da remuneração (M1)
A23: 1 | B23: Composição da Remuneração | D23: Valor (R$)
A24: A | B24: Salário Base | C24: 1 | D24: =C20 -> 0
A25: B | B25: Adicional de periculosidade | C25: 0 | D25: =ROUNDUP($D$24*C25,2) -> 0
A26: C | B26: Adicional de Insalubridade | C26: 0.4 | D26: =ROUNDUP($D$24*C26,2) -> 0
A27: D | B27: Adicional Noturno | C27: 0 | D27: 0
A28: E | B28: Hora Noturna Adicional | C28: 0 | D28: 0
A29: F | B29: Adicional de Hora Extra | C29: 0 | D29: 0
A30: G | B30: Outros (especificar) | C30: 0 | D30: 0
A31: Total do Módulo 1 | D31: =SUM(D24:D30) -> 0
A33: MÓDULO 2: Encargos e benefícios anuais, mensais e diários (M2)
A34: 2.1 | B34: 13º (décimo terceiro) salário, férias e adicional de férias | C34: Porcentagem (%) | D34: Valor (R$)
A35: A | B35: 13º salário | C35: 0.0833 | D35: =ROUNDUP($D$31/12,2) -> 0
A36: B | B36: Férias | C36: 0.0833 | D36: =ROUNDUP($D$31/12,2) -> 0
A37: C | B37: Adicional de Férias (1/3 Constitucional) | C37: =C36/3 -> 0.02776666667 | D37: =ROUNDUP($D$31/3/12,2) -> 0
A38: Total submódulo 2.1 | D38: =SUM(D35:D37) -> 0
A40: 2.2 | B40: GPS, FGTS e outras contribuições | D40: Valor (R$)
A41: A | B41: INSS (com/sem desoneração) | C41: 0 | D41: =ROUNDUP($D$31*C41,2) -> 0
A42: B | B42: Salário Educação | C42: 0.025 | D42: =ROUNDUP($D$31*C42,2) -> 0
A43: C | B43: SAT | C43: 0.03 | D43: 0
A44: D | B44: SESC - SESI | C44: 0.015 | D44: 0
A45: E | B45: SENAI - SENAC | C45: 0.01 | D45: 0
A46: F | B46: SEBRAE | C46: 0.006 | D46: 0
A47: G | B47: INCRA | C47: 0.002 | D47: 0
A48: H | B48: FGTS | C48: 0.08 | D48: 0
A49: I | B49: SECONCI | C49: 0.01 | D49: 0
B50: Total submódulo 2.2 | C50: =SUM(C41:C49) -> 0.178 | D50: =SUM(D41:D49) -> 0
A52: 2.3 | B52: Benefícios mensais e diários | C52: Referência | D52: Valor (R$)
A53: A | B53: Vale transporte | C53: CLT | D53: 0
A54: B | B54: Vale alimentação | C54: CCT | D54: 0
A55: C | B55: Assistência Médica-Odontológica e Familiar | C55: SICRO | D55: 0
A56: D | B56: Auxílio Creche | C56: CCT | D56: 0
A57: E | B57: Seguro de Vida e Assistência Funeral | C57: SICRO | D57: 0
B58: Total submódulo 2.3 | D58: =SUM(D53:D57) -> 0
A59: Total do Módulo 2 | D59: =D38+D50+D58 -> 0
A61: MÓDULO 3: Provisão para rescisão (M3)
A62: A | B62: Aviso Prévio Indenizado | C62: 0.0324 | D62: =ROUNDUP($D$31*C62,2) -> 0
A63: B | B63: Aviso Prévio Trabalhado | C63: 0.0008 | D63: =ROUNDUP($D$31*C63,2) -> 0
A64: C | B64: Incidência dos encargos sobre o Aviso Prévio | C64: 0.0029 | D64: 0
A65: D | B65: Incidencia dos encargos sobre 13o-ferias (submodulo 2.2 sobre 2.1) | C65: 0.0612 | D65: 0
A66: E | B66: Multa sobre saldo FGTS | C66: =0.08*0.4 -> 0.032 | D66: 0
A67: Total do Módulo 3 | D67: =SUM(D62:D66) -> 0
A69: MÓDULO 4: Custo mensal de reposição do profissional ausente (M4)
A70: X | B70: Custo diário do empregado substituto | C70: Dias | D70: =ROUNDUP((D31+D59+D67)/30,2) -> 0
A71: A | B71: Férias | C71: =ROUND(30/12,2) -> 2.5 | D71: =ROUNDUP($D$70*C71,2) -> 0
A72: B | B72: Ausências por enfermidade | C72: =ROUNDUP(0.66/100*360/12,2) -> 0.2 | D72: =ROUNDUP($D$70*C72,2) -> 0
A73: C | B73: Faltas Justificadas | C73: =ROUNDUP(0.56/100*360/12,2) -> 0.17 | D73: 0
A74: D | B74: Ausência por acidente de trabalho | C74: =ROUNDUP(0.08/100*360/12,2) -> 0.03 | D74: 0
A75: E | B75: Afastamento Parentalidade | C75: =ROUNDUP((0.05+0.03)/100*360/12,2) -> 0.03 | D75: 0
A76: F | B76: Outros (especificar) | C76: 0 | D76: 0
A77: Total do Módulo 4 | D77: =SUM(D71:D76) -> 0
A79: MÓDULO 5: Insumos de mão de obra (M5)
A80: A | B80: EPI e Uniforme | C80: SINAPI Encanador | D80: =EPI!M4 -> 0
A81: B | B81: Materiais e ferramentas | C81: SINAPI Encanador | D81: =FER!M4 -> 0
A82: Total do Módulo 5 | D82: =SUM(D80:D81) -> 0
A83: Nota: Valores mensais por empregado.
A85: MÓDULO 6: Custos indiretos, tributos e lucro (M6)
A86: A | B86: Custos Indiretos | C86: SINAPI | D86: =BDI!C2 -> 0
A87: A.1 | B87: Administração Central | C87: SINAPI | D87: =BDI!C3 -> 0
A88: A.2 | B88: Seguros e Garantias Contratuais | C88: SINAPI | D88: =BDI!C4 -> 0
A89: A.3 | B89: Riscos | C89: SINAPI | D89: =BDI!C5 -> 0
A90: B | B90: Despesas Financeiras | C90: SINAPI | D90: =BDI!C6 -> 0
A91: C | B91: Lucro | C91: SINAPI | D91: =BDI!C7 -> 0
A92: D | B92: Tributos Federais e Estaduais/Municipais | C92: SINAPI | D92: =BDI!C8 -> 0
A93: D.1 | B93: COFINS | C93: SINAPI | D93: =BDI!C9 -> 0
A94: D.2 | B94: PIS | C94: SINAPI | D94: =BDI!C10 -> 0
A95: D.3 | B95: CPRB - (com/sem desoneração) | C95: SINAPI | D95: =BDI!C11 -> 0
A96: D.4 | B96: ISSQN | C96: SINAPI | D96: =BDI!C12 -> 0
A97: Total | D97: =BDI!C13 -> 0
A98: Total do Módulo 6 | D98: =D107*(D97) -> 0
A100: QUADRO-RESUMO CUSTO POR EMPREGADO
A101: Mão-de-obra vinculada à execução contratual (valor por empregado)
A102: A | B102: MÓDULO 1: Composição da remuneração (M1) | D102: =D31 -> 0
A103: B | B103: MÓDULO 2: Encargos e benefícios anuais, mensais e diários (M2) | D103: =D59 -> 0
A104: C | B104: MÓDULO 3: Provisão para rescisão (M3) | D104: =D67 -> 0
A105: D | B105: MÓDULO 4: Custo de reposição do profissional ausente (M4) | D105: =D77 -> 0
A106: E | B106: MÓDULO 5: Insumos de mão de obra (M5) | D106: =D82 -> 0
A107: Subtotal (A + B + C + D + E) | D107: =SUM(D102:D106) -> 0
A108: F | B108: MÓDULO 6: Custos indiretos, tributos e lucro (M6) | D108: =D98 -> 0
A109: Custo mensal do posto | D109: =D107+D108 -> 0
A110: G | B110: RESERVA MENSAL CONTA VINCULADA | D110: =D38+D67 -> 0
A111: H | B111: RESERVA MENSAL REPOSIÇÃO | D111: =D77 -> 0
A112: I | B112: CUSTO MENSAL ORDINÁRIO | D112: =D109-D110-D111 -> 0

Sheet 10.Aju-9
A1: PLANILHAS DE CUSTOS E FORMAÇÃO DE PREÇOS
A2: Discriminação dos serviços
A3: A | B3: Data da Apresentação da Proposta: | D3: 2024-08-26
A4: B | B4: Munícipio/UF: | D4: Brasília/DF
A5: C | B5: Ano do Acordo, Convenção ou Dissídio Coletivo: | C5: SINDISERVICOS/DF | D5: 2024
A6: D | B6: Número de meses de execução contratual: | D6: =12*5 -> 60
A7: E | B7: Tipo de serviço: | D7: Continuado
A8: F | B8: Unidade de medida | D8: Posto
A9: G | B9: Quantidade total a contratar (em função da unidade de medida): | D9: 1
A11: Mão de obra vinculada à execução contratual
A12: Dados complementares para composição dos custos referente à mão de obra
A13: 1 | B13: Tipo de serviço | C13: Ajudante Geral
A14: 2 | B14: Classificação Brasileira de Ocupações (CBO) | C14: 7170-20
A15: 3 | B15: Categoria profissional (vinculada à execução contratual) | C15: Ajudante de obras
A16: 4 | B16: Data base CCT | C16: 2024-01-01
A17: 5 | B17: Vigência CCT | C17: 2024-12-31
A18: 6 | B18: Carga horia semanal | C18: 44 horas/semana
A19: 7 | B19: Piso normativo da categoria profissional | C19: 1629.62
A20: 8 | B20: Salário proposto no contrato | C20: 0
A22: MÓDULO 1: Composição da remuneração (M1)
A23: 1 | B23: Composição da Remuneração | D23: Valor (R$)
A24: A | B24: Salário Base | C24: 1 | D24: =C20 -> 0
A25: B | B25: Adicional de periculosidade | C25: 0 | D25: =ROUNDUP($D$24*C25,2) -> 0
A26: C | B26: Adicional de Insalubridade | C26: 0 | D26: =ROUNDUP($D$24*C26,2) -> 0
A27: D | B27: Adicional Noturno | C27: 0 | D27: 0
A28: E | B28: Hora Noturna Adicional | C28: 0 | D28: 0
A29: F | B29: Adicional de Hora Extra | C29: 0 | D29: 0
A30: G | B30: Outros (especificar) | C30: 0 | D30: 0
A31: Total do Módulo 1 | D31: =SUM(D24:D30) -> 0
A33: MÓDULO 2: Encargos e benefícios anuais, mensais e diários (M2)
A34: 2.1 | B34: 13º (décimo terceiro) salário, férias e adicional de férias | C34: Porcentagem (%) | D34: Valor (R$)
A35: A | B35: 13º salário | C35: 0.0833 | D35: =ROUNDUP($D$31/12,2) -> 0
A36: B | B36: Férias | C36: 0.0833 | D36: =ROUNDUP($D$31/12,2) -> 0
A37: C | B37: Adicional de Férias (1/3 Constitucional) | C37: =C36/3 -> 0.02776666667 | D37: =ROUNDUP($D$31/3/12,2) -> 0
A38: Total submódulo 2.1 | D38: =SUM(D35:D37) -> 0
A40: 2.2 | B40: GPS, FGTS e outras contribuições | D40: Valor (R$)
A41: A | B41: INSS (com/sem desoneração) | C41: 0 | D41: =ROUNDUP($D$31*C41,2) -> 0
A42: B | B42: Salário Educação | C42: 0.025 | D42: =ROUNDUP($D$31*C42,2) -> 0
A43: C | B43: SAT | C43: 0.03 | D43: 0
A44: D | B44: SESC - SESI | C44: 0.015 | D44: 0
A45: E | B45: SENAI - SENAC | C45: 0.01 | D45: 0
A46: F | B46: SEBRAE | C46: 0.006 | D46: 0
A47: G | B47: INCRA | C47: 0.002 | D47: 0
A48: H | B48: FGTS | C48: 0.08 | D48: 0
A49: I | B49: SECONCI | C49: 0.01 | D49: 0
B50: Total submódulo 2.2 | C50: =SUM(C41:C49) -> 0.178 | D50: =SUM(D41:D49) -> 0
A52: 2.3 | B52: Benefícios mensais e diários | C52: Referência | D52: Valor (R$)
A53: A | B53: Vale transporte | C53: CLT | D53: 0
A54: B | B54: Vale alimentação | C54: CCT | D54: 0
A55: C | B55: Assistência Médica-Odontológica e Familiar | C55: SICRO | D55: 0
A56: D | B56: Auxílio Creche | C56: CCT | D56: 0
A57: E | B57: Seguro de Vida e Assistência Funeral | C57: SICRO | D57: 0
B58: Total submódulo 2.3 | D58: =SUM(D53:D57) -> 0
A59: Total do Módulo 2 | D59: =D38+D50+D58 -> 0
A61: MÓDULO 3: Provisão para rescisão (M3)
A62: A | B62: Aviso Prévio Indenizado | C62: 0.0324 | D62: =ROUNDUP($D$31*C62,2) -> 0
A63: B | B63: Aviso Prévio Trabalhado | C63: 0.0008 | D63: =ROUNDUP($D$31*C63,2) -> 0
A64: C | B64: Incidência dos encargos sobre o Aviso Prévio | C64: 0.0029 | D64: 0
A65: D | B65: Incidencia dos encargos sobre 13o-ferias (submodulo 2.2 sobre 2.1) | C65: 0.0612 | D65: 0
A66: E | B66: Multa sobre saldo FGTS | C66: =0.08*0.4 -> 0.032 | D66: 0
A67: Total do Módulo 3 | D67: =SUM(D62:D66) -> 0
A69: MÓDULO 4: Custo mensal de reposição do profissional ausente (M4)
A70: X | B70: Custo diário do empregado substituto | C70: Dias | D70: =ROUNDUP((D31+D59+D67)/30,2) -> 0
A71: A | B71: Férias | C71: =ROUND(30/12,2) -> 2.5 | D71: =ROUNDUP($D$70*C71,2) -> 0
A72: B | B72: Ausências por enfermidade | C72: =ROUNDUP(0.66/100*360/12,2) -> 0.2 | D72: =ROUNDUP($D$70*C72,2) -> 0
A73: C | B73: Faltas Justificadas | C73: =ROUNDUP(0.56/100*360/12,2) -> 0.17 | D73: 0
A74: D | B74: Ausência por acidente de trabalho | C74: =ROUNDUP(0.08/100*360/12,2) -> 0.03 | D74: 0
A75: E | B75: Afastamento Parentalidade | C75: =ROUNDUP((0.05+0.03)/100*360/12,2) -> 0.03 | D75: 0
A76: F | B76: Outros (especificar) | C76: 0 | D76: 0
A77: Total do Módulo 4 | D77: =SUM(D71:D76) -> 0
A79: MÓDULO 5: Insumos de mão de obra (M5)
A80: A | B80: EPI e Uniforme | C80: SINAPI Pintor | D80: =EPI!M7 -> 0
A81: B | B81: Materiais e ferramentas | C81: SINAPI Pintor | D81: =FER!M7 -> 0
A82: Total do Módulo 5 | D82: =SUM(D80:D81) -> 0
A83: Nota: Valores mensais por empregado.
A85: MÓDULO 6: Custos indiretos, tributos e lucro (M6)
A86: A | B86: Custos Indiretos | C86: SINAPI | D86: =BDI!C2 -> 0
A87: A.1 | B87: Administração Central | C87: SINAPI | D87: =BDI!C3 -> 0
A88: A.2 | B88: Seguros e Garantias Contratuais | C88: SINAPI | D88: =BDI!C4 -> 0
A89: A.3 | B89: Riscos | C89: SINAPI | D89: =BDI!C5 -> 0
A90: B | B90: Despesas Financeiras | C90: SINAPI | D90: =BDI!C6 -> 0
A91: C | B91: Lucro | C91: SINAPI | D91: =BDI!C7 -> 0
A92: D | B92: Tributos Federais e Estaduais/Municipais | C92: SINAPI | D92: =BDI!C8 -> 0
A93: D.1 | B93: COFINS | C93: SINAPI | D93: =BDI!C9 -> 0
A94: D.2 | B94: PIS | C94: SINAPI | D94: =BDI!C10 -> 0
A95: D.3 | B95: CPRB - (com/sem desoneração) | C95: SINAPI | D95: =BDI!C11 -> 0
A96: D.4 | B96: ISSQN | C96: SINAPI | D96: =BDI!C12 -> 0
A97: Total | D97: =BDI!C13 -> 0
A98: Total do Módulo 6 | D98: =D107*(D97) -> 0
A100: QUADRO-RESUMO CUSTO POR EMPREGADO
A101: Mão-de-obra vinculada à execução contratual (valor por empregado)
A102: A | B102: MÓDULO 1: Composição da remuneração (M1) | D102: =D31 -> 0
A103: B | B103: MÓDULO 2: Encargos e benefícios anuais, mensais e diários (M2) | D103: =D59 -> 0
A104: C | B104: MÓDULO 3: Provisão para rescisão (M3) | D104: =D67 -> 0
A105: D | B105: MÓDULO 4: Custo de reposição do profissional ausente (M4) | D105: =D77 -> 0
A106: E | B106: MÓDULO 5: Insumos de mão de obra (M5) | D106: =D82 -> 0
A107: Subtotal (A + B + C + D + E) | D107: =SUM(D102:D106) -> 0
A108: F | B108: MÓDULO 6: Custos indiretos, tributos e lucro (M6) | D108: =D98 -> 0
A109: Custo mensal do posto | D109: =D107+D108 -> 0
A110: G | B110: RESERVA MENSAL CONTA VINCULADA | D110: =D38+D67 -> 0
A111: H | B111: RESERVA MENSAL REPOSIÇÃO | D111: =D77 -> 0
A112: I | B112: CUSTO MENSAL ORDINÁRIO | D112: =D109-D110-D111 -> 0

Sheet BDI
A1: BDI SERVIÇOS
A2: A | B2: Custos Indiretos | C2: =SUM(C3:C5) -> 0
A3: A.1 | B3: Administração Central | C3: 0
A4: A.2 | B4: Seguros e Garantias Contratuais | C4: 0
A5: A.3 | B5: Riscos | C5: 0
A6: B | B6: Despesas Financeiras | C6: 0
A7: C | B7: Lucro | C7: 0
A8: D | B8: Tributos Federais e Estaduais/Municipais | C8: =SUM(C9:C12) -> 0
A9: D.1 | B9: COFINS | C9: 0
A10: D.2 | B10: PIS | C10: 0
A11: D.3 | B11: CPRB - (com/sem desoneração) | C11: 0
A12: D.4 | B12: ISSQN | C12: 0
A13: Total | C13: =ROUND((1+C2)*(1+C6)*(1+C7)/(1-C8)-1,4) -> 0
A16: BDI MATERIAIS
A17: A | B17: Custos Indiretos | C17: =SUM(C18:C20) -> 0
A18: A.1 | B18: Administração Central | C18: 0
A19: A.2 | B19: Seguros e Garantias Contratuais | C19: 0
A20: A.3 | B20: Riscos | C20: 0
A21: B | B21: Despesas Financeiras | C21: 0
A22: C | B22: Lucro | C22: 0
A23: D | B23: Tributos Federais e Estaduais/Municipais | C23: =SUM(C24:C27) -> 0
A24: D.1 | B24: COFINS | C24: 0
A25: D.2 | B25: PIS | C25: 0
A26: D.3 | B26: CPRB - (com/sem desoneração) | C26: 0
A27: D.4 | B27: ISSQN | C27: 0
A28: Total | C28: =ROUND((1+C17)*(1+C21)*(1+C22)/(1-C23)-1,4) -> 0

Sheet MAT
D1: Obra | E1: Bancos | G1: BDI SINAPI | H1: BDI Proposta | I1: Encargos Sociais | N1: DESÁGIO s/ BDI | O1: DESÁGIO c/ BDI
D2: Itens de manutenção | E2: SINAPI - 07/2024 - Distrito Federal SBC - 07/2024 - Distrito Federal ORSE - 06/2024 - Sergipe SEINFRA - 028 - Ceará SETOP - 04/2024 - Minas Gerais CPOS/CDHU - 06/2024 - São Paulo FDE - 04/2024 - São Paulo AGETOP CIVIL - 04/2024 - Goiás SCO - 07/2024 - Rio de Janeiro | G2: 0.163 | H2: =BDI!$C$28 -> 0 | I2: Não Desonerado: embutido nos preços unitário dos insumos de mão de obra, de acordo com as bases. | N2: =ROUND((N5-I5)/N5,4) -> 1 | O2: =ROUND((O5-J5)/O5,4) -> 1
A3: Orçamento Sintético
A4: Item | B4: Código | C4: Banco | D4: Descrição | E4: Und | F4: Quant. | G4: Valor Unit Proposta s/ BDI | H4: Valor Unit Proposta c/ BDI | I4: Total s/ BDI | J4: Total c/ BDI | L4: Valor Unit Referencia s/ BDI | M4: Valor Unit Referencia c/ BDI | N4: Total s/ BDI | O4: Total c/ BDI
A5: TOTAL | I5: =I6+I12+I17+I51+I60+I83+I97+I144+I149+I154+I159+I163+I168+I173+I218+I225+I243 -> 0 | J5: =J6+J12+J17+J51+J60+J83+J97+J144+J149+J154+J159+J163+J168+J173+J218+J225+J243 -> 0 | N5: =N6+N12+N17+N51+N60+N83+N97+N144+N149+N154+N159+N163+N168+N173+N218+N225+N243 -> 571572.82 | O5: =O6+O12+O17+O51+O60+O83+O97+O144+O149+O154+O159+O163+O168+O173+O218+O225+O243 -> 631530.32
A6: 1.1 | D6: Tubo água fria | I6: =SUM(I7:I11) -> 0 | J6: =SUM(J7:J11) -> 0 | N6: =SUM(N7:N11) -> 2439 | O6: =SUM(O7:O11) -> 2836.5
A7: 1.1.1 | B7: 00009867 | C7: SINAPI | D7: TUBO PVC, SOLDAVEL, DE 20 MM, AGUA FRIA (NBR-5648) | E7: M | F7: 60 | G7: 0 | H7: =ROUND(G7*(1+$H$2),2) -> 0 | I7: =ROUND(G7*F7,2) -> 0 | J7: =ROUND(H7*F7,2) -> 0 | L7: 3.43 | M7: =ROUND(L7*(1+$G$2),2) -> 3.99 | N7: =ROUND(L7*$F7,2) -> 205.8 | O7: =ROUND(M7*$F7,2) -> 239.4
A8: 1.1.2 | B8: 00009868 | C8: SINAPI | D8: TUBO PVC, SOLDAVEL, DE 25 MM, AGUA FRIA (NBR-5648) | E8: M | F8: 60 | G8: 0 | H8: =ROUND(G8*(1+$H$2),2) -> 0 | I8: =ROUND(G8*F8,2) -> 0 | J8: =ROUND(H8*F8,2) -> 0 | L8: 3.87 | M8: =ROUND(L8*(1+$G$2),2) -> 4.5 | N8: =ROUND(L8*$F8,2) -> 232.2 | O8: =ROUND(M8*$F8,2) -> 270
A9: 1.1.3 | B9: 00009874 | C9: SINAPI | D9: TUBO PVC, SOLDAVEL, DE 40 MM, AGUA FRIA (NBR-5648) | E9: M | F9: 30 | G9: 0 | H9: 0 | I9: 0 | J9: 0 | L9: 13.11 | M9: 15.25 | N9: 393.3 | O9: 457.5
A10: 1.1.4 | B10: 00009875 | C10: SINAPI | D10: TUBO PVC, SOLDAVEL, DE 50 MM, AGUA FRIA (NBR-5648) | E10: M | F10: 30 | G10: 0 | H10: 0 | I10: 0 | J10: 0 | L10: 14.38 | M10: 16.72 | N10: 431.4 | O10: 501.6
A11: 1.1.5 | B11: 00009871 | C11: SINAPI | D11: TUBO PVC, SOLDAVEL, DE 75 MM, AGUA FRIA (NBR-5648) | E11: M | F11: 30 | G11: 0 | H11: 0 | I11: 0 | J11: 0 | L11: 39.21 | M11: 45.6 | N11: 1176.3 | O11: 1368
A12: 1.2 | D12: Tubo esgoto | I12: =SUM(I13:I16) -> 0 | J12: =SUM(J13:J16) -> 0 | N12: =SUM(N13:N16) -> 1581 | O12: =SUM(O13:O16) -> 1838.4
A13: 1.2.1 | B13: 00009835 | C13: SINAPI | D13: TUBO PVC SERIE NORMAL, DN 40 MM, PARA ESGOTO PREDIAL (NBR 5688) | E13: M | F13: 30 | G13: 0 | H13: 0 | I13: 0 | J13: 0 | L13: 5.61 | M13: =ROUND(L13*(1+$G$2),2) -> 6.52 | N13: 168.3 | O13: =ROUND(M13*$F13,2) -> 195.6
A14: 1.2.2 | B14: 00009838 | C14: SINAPI | D14: TUBO PVC SERIE NORMAL, DN 50 MM, PARA ESGOTO PREDIAL (NBR 5688) | E14: M | F14: 30 | G14: 0 | H14: 0 | I14: 0 | J14: 0 | L14: 9.26 | M14: 10.77 | N14: 277.8 | O14: =ROUND(M14*$F14,2) -> 323.1
A15: 1.2.3 | B15: 00009837 | C15: SINAPI | D15: TUBO PVC SERIE NORMAL, DN 75 MM, PARA ESGOTO PREDIAL (NBR 5688) | E15: M | F15: 30 | G15: 0 | H15: 0 | I15: 0 | J15: 0 | L15: 12.15 | M15: 14.13 | N15: 364.5 | O15: 423.9
A16: 1.2.4 | B16: 00009836 | C16: SINAPI | D16: TUBO PVC SERIE NORMAL, DN 100 MM, PARA ESGOTO PREDIAL (NBR 5688) | E16: M | F16: 60 | G16: 0 | H16: 0 | I16: 0 | J16: 0 | L16: 12.84 | M16: 14.93 | N16: 770.4 | O16: 895.8
A17: 1.3 | D17: Conexões água fria | I17: =SUM(I18:I50) -> 0 | J17: =SUM(J18:J50) -> 0 | N17: =SUM(N18:N50) -> 6377.45 | O17: =SUM(O18:O50) -> 7416.65
A18: 1.3.1 | B18: 005726 | C18: SBC | D18: PLUG PVC ROSCAVEL 3/4" | E18: UN | F18: 25 | G18: 0 | H18: 0 | I18: 0 | J18: 0 | L18: 1.72 | M18: 2 | N18: 43 | O18: =ROUND(M18*$F18,2) -> 50
A19: 1.3.2 | B19: 005725 | C19: SBC | D19: PLUG PVC ROSCAVEL 1/2" | E19: UN | F19: 25 | G19: 0 | H19: 0 | I19: 0 | J19: 0 | L19: 1.13 | M19: 1.31 | N19: 28.25 | O19: =ROUND(M19*$F19,2) -> 32.75
A20: 1.3.3 | B20: 00003542 | C20: SINAPI | D20: JOELHO PVC, SOLDAVEL, 90 GRAUS, 20 MM, COR MARROM, PARA AGUA FRIA PREDIAL | E20: UN | F20: 30 | G20: 0 | H20: 0 | I20: 0 | J20: 0 | L20: 0.55 | M20: 0.64 | N20: 16.5 | O20: 19.2
A21: 1.3.4 | B21: 00003529 | C21: SINAPI | D21: JOELHO PVC, SOLDAVEL, 90 GRAUS, 25 MM, COR MARROM, PARA AGUA FRIA PREDIAL | E21: UN | F21: 30 | G21: 0 | H21: 0 | I21: 0 | J21: 0 | L21: 0.68 | M21: 0.79 | N21: 20.4 | O21: 23.7
A22: 1.3.5 | B22: 00003515 | C22: SINAPI | D22: JOELHO PVC, SOLDAVEL, COM BUCHA DE LATAO, 90 GRAUS, 20 MM X 1/2", PARA AGUA FRIA PREDIAL | E22: UN | F22: 30 | G22: 0 | H22: 0 | I22: 0 | J22: 0 | L22: 6.07 | M22: 7.06 | N22: 182.1 | O22: 211.8
A23: 1.3.6 | B23: 00003524 | C23: SINAPI | D23: JOELHO PVC, SOLDAVEL, COM BUCHA DE LATAO, 90 GRAUS, 25 MM X 3/4", PARA AGUA FRIA PREDIAL | E23: UN | F23: 30 | G23: 0 | H23: 0 | I23: 0 | J23: 0 | L23: 7.51 | M23: 8.73 | N23: 225.3 | O23: 261.9
A24: 1.3.7 | B24: 00001955 | C24: SINAPI | D24: CURVA DE PVC 90 GRAUS, SOLDAVEL, 20 MM, COR MARROM, PARA AGUA FRIA PREDIAL | E24: UN | F24: 10 | G24: 0 | H24: 0 | I24: 0 | J24: 0 | L24: 1.97 | M24: 2.29 | N24: 19.7 | O24: 22.9
A25: 1.3.8 | B25: 00001956 | C25: SINAPI | D25: CURVA DE PVC 90 GRAUS, SOLDAVEL, 25 MM, COR MARROM, PARA AGUA FRIA PREDIAL | E25: UN | F25: 10 | G25: 0 | H25: 0 | I25: 0 | J25: 0 | L25: 3 | M25: 3.49 | N25: 30 | O25: 34.9
A26: 1.3.9 | B26: 00003499 | C26: SINAPI | D26: JOELHO, PVC SOLDAVEL, 45 GRAUS, 20 MM, COR MARROM, PARA AGUA FRIA PREDIAL | E26: UN | F26: 15 | G26: 0 | H26: 0 | I26: 0 | J26: 0 | L26: 1.05 | M26: 1.22 | N26: 15.75 | O26: 18.3
A27: 1.3.10 | B27: 00003500 | C27: SINAPI | D27: JOELHO, PVC SOLDAVEL, 45 GRAUS, 25 MM, COR MARROM, PARA AGUA FRIA PREDIAL | E27: UN | F27: 15 | G27: 0 | H27: 0 | I27: 0 | J27: 0 | L27: 1.4 | M27: 1.63 | N27: 21 | O27: 24.45
A28: 1.3.11 | B28: 00001926 | C28: SINAPI | D28: CURVA DE PVC 45 GRAUS, SOLDAVEL, 20 MM, COR MARROM, PARA AGUA FRIA PREDIAL | E28: UN | F28: 10 | G28: 0 | H28: 0 | I28: 0 | J28: 0 | L28: 2.04 | M28: 2.37 | N28: 20.4 | O28: 23.7
A29: 1.3.12 | B29: 00001927 | C29: SINAPI | D29: CURVA DE PVC 45 GRAUS, SOLDAVEL, 25 MM, COR MARROM, PARA AGUA FRIA PREDIAL | E29: UN | F29: 10 | G29: 0 | H29: 0 | I29: 0 | J29: 0 | L29: 2.28 | M29: 2.65 | N29: 22.8 | O29: 26.5
A30: 1.3.13 | B30: 00003854 | C30: SINAPI | D30: LUVA DE CORRER PARA TUBO SOLDAVEL, PVC, 20 MM, PARA AGUA FRIA PREDIAL | E30: UN | F30: 15 | G30: 0 | H30: 0 | I30: 0 | J30: 0 | L30: 9.88 | M30: 11.49 | N30: 148.2 | O30: 172.35
A31: 1.3.14 | B31: 00003873 | C31: SINAPI | D31: LUVA DE CORRER PARA TUBO SOLDAVEL, PVC, 25 MM, PARA AGUA FRIA PREDIAL | E31: UN | F31: 10 | G31: 0 | H31: 0 | I31: 0 | J31: 0 | L31: 11.5 | M31: 13.37 | N31: 115 | O31: 133.7
A32: 1.3.15 | B32: 00043838 | C32: SINAPI | D32: LUVA DE CORRER PARA TUBO SOLDAVEL, PVC, 40 MM, PARA AGUA FRIA PREDIAL | E32: UN | F32: 15 | G32: 0 | H32: 0 | I32: 0 | J32: 0 | L32: 26.39 | M32: 30.69 | N32: 395.85 | O32: 460.35
A33: 1.3.16 | B33: 00003847 | C33: SINAPI | D33: LUVA DE CORRER PARA TUBO SOLDAVEL, PVC, 50 MM, PARA AGUA FRIA PREDIAL | E33: UN | F33: 5 | G33: 0 | H33: 0 | I33: 0 | J33: 0 | L33: 26.61 | M33: 30.95 | N33: 133.05 | O33: 154.75
A34: 1.3.17 | B34: 00007138 | C34: SINAPI | D34: TE SOLDAVEL, PVC, 90 GRAUS, 20 MM, PARA AGUA FRIA PREDIAL (NBR 5648) | E34: UN | F34: 15 | G34: 0 | H34: 0 | I34: 0 | J34: 0 | L34: 0.99 | M34: 1.15 | N34: 14.85 | O34: 17.25
A35: 1.3.18 | B35: 00007139 | C35: SINAPI | D35: TE SOLDAVEL, PVC, 90 GRAUS, 25 MM, PARA AGUA FRIA PREDIAL (NBR 5648) | E35: UN | F35: 15 | G35: 0 | H35: 0 | I35: 0 | J35: 0 | L35: 1.12 | M35: 1.3 | N35: 16.8 | O35: 19.5
A36: 1.3.19 | B36: 00007141 | C36: SINAPI | D36: TE SOLDAVEL, PVC, 90 GRAUS, 40 MM, PARA AGUA FRIA PREDIAL (NBR 5648) | E36: UN | F36: 10 | G36: 0 | H36: 0 | I36: 0 | J36: 0 | L36: 8.59 | M36: 9.99 | N36: 85.9 | O36: 99.9
A37: 1.3.20 | B37: 00007142 | C37: SINAPI | D37: TE SOLDAVEL, PVC, 90 GRAUS,50 MM, PARA AGUA FRIA PREDIAL (NBR 5648) | E37: UN | F37: 10 | G37: 0 | H37: 0 | I37: 0 | J37: 0 | L37: 8.99 | M37: 10.46 | N37: 89.9 | O37: 104.6
A38: 1.3.21 | B38: 00007121 | C38: SINAPI | D38: TE PVC, SOLDAVEL, COM BUCHA DE LATAO NA BOLSA CENTRAL, 90 GRAUS, 20 MM X 1/2", PARA AGUA FRIA PREDIAL | E38: UN | F38: 15 | G38: 0 | H38: 0 | I38: 0 | J38: 0 | L38: 8.54 | M38: 9.93 | N38: 128.1 | O38: 148.95
A39: 1.3.22 | B39: 00007137 | C39: SINAPI | D39: TE PVC, SOLDAVEL, COM BUCHA DE LATAO NA BOLSA CENTRAL, 90 GRAUS, 25 MM X 1/2", PARA AGUA FRIA PREDIAL | E39: UN | F39: 15 | G39: 0 | H39: 0 | I39: 0 | J39: 0 | L39: 9.32 | M39: 10.84 | N39: 139.8 | O39: 162.6
A40: 1.3.23 | B40: 00007104 | C40: SINAPI | D40: TE DE REDUCAO, PVC, SOLDAVEL, 90 GRAUS, 25 MM X 20 MM, PARA AGUA FRIA PREDIAL | E40: UN | F40: 15 | G40: 0 | H40: 0 | I40: 0 | J40: 0 | L40: 3.57 | M40: 4.15 | N40: 53.55 | O40: 62.25
A41: 1.3.24 | B41: 00011763 | C41: SINAPI | D41: TORNEIRA DE BOIA CONVENCIONAL PARA CAIXA D | E41: UN | F41: 5 | G41: 0 | H41: 0 | I41: 0 | J41: 0 | L41: 251.65 | M41: 292.67 | N41: 1258.25 | O41: 1463.35
A42: 1.3.25 | B42: 00007588 | C42: SINAPI | D42: AUTOMATICO DE BOIA SUPERIOR / INFERIOR, *15* A / 250 V | E42: UN | F42: 10 | G42: 0 | H42: 0 | I42: 0 | J42: 0 | L42: 58 | M42: 67.45 | N42: 580 | O42: 674.5
A43: 1.3.26 | B43: 00000821 | C43: SINAPI | D43: BUCHA DE REDUCAO DE PVC, SOLDAVEL, LONGA, COM 75 X 50 MM, PARA AGUA FRIA PREDIAL | E43: UN | F43: 5 | G43: 0 | H43: 0 | I43: 0 | J43: 0 | L43: 17.59 | M43: 20.46 | N43: 87.95 | O43: 102.3
A44: 1.3.27 | B44: 00038023 | C44: SINAPI | D44: LUVA DE REDUCAO, SOLDAVEL, PVC, 50 X 25 MM, PARA AGUA FRIA PREDIAL | E44: UN | F44: 5 | G44: 0 | H44: 0 | I44: 0 | J44: 0 | L44: 5.8 | M44: 6.75 | N44: 29 | O44: 33.75
A45: 1.3.28 | B45: 00003868 | C45: SINAPI | D45: LUVA DE REDUCAO SOLDAVEL, PVC, 25 MM X 20 MM, PARA AGUA FRIA PREDIAL | E45: UN | F45: 10 | G45: 0 | H45: 0 | I45: 0 | J45: 0 | L45: 1.3 | M45: 1.51 | N45: 13 | O45: 15.1
A46: 1.3.29 | B46: 00006038 | C46: SINAPI | D46: REGISTRO DE PRESSAO PVC, ROSCAVEL, VOLANTE SIMPLES, DE 1/2" | E46: UN | F46: 10 | G46: 0 | H46: 0 | I46: 0 | J46: 0 | L46: 10.18 | M46: 11.84 | N46: 101.8 | O46: 118.4
A47: 1.3.30 | B47: 00011718 | C47: SINAPI | D47: REGISTRO DE PRESSAO PVC, ROSCAVEL, VOLANTE SIMPLES, DE 3/4" | E47: UN | F47: 10 | G47: 0 | H47: 0 | I47: 0 | J47: 0 | L47: 29.04 | M47: 33.77 | N47: 290.4 | O47: 337.7
A48: 1.3.31 | B48: 00000082 | C48: SINAPI | D48: ADAPTADOR PVC, SOLDAVEL, LONGO, COM FLANGE LIVRE, 75 MM X 2 1/2", PARA CAIXA D | E48: UN | F48: 5 | G48: 0 | H48: 0 | I48: 0 | J48: 0 | L48: 189.33 | M48: 220.19 | N48: 946.65 | O48: 1100.95
A49: 1.3.32 | B49: 00000095 | C49: SINAPI | D49: ADAPTADOR PVC SOLDAVEL, COM FLANGE E ANEL DE VEDACAO, 20 MM X 1/2", PARA CAIXA D | E49: UN | F49: 10 | G49: 0 | H49: 0 | I49: 0 | J49: 0 | L49: 10.55 | M49: 12.27 | N49: 105.5 | O49: 122.7
A50: 1.3.33 | B50: 340311 | C50: PAINEL DE PREÇOS | D50: REFIL, MATERIAL: CARVÃO ATIVADO, APLICAÇÃO: FILTRO SOFT BY EVEREST | E50: UN | F50: 30 | G50: 0 | H50: =ROUND(G50*(1+$H$2),2) -> 0 | I50: =ROUND(G50*F50,2) -> 0 | J50: =ROUND(H50*F50,2) -> 0 | L50: 33.29 | M50: =ROUND(L50*(1+$G$2),2) -> 38.72 | N50: =ROUND(L50*$F50,2) -> 998.7 | O50: =ROUND(M50*$F50,2) -> 1161.6
A51: 1.4 | D51: Conexões esgoto | I51: =SUM(I52:I59) -> 0 | J51: =SUM(J52:J59) -> 0 | N51: =SUM(N52:N59) -> 1920.15 | O51: =SUM(O52:O59) -> 2233.3
A52: 1.4.1 | B52: 00003670 | C52: SINAPI | D52: JUNCAO SIMPLES, PVC, 45 GRAUS, DN 100 X 100 MM, SERIE NORMAL PARA ESGOTO PREDIAL | E52: UN | F52: 5 | G52: 0 | H52: 0 | I52: 0 | J52: 0 | L52: 20.69 | M52: 24.06 | N52: =ROUND(L52*$F52,2) -> 103.45 | O52: =ROUND(M52*$F52,2) -> 120.3
A53: 1.4.2 | B53: 00010909 | C53: SINAPI | D53: JUNCAO DE REDUCAO INVERTIDA, PVC SOLDAVEL, 100 X 75 MM, SERIE NORMAL PARA ESGOTO PREDIAL | E53: UN | F53: 10 | G53: 0 | H53: 0 | I53: 0 | J53: 0 | L53: 19.12 | M53: 22.24 | N53: 191.2 | O53: =ROUND(M53*$F53,2) -> 222.4
A54: 1.4.3 | B54: 00003669 | C54: SINAPI | D54: JUNCAO DE REDUCAO INVERTIDA, PVC SOLDAVEL, 75 X 50 MM, SERIE NORMAL PARA ESGOTO PREDIAL | E54: UN | F54: 5 | G54: 0 | H54: 0 | I54: 0 | J54: 0 | L54: 11.74 | M54: 13.65 | N54: 58.7 | O54: 68.25
A55: 1.4.4 | B55: 00003659 | C55: SINAPI | D55: JUNCAO SIMPLES DE REDUCAO, PVC, DN 100 X 50 MM, SERIE NORMAL PARA ESGOTO PREDIAL | E55: UN | F55: 10 | G55: 0 | H55: 0 | I55: 0 | J55: 0 | L55: 16.12 | M55: 18.75 | N55: 161.2 | O55: 187.5
A56: 1.4.5 | B56: 00044945 | C56: SINAPI | D56: SIFAO / TUBO SINFONADO EXTENSIVEL/SANFONADO, UNIVERSAL/ SIMPLES, ENTRE *50 A 70* CM, DE PLASTICO BRANCO | E56: UN | F56: 25 | G56: 0 | H56: 0 | I56: 0 | J56: 0 | L56: 9 | M56: 10.47 | N56: 225 | O56: 261.75
A57: 1.4.6 | B57: 00006136 | C57: SINAPI | D57: SIFAO EM METAL CROMADO PARA PIA OU LAVATORIO, 1 X 1.1/2" | E57: UN | F57: 5 | G57: 0 | H57: 0 | I57: 0 | J57: 0 | L57: 163.45 | M57: 190.09 | N57: 817.25 | O57: 950.45
A58: 1.4.7 | B58: 00011741 | C58: SINAPI | D58: RALO SIFONADO CILINDRICO, PVC, 100 X 40 MM, COM GRELHA REDONDA BRANCA | E58: UN | F58: 15 | G58: 0 | H58: 0 | I58: 0 | J58: 0 | L58: 15.81 | M58: 18.39 | N58: 237.15 | O58: 275.85
A59: 1.4.8 | B59: 00004030 | C59: SINAPI | D59: VEU DE POLIESTER PARA IMPERMEABILIZACAO | E59: m² | F59: 20 | G59: 0 | H59: 0 | I59: 0 | J59: 0 | L59: 6.31 | M59: 7.34 | N59: 126.2 | O59: 146.8
A60: 2 | D60: Brocas, parafusos e ferragens | I60: =SUM(I61:I82) -> 0 | J60: =SUM(J61:J82) -> 0 | N60: =SUM(N61:N82) -> 11227.35 | O60: =SUM(O61:O82) -> 13062.9
A61: 2.1 | B61: 00011950/SINAPI | C61: ORSE | D61: Bucha de nylon sem aba s6, com parafuso de 4,20 x 40 mm em aco zincado com rosca soberba, cabeca chata e fenda phillips | E61: un | F61: 5000 | G61: 0 | H61: 0 | I61: 0 | J61: 0 | L61: 0.12 | M61: 0.14 | N61: =ROUND(L61*$F61,2) -> 600 | O61: =ROUND(M61*$F61,2) -> 700
A62: 2.2 | B62: 00007583/SINAPI | C62: ORSE | D62: Bucha de nylon sem aba s8, com parafuso de 4,80 x 50 mm em aco zincado com rosca soberba, cabeca chata e fenda phillips | E62: un | F62: 5000 | G62: 0 | H62: 0 | I62: 0 | J62: 0 | L62: 0.25 | M62: 0.29 | N62: 1250 | O62: =ROUND(M62*$F62,2) -> 1450
A63: 2.3 | B63: 00007568/SINAPI | C63: ORSE | D63: Bucha de nylon sem aba s10, com parafuso de 6,10 x 65 mm emaco zincado com rosca soberba, cabeca chata e fenda phillips | E63: un | F63: 5000 | G63: 0 | H63: 0 | I63: 0 | J63: 0 | L63: 0.36 | M63: 0.42 | N63: 1800 | O63: 2100
A64: 2.4 | B64: 00039442 | C64: SINAPI | D64: PARAFUSO DRY WALL, EM ACO ZINCADO, CABECA LENTILHA E PONTA AGULHA (LA), LARGURA 4,2 MM, COMPRIMENTO 13 MM | E64: UN | F64: 4000 | G64: 0 | H64: 0 | I64: 0 | J64: 0 | L64: 0.18 | M64: 0.21 | N64: 720 | O64: 840
A65: 2.5 | B65: 062033 | C65: SBC | D65: PARAFUSO ZINCADO AUTOBROCANTE FLANGEADO 4,2x19mm | E65: CENTO | F65: 40 | G65: 0 | H65: 0 | I65: 0 | J65: 0 | L65: 10 | M65: 11.63 | N65: 400 | O65: 465.2
A66: 2.6 | B66: 11901 | C66: ORSE | D66: Parafuso auto-atarraxante em aço inox - 4,2 x 32mm | E66: un | F66: 4000 | G66: 0 | H66: 0 | I66: 0 | J66: 0 | L66: 0.62 | M66: 0.72 | N66: 2480 | O66: 2880
A67: 2.7 | B67: 00005090 | C67: SINAPI | D67: CADEADO SIMPLES, CORPO EM LATAO MACICO, COM LARGURA DE 25 MM E ALTURA DE APROX 25 MM, HASTE CEMENTADA (NAO LONGA), EM ACO TEMPERADO COM DIAMETRO DE APROX 5,0 MM, INCLUINDO 2 CHAVES | E67: UN | F67: 5 | G67: 0 | H67: 0 | I67: 0 | J67: 0 | L67: 19.9 | M67: 23.14 | N67: 99.5 | O67: 115.7
A68: 2.8 | B68: 00043603 | C68: SINAPI | D68: CADEADO SIMPLES, CORPO EM LATAO MACICO, COM LARGURA DE 50 MM E ALTURA DE APROX 40 MM, HASTE CEMENTADA EM ACO TEMPERADO COM DIAMETRO DE APROX 8,0 MM, INCLUINDO 2 CHAVES | E68: UN | F68: 5 | G68: 0 | H68: 0 | I68: 0 | J68: 0 | L68: 42.32 | M68: 49.22 | N68: 211.6 | O68: 246.1
A69: 2.12 | B69: 007818 | C69: SBC | D69: FERRAMENTA - CONJUNTO BROCAS ACO RAPIDO 13 PECAS IRWIN | E69: UN | F69: 10 | G69: 0 | H69: 0 | I69: 0 | J69: 0 | L69: 184.95 | M69: 215.1 | N69: 1849.5 | O69: 2151
A70: 2.13 | B70: MATED-11888 | C70: SETOP | D70: BARRA ROSCADA DE AÇO (DIÂMETRO DA SEÇÃO: 1/4"[6MM]) | E70: m | F70: 50 | G70: 0 | H70: 0 | I70: 0 | J70: 0 | L70: 4.54 | M70: 5.28 | N70: 227 | O70: 264
A71: 2.14 | B71: 00039997 | C71: SINAPI | D71: PORCA ZINCADA, SEXTAVADA, DIAMETRO 1/4" | E71: UN | F71: 400 | G71: 0 | H71: 0 | I71: 0 | J71: 0 | L71: 0.3 | M71: 0.35 | N71: 120 | O71: 140
A72: 2.15 | B72: MATED-15972 | C72: SETOP | D72: BARRA ROSCADA DE AÇO (DIÂMETRO DA SEÇÃO: 3/8"[10MM]) | E72: m | F72: 50 | G72: 0 | H72: 0 | I72: 0 | J72: 0 | L72: 7.14 | M72: 8.3 | N72: 357 | O72: 415
A73: 2.16 | B73: 00004342 | C73: SINAPI | D73: PORCA ZINCADA, SEXTAVADA, DIAMETRO 3/8" | E73: UN | F73: 400 | G73: 0 | H73: =ROUND(G73*(1+$H$2),2) -> 0 | I73: =ROUND(G73*F73,2) -> 0 | J73: =ROUND(H73*F73,2) -> 0 | L73: 0.22 | M73: 0.26 | N73: 88 | O73: 104
A74: 2.17 | B74: 11469 | C74: ORSE | D74: Broca SDS plus IRWIN 6 x 110mm | E74: un | F74: 10 | G74: 0 | H74: 0 | I74: 0 | J74: 0 | L74: 12.57 | M74: 14.62 | N74: 125.7 | O74: 146.2
A75: 2.18 | B75: 7898 | C75: ORSE | D75: Broca SDS plus 12x260mm | E75: un | F75: 10 | G75: 0 | H75: 0 | I75: 0 | J75: 0 | L75: 50.17 | M75: 58.35 | N75: 501.7 | O75: 583.5
A76: 2.19 | B76: BPF-1 MERC | C76: Próprio | D76: Broca SDS plus 8 x 100 x 160 MM | E76: un | F76: 10 | G76: 0 | H76: 0 | I76: 0 | J76: 0 | L76: 13.79 | M76: 16.04 | N76: 137.9 | O76: 160.4
A77: 2.20 | B77: BPF-2 MERC | C77: Próprio | D77: Broca SDS plus 10 x 100 x 160 MM | E77: un | F77: 10 | G77: 0 | H77: 0 | I77: 0 | J77: 0 | L77: 15.8 | M77: 18.38 | N77: 158 | O77: 183.8
A78: 2.21 | B78: BPF-3 MERC | C78: Próprio | D78: Broca aço rápido 2 mm | E78: un | F78: 5 | G78: 0 | H78: 0 | I78: 0 | J78: 0 | L78: 1.66 | M78: =ROUND(L78*(1+$G$2),2) -> 1.93 | N78: 8.3 | O78: 9.65
A79: 2.22 | B79: BPF-4 MERC | C79: Próprio | D79: Broca aço rápido 2,5 mm | E79: un | F79: 5 | G79: 0 | H79: 0 | I79: 0 | J79: 0 | L79: 3.59 | M79: 4.18 | N79: 17.95 | O79: 20.9
A80: 2.23 | B80: BPF-5 MERC | C80: Próprio | D80: Broca aço rápido 3 mm | E80: un | F80: 5 | G80: 0 | H80: 0 | I80: 0 | J80: 0 | L80: 4 | M80: 4.65 | N80: 20 | O80: 23.25
A81: 2.24 | B81: BPF-6 MERC | C81: Próprio | D81: Broca aço rápido 3,5 mm | E81: un | F81: 5 | G81: 0 | H81: 0 | I81: 0 | J81: 0 | L81: 5.15 | M81: 5.99 | N81: 25.75 | O81: 29.95
A82: 2.25 | B82: BPF-7 MERC | C82: Próprio | D82: Broca aço rápido 4 mm | E82: un | F82: 5 | G82: 0 | H82: 0 | I82: 0 | J82: 0 | L82: 5.89 | M82: 6.85 | N82: 29.45 | O82: 34.25
A83: 3 | D83: Metais | I83: =SUM(I84:I96) -> 0 | J83: =SUM(J84:J96) -> 0 | N83: =SUM(N84:N96) -> 26751.65 | O83: =SUM(O84:O96) -> 31112.5
A84: 3.1 | B84: 008395 | C84: SBC | D84: DUCHA HIGIENICA FORUSI ABS SMALL 1856-C50 | E84: UN | F84: 50 | G84: 0 | H84: 0 | I84: 0 | J84: 0 | L84: 120.9 | M84: 140.61 | N84: =ROUND(L84*$F84,2) -> 6045 | O84: =ROUND(M84*$F84,2) -> 7030.5
A85: 3.2 | B85: 00011781 | C85: SINAPI | D85: VALVULA DE DESCARGA METALICA, BASE 1 1/4" E ACABAMENTO METALICO CROMADO | E85: UN | F85: 5 | G85: 0 | H85: 0 | I85: 0 | J85: 0 | L85: 302.74 | M85: 352.09 | N85: 1513.7 | O85: =ROUND(M85*$F85,2) -> 1760.45
A86: 3.4 | B86: 00000377 | C86: SINAPI | D86: ASSENTO SANITARIO DE PLASTICO, TIPO CONVENCIONAL | E86: UN | F86: 30 | G86: 0 | H86: 0 | I86: 0 | J86: 0 | L86: 44.9 | M86: 52.22 | N86: 1347 | O86: 1566.6
A87: 3.5 | B87: 00037400 | C87: SINAPI | D87: PAPELEIRA PLASTICA TIPO DISPENSER PARA PAPEL HIGIENICO ROLAO | E87: UN | F87: 10 | G87: 0 | H87: 0 | I87: 0 | J87: 0 | L87: 40.46 | M87: 47.05 | N87: 404.6 | O87: 470.5
A88: 3.6 | B88: 00037401 | C88: SINAPI | D88: TOALHEIRO PLASTICO TIPO DISPENSER PARA PAPEL TOALHA INTERFOLHADO | E88: UN | F88: 10 | G88: 0 | H88: 0 | I88: 0 | J88: 0 | L88: 40.46 | M88: 47.05 | N88: 404.6 | O88: 470.5
A89: 3.7 | B89: 00011758 | C89: SINAPI | D89: SABONETEIRA PLASTICA TIPO DISPENSER PARA SABONETE LIQUIDO COM RESERVATORIO 800 A 1500 ML | E89: UN | F89: 20 | G89: 0 | H89: 0 | I89: 0 | J89: 0 | L89: 38.87 | M89: 45.21 | N89: 777.4 | O89: 904.2
A90: 3.8 | B90: 00011681 | C90: SINAPI | D90: ENGATE/RABICHO FLEXIVEL PLASTICO (PVC OU ABS) BRANCO 1/2" X 40 CM | E90: UN | F90: 20 | G90: 0 | H90: 0 | I90: 0 | J90: 0 | L90: 6.86 | M90: 7.98 | N90: 137.2 | O90: 159.6
A91: 3.9 | B91: 00011684 | C91: SINAPI | D91: ENGATE / RABICHO FLEXIVEL INOX 1/2" X 40 CM | E91: UN | F91: 10 | G91: 0 | H91: 0 | I91: 0 | J91: 0 | L91: 41.02 | M91: 47.71 | N91: 410.2 | O91: 477.1
A92: 3.10 | B92: 00036796 | C92: SINAPI | D92: TORNEIRA METALICA CROMADA DE MESA, PARA LAVATORIO, TEMPORIZADA PRESSAO FECHAMENTO AUTOMATICO, BICA BAIXA | E92: UN | F92: 20 | G92: 0 | H92: 0 | I92: 0 | J92: 0 | L92: 139.35 | M92: 162.06 | N92: 2787 | O92: 3241.2
A93: 3.11 | B93: 2248 | C93: ORSE | D93: Torneira cromada de 1/2" para jardim/tanque, Standard Deca 1153.C39 ou similar | E93: un | F93: 10 | G93: 0 | H93: 0 | I93: 0 | J93: 0 | L93: 55.03 | M93: 64 | N93: 550.3 | O93: 640
A94: 3.12 | B94: 00011927 | C94: SINAPI | D94: ABRACADEIRA, GALVANIZADA/ZINCADA, ROSCA SEM FIM, PARAFUSO INOX, LARGURA FITA *12,6 A *14 MM, D = 2" A 2 1/2" | E94: UN | F94: 10 | G94: 0 | H94: 0 | I94: 0 | J94: 0 | L94: 7.7 | M94: 8.96 | N94: 77 | O94: 89.6
A95: 3.13 | B95: WC-1 MERC | C95: Próprio | D95: Válvula de mictório embutida em aço inox escovado. Ref.: Draco Eletrônica Indústria e Comércio Eireli - EPP. | E95: Unidade | F95: 5 | G95: 0 | H95: 0 | I95: 0 | J95: 0 | L95: 2234.53 | M95: 2598.76 | N95: 11172.65 | O95: 12993.8
A96: 3.14 | B96: MET-1 MERC | C96: Próprio | D96: Torneira latão tipo alavanca diam. 1/2" acabamento cromado para cafeteira industrial | E96: un | F96: 15 | G96: 0 | H96: 0 | I96: 0 | J96: 0 | L96: 75 | M96: 87.23 | N96: 1125 | O96: 1308.45
A97: 4 | D97: Utilitários | I97: =SUM(I98:I143) -> 0 | J97: =SUM(J98:J143) -> 0 | N97: =SUM(N98:N143) -> 34798.99 | O97: =SUM(O98:O143) -> 40468.16
A98: 4.1 | B98: 00037461 | C98: SINAPI | D98: MANGUEIRA CRISTAL TRANCADA, PVC COM REFORCO, COM PRESSAO DE TRABALHO (PT) 250 LBS/POL2, DE 3/4" X *2,8* MM | E98: M | F98: 100 | G98: 0 | H98: 0 | I98: 0 | J98: 0 | L98: 17.24 | M98: 20.05 | N98: =ROUND(L98*$F98,2) -> 1724 | O98: =ROUND(M98*$F98,2) -> 2005
A99: 4.2 | B99: 00000404 | C99: SINAPI | D99: FITA ISOLANTE DE BORRACHA AUTOFUSAO, USO ATE 69 KV (ALTA TENSAO) | E99: M | F99: 500 | G99: 0 | H99: 0 | I99: 0 | J99: 0 | L99: 1.67 | M99: 1.94 | N99: 835 | O99: =ROUND(M99*$F99,2) -> 970
A100: 4.3 | B100: 00004806 | C100: SINAPI | D100: TESTEIRA ANTIDERRAPANTE PARA PISO VINILICO *5 X 2,5* CM, E = 2 MM | E100: M | F100: 30 | G100: 0 | H100: 0 | I100: 0 | J100: 0 | L100: 19.64 | M100: 22.84 | N100: 589.2 | O100: 685.2
A101: 4.4 | B101: 042215 | C101: SBC | D101: FITA 3M COLANTE ANTIDERRAPANTE PARA DEGRAUS ESCADAS | E101: M | F101: 100 | G101: 0 | H101: 0 | I101: 0 | J101: 0 | L101: 2.64 | M101: 3.07 | N101: 264 | O101: 307
A102: 4.5 | B102: UTL-3 MERC | C102: Próprio | D102: Disco abrasivo de corte 115mm x 1mm x 22,23mm 4 1/2" x 3/64" x 7/8" | E102: un | F102: 50 | G102: 0 | H102: 0 | I102: 0 | J102: 0 | L102: 2.5 | M102: 2.91 | N102: 125 | O102: 145.5
A103: 4.6 | B103: 037128 | C103: SBC | D103: DISCO DIAMANTADO STAMACO 105mm FURO 20mm | E103: UN | F103: 30 | G103: 0 | H103: 0 | I103: 0 | J103: 0 | L103: 15.49 | M103: 18.01 | N103: 464.7 | O103: 540.3
A104: 4.7 | B104: 00012815 | C104: SINAPI | D104: FITA CREPE ROLO DE 25 MM X 50 M | E104: UN | F104: 150 | G104: 0 | H104: 0 | I104: 0 | J104: 0 | L104: 9.44 | M104: 10.98 | N104: 1416 | O104: 1647
A105: 4.8 | B105: 070105 | C105: SBC | D105: FITA 3M DUPLA FACE VHB 4905 12mmx20m PARA POLICARBONATO | E105: M | F105: 500 | G105: 0 | H105: 0 | I105: 0 | J105: 0 | L105: 1.82 | M105: 2.12 | N105: 910 | O105: 1060
A106: 4.9 | B106: 00003148 | C106: SINAPI | D106: FITA VEDA ROSCA EM ROLOS DE 18 MM X 50 M (L X C) | E106: UN | F106: 50 | G106: 0 | H106: 0 | I106: 0 | J106: 0 | L106: 14.38 | M106: 16.72 | N106: 719 | O106: 836
A107: 4.10 | B107: 4.95.54 | C107: FDE | D107: MASSA CALAFETAR COMPOSTA POR BORRACHAS SINTÉTICAS CARGAS MINERAIS E PLASTIFICANTES NÃO SECATIVOS | E107: KG | F107: 10 | G107: 0 | H107: 0 | I107: 0 | J107: 0 | L107: 25.66 | M107: 29.84 | N107: 256.6 | O107: 298.4
A108: 4.11 | B108: MATED-8151 | C108: SETOP | D108: ADESIVO/SELANTE ELÁSTICO MONOCOMPONENTE (APLICAÇÃO: USO GERAL|BASE: POLIURETANO|EMBALAGEM: 310ML|DENSIDADE*: 1,35G/CM3)*VALORES REFERENCIAIS APROXIMADOS | E108: un | F108: 150 | G108: 0 | H108: 0 | I108: 0 | J108: 0 | L108: 36.84 | M108: 42.84 | N108: 5526 | O108: 6426
A109: 4.12 | B109: 00039961 | C109: SINAPI | D109: SILICONE ACETICO USO GERAL INCOLOR 280 G | E109: UN | F109: 50 | G109: 0 | H109: 0 | I109: 0 | J109: 0 | L109: 26.59 | M109: 30.92 | N109: 1329.5 | O109: 1546
A110: 4.13 | B110: 00020080 | C110: SINAPI | D110: ADESIVO PLASTICO PARA PVC, FRASCO COM 175 GR | E110: UN | F110: 50 | G110: 0 | H110: 0 | I110: 0 | J110: 0 | L110: 21.44 | M110: 24.93 | N110: 1072 | O110: 1246.5
A111: 4.14 | B111: 00004791 | C111: SINAPI | D111: ADESIVO ACRILICO DE BASE AQUOSA / COLA DE CONTATO | E111: KG | F111: 5 | G111: 0 | H111: 0 | I111: 0 | J111: 0 | L111: 48.85 | M111: 56.81 | N111: 244.25 | O111: 284.05
A112: 4.15 | B112: 00038123 | C112: SINAPI | D112: SELANTE TIPO VEDA CALHA PARA METAL E FIBROCIMENTO | E112: KG | F112: 5 | G112: 0 | H112: 0 | I112: 0 | J112: 0 | L112: 71.69 | M112: 83.38 | N112: 358.45 | O112: 416.9
A113: 4.16 | B113: 00004823 | C113: SINAPI | D113: MASSA PLASTICA PARA MARMORE/GRANITO | E113: KG | F113: 5 | G113: 0 | H113: 0 | I113: 0 | J113: 0 | L113: 37.52 | M113: 43.64 | N113: 187.6 | O113: 218.2
A114: 4.17 | B114: 00003777 | C114: SINAPI | D114: LONA PLASTICA PESADA PRETA, E = 150 MICRA | E114: m² | F114: 400 | G114: 0 | H114: 0 | I114: 0 | J114: 0 | L114: 1.61 | M114: 1.87 | N114: 644 | O114: 748
A115: 4.18 | B115: 00000013 | C115: SINAPI | D115: ESTOPA | E115: KG | F115: 5 | G115: 0 | H115: 0 | I115: 0 | J115: 0 | L115: 15.73 | M115: 18.29 | N115: 78.65 | O115: 91.45
A116: 4.19 | B116: 00007307 | C116: SINAPI | D116: FUNDO ANTICORROSIVO PARA METAIS FERROSOS (ZARCAO) | E116: L | F116: 18 | G116: 0 | H116: 0 | I116: 0 | J116: 0 | L116: 51.18 | M116: 59.52 | N116: 921.24 | O116: 1071.36
A117: 4.20 | B117: 00000157 | C117: SINAPI | D117: ADESIVO ESTRUTURAL A BASE DE RESINA EPOXI PARA INJECAO EM TRINCAS, BICOMPONENTE, BAIXA VISCOSIDADE | E117: KG | F117: 5 | G117: 0 | H117: 0 | I117: 0 | J117: 0 | L117: 174.64 | M117: 203.11 | N117: 873.2 | O117: 1015.55
A118: 4.21 | B118: UTL-1 MERC | C118: Próprio | D118: Adesivo instantâneo Ref.: TekBond | E118: 100g | F118: 15 | G118: 0 | H118: 0 | I118: 0 | J118: 0 | L118: 31.7 | M118: 36.87 | N118: 475.5 | O118: 553.05
A119: 4.22 | B119: 00000414 | C119: SINAPI | D119: ABRACADEIRA DE NYLON PARA AMARRACAO DE CABOS, COMPRIMENTO DE 100 X 2,5 MM | E119: UN | F119: 300 | G119: 0 | H119: 0 | I119: 0 | J119: 0 | L119: 0.06 | M119: 0.07 | N119: 18 | O119: 21
A120: 4.23 | B120: 00000410 | C120: SINAPI | D120: ABRACADEIRA DE NYLON PARA AMARRACAO DE CABOS, COMPRIMENTO DE 150 X *3,6* MM | E120: UN | F120: 400 | G120: 0 | H120: 0 | I120: 0 | J120: 0 | L120: 0.15 | M120: 0.17 | N120: 60 | O120: 68
A121: 4.24 | B121: 00000411 | C121: SINAPI | D121: ABRACADEIRA DE NYLON PARA AMARRACAO DE CABOS, COMPRIMENTO DE 200 X *4,6* MM | E121: UN | F121: 300 | G121: 0 | H121: 0 | I121: 0 | J121: 0 | L121: 0.2 | M121: 0.23 | N121: 60 | O121: 69
A122: 4.25 | B122: 00000408 | C122: SINAPI | D122: ABRACADEIRA DE NYLON PARA AMARRACAO DE CABOS, COMPRIMENTO DE 390 X *4,6* MM | E122: UN | F122: 150 | G122: 0 | H122: 0 | I122: 0 | J122: 0 | L122: 0.99 | M122: 1.15 | N122: 148.5 | O122: 172.5
A123: 4.26 | B123: 00011560 | C123: SINAPI | D123: MOLA HIDRAULICA AEREA, PARA PORTAS DE ATE 950 MM E PESO DE ATE 65 KG, COM CORPO EM ALUMINIO E BRACO EM ACO, SEM BRACO DE PARADA | E123: UN | F123: 10 | G123: 0 | H123: 0 | I123: 0 | J123: 0 | L123: 177.86 | M123: 206.85 | N123: 1778.6 | O123: 2068.5
A124: 4.27 | B124: 002606 | C124: SBC | D124: LIXA FERRO K246 GRAO 120 | E124: UN | F124: 45 | G124: 0 | H124: 0 | I124: 0 | J124: 0 | L124: 2.18 | M124: 2.54 | N124: 98.1 | O124: 114.3
A125: 4.28 | B125: 001256 | C125: SBC | D125: LIXA FERRO 60 | E125: UN | F125: 20 | G125: 0 | H125: 0 | I125: 0 | J125: 0 | L125: 2.27 | M125: 2.64 | N125: 45.4 | O125: 52.8
A126: 4.29 | B126: 012844 | C126: SBC | D126: LIXA D'AGUA 100 | E126: UN | F126: 30 | G126: 0 | H126: 0 | I126: 0 | J126: 0 | L126: 1.55 | M126: 1.8 | N126: 46.5 | O126: 54
A127: 4.30 | B127: 012872 | C127: SBC | D127: LIXA D'AGUA 150 | E127: UN | F127: 20 | G127: 0 | H127: 0 | I127: 0 | J127: 0 | L127: 1.75 | M127: 2.04 | N127: 35 | O127: 40.8
A128: 4.31 | B128: 00025966 | C128: SINAPI | D128: REDUTOR TIPO THINNER PARA ACABAMENTO | E128: L | F128: 5 | G128: 0 | H128: 0 | I128: 0 | J128: 0 | L128: 16.2 | M128: 18.84 | N128: 81 | O128: 94.2
A129: 4.32 | B129: 007267 | C129: SBC | D129: FITA PARA DEMARCACAO DE SOLO 3M 469 AMARELA 50mmx30m | E129: UN | F129: 10 | G129: 0 | H129: 0 | I129: 0 | J129: 0 | L129: 43.35 | M129: 50.42 | N129: 433.5 | O129: 504.2
A130: 4.33 | B130: 038004 | C130: SBC | D130: FITA ZEBRADA PARA SINALIZACAO 7cm x 100m | E130: M | F130: 500 | G130: 0 | H130: 0 | I130: 0 | J130: 0 | L130: 0.11 | M130: 0.13 | N130: 55 | O130: 65
A131: 4.34 | B131: 00039701 | C131: SINAPI | D131: FITA ADESIVA ASFALTICA ALUMINIZADA MULTIUSO, L = 10 CM, ROLO DE 10 M | E131: UN | F131: 25 | G131: 0 | H131: 0 | I131: 0 | J131: 0 | L131: 86.37 | M131: 100.45 | N131: 2159.25 | O131: 2511.25
A132: 4.35 | B132: 00000511 | C132: SINAPI | D132: PRIMER PARA MANTA ASFALTICA A BASE DE ASFALTO MODIFICADO DILUIDO EM SOLVENTE, APLICACAO A FRIO | E132: L | F132: 5 | G132: 0 | H132: 0 | I132: 0 | J132: 0 | L132: 20.14 | M132: 23.42 | N132: 100.7 | O132: 117.1
A133: 4.36 | B133: 00039699 | C133: SINAPI | D133: MANTA / LENCOL DE BORRACHA, SBR, ANTIRRUIDO, E = 5 MM | E133: m² | F133: 30 | G133: 0 | H133: 0 | I133: 0 | J133: 0 | L133: 17.45 | M133: 20.29 | N133: 523.5 | O133: 608.7
A134: 4.37 | B134: 00004224 | C134: SINAPI | D134: QUEROSENE | E134: L | F134: 1 | G134: 0 | H134: 0 | I134: 0 | J134: 0 | L134: 12.13 | M134: 14.11 | N134: 12.13 | O134: 14.11
A135: 4.38 | B135: UTL-2 MERC | C135: Próprio | D135: Desengripante spray lubrificante multiuso | E135: 300 ml | F135: 5 | G135: 0 | H135: =ROUND(G135*(1+$H$2),2) -> 0 | I135: =ROUND(G135*F135,2) -> 0 | J135: =ROUND(H135*F135,2) -> 0 | L135: 17.17 | M135: 19.97 | N135: 85.85 | O135: 99.85
A136: 4.39 | B136: 00014153 | C136: SINAPI | D136: FITA METALICA PERFURADA, L = *18* MM, ROLO DE 30 M, CARGA RECOMENDADA = *30* KGF | E136: UN | F136: 5 | G136: 0 | H136: 0 | I136: 0 | J136: 0 | L136: 60.05 | M136: 69.84 | N136: 300.25 | O136: 349.2
A137: 4.40 | B137: 6.41.12 | C137: FDE | D137: ELEMENTO FILTRANTE CUNO CARVAO/CELULOSE 360L/H | E137: UN | F137: 48 | G137: 0 | H137: =ROUND(G137*(1+$H$2),2) -> 0 | I137: =ROUND(G137*F137,2) -> 0 | J137: =ROUND(H137*F137,2) -> 0 | L137: 93.18 | M137: =ROUND(L137*(1+$G$2),2) -> 108.37 | N137: =ROUND(L137*$F137,2) -> 4472.64 | O137: =ROUND(M137*$F137,2) -> 5201.76
A138: 4.41 | B138: 6.41.13 | C138: FDE | D138: ELEMENTO FILTRANTE CUNO(AQUALAR)CARVAO/CEL 180 L/H | E138: UN | F138: 12 | G138: 0 | H138: 0 | I138: 0 | J138: 0 | L138: 68.62 | M138: 79.81 | N138: 823.44 | O138: 957.72
A139: 4.42 | B139: IEQ003150 | C139: SCO | D139: Cacamba de aco com 5m3, para retirada de entulho, inclusive transporte e descarga, aluguel | E139: un | F139: 12 | G139: 0 | H139: 0 | I139: 0 | J139: 0 | L139: 320 | M139: 372.16 | N139: 3840 | O139: 4465.92
A140: 4.43 | B140: MAT138020 | C140: SCO | D140: Tinta - Textura acrilica cor branca Coral ou similar | E140: gl | F140: 3 | G140: 0 | H140: 0 | I140: 0 | J140: 0 | L140: 46.5 | M140: 54.08 | N140: 139.5 | O140: 162.24
A141: 4.44 | B141: 2215 | C141: ORSE | D141: Tinta acrílica | E141: L | F141: 7.2 | G141: 0 | H141: 0 | I141: 0 | J141: 0 | L141: 13.71 | M141: 15.94 | N141: 98.71 | O141: 114.77
A142: 4.45 | B142: 00007311 | C142: SINAPI | D142: TINTA ESMALTE SINTETICO PREMIUM ACETINADO | E142: L | F142: 7.2 | G142: 0 | H142: 0 | I142: 0 | J142: 0 | L142: 49.01 | M142: 57 | N142: 352.87 | O142: 410.4
A143: 4.46 | B143: 00005318 | C143: SINAPI | D143: DILUENTE AGUARRAS | E143: L | F143: 0.9 | G143: 0 | H143: 0 | I143: 0 | J143: 0 | L143: 18.51 | M143: 21.53 | N143: 16.66 | O143: 19.38
A144: 5 | D144: Kit 1 (conjunto condulete para interruptor 1 tecla) | I144: =SUM(I145:I148) -> 0 | J144: =SUM(J145:J148) -> 0 | N144: =SUM(N145:N148) -> 2445 | O144: =SUM(O145:O148) -> 2844
A145: 5.1 | B145: 00039334 | C145: SINAPI | D145: CONDULETE EM PVC, TIPO "E", SEM TAMPA, DE 3/4" | E145: UN | F145: 100 | G145: 0 | H145: 0 | I145: =ROUND(G145*F145,2) -> 0 | J145: =ROUND(H145*F145,2) -> 0 | L145: 9.67 | M145: =ROUND(L145*(1+$G$2),2) -> 11.25 | N145: =ROUND(L145*$F145,2) -> 967 | O145: =ROUND(M145*$F145,2) -> 1125
A146: 5.2 | B146: 017929 | C146: SBC | D146: ADAPTADOR CONDULETE TOP 3/4" | E146: UN | F146: 100 | G146: 0 | H146: 0 | I146: =ROUND(G146*F146,2) -> 0 | J146: =ROUND(H146*F146,2) -> 0 | L146: 2.2 | M146: 2.56 | N146: 220 | O146: 256
A147: 5.3 | B147: 00038112 | C147: SINAPI | D147: INTERRUPTOR SIMPLES 10A, 250V (MODULO COM ABAS) | E147: UN | F147: 100 | G147: 0 | H147: 0 | I147: 0 | J147: 0 | L147: 8.93 | M147: 10.39 | N147: 893 | O147: 1039
A148: 5.4 | B148: 00039346 | C148: SINAPI | D148: TAMPA PARA CONDULETE, EM PVC, PARA 1 INTERRUPTOR | E148: UN | F148: 100 | G148: 0 | H148: 0 | I148: 0 | J148: 0 | L148: 3.65 | M148: 4.24 | N148: 365 | O148: 424
A149: 6 | D149: Kit 2 (conjunto condulete para interruptor 2 teclas) | I149: =SUM(I150:I153) -> 0 | J149: =SUM(J150:J153) -> 0 | N149: =SUM(N150:N153) -> 3457 | O149: =SUM(O150:O153) -> 4021
A150: 6.1 | B150: 00039334 | C150: SINAPI | D150: CONDULETE EM PVC, TIPO "E", SEM TAMPA, DE 3/4" | E150: UN | F150: 100 | G150: 0 | H150: 0 | I150: =ROUND(G150*F150,2) -> 0 | J150: =ROUND(H150*F150,2) -> 0 | L150: 9.67 | M150: 11.25 | N150: 967 | O150: 1125
A151: 6.2 | B151: 017929 | C151: SBC | D151: ADAPTADOR CONDULETE TOP 3/4" | E151: UN | F151: 100 | G151: 0 | H151: 0 | I151: =ROUND(G151*F151,2) -> 0 | J151: =ROUND(H151*F151,2) -> 0 | L151: 2.2 | M151: 2.56 | N151: 220 | O151: 256
A152: 6.3 | B152: 00012129 | C152: SINAPI | D152: INTERRUPTOR 2 TECLAS SIMPLES (MODULO COM ABAS) | E152: UN | F152: 100 | G152: 0 | H152: 0 | I152: 0 | J152: 0 | L152: 9.5 | M152: 11.05 | N152: 950 | O152: 1105
A153: 6.4 | B153: 018030 | C153: SBC | D153: TAMPA 2 MODULOS CONDULETE TOP 3/4" | E153: UN | F153: 100 | G153: 0 | H153: 0 | I153: 0 | J153: 0 | L153: 13.2 | M153: 15.35 | N153: 1320 | O153: 1535
A154: 7 | D154: Kit 3 (conjunto condulete para interruptor 3 teclas) | I154: =SUM(I155:I158) -> 0 | J154: =SUM(J155:J158) -> 0 | N154: =SUM(N155:N158) -> 3882 | O154: =SUM(O155:O158) -> 4516
A155: 7.1 | B155: 00039334 | C155: SINAPI | D155: CONDULETE EM PVC, TIPO "E", SEM TAMPA, DE 3/4" | E155: UN | F155: 100 | G155: 0 | H155: 0 | I155: =ROUND(G155*F155,2) -> 0 | J155: =ROUND(H155*F155,2) -> 0 | L155: 9.67 | M155: 11.25 | N155: 967 | O155: 1125
A156: 7.2 | B156: 017929 | C156: SBC | D156: ADAPTADOR CONDULETE TOP 3/4" | E156: UN | F156: 100 | G156: 0 | H156: 0 | I156: =ROUND(G156*F156,2) -> 0 | J156: =ROUND(H156*F156,2) -> 0 | L156: 2.2 | M156: 2.56 | N156: 220 | O156: 256
A157: 7.3 | B157: I1267 | C157: SEINFRA | D157: INTERRUPTOR 3 TECLAS SIMPLES (MÓDULO COM ABAS) | E157: UN | F157: 100 | G157: 0 | H157: 0 | I157: 0 | J157: 0 | L157: 20.71 | M157: 24.09 | N157: 2071 | O157: 2409
A158: 7.4 | B158: 018036 | C158: SBC | D158: TAMPA 3 MODULOS CONDULETE TOP 3/4" | E158: UN | F158: 100 | G158: 0 | H158: 0 | I158: 0 | J158: 0 | L158: 6.24 | M158: 7.26 | N158: 624 | O158: 726
A159: 8 | D159: Kit 4 (conjunto condulete com placa cega) | I159: =SUM(I160:I162) -> 0 | J159: =SUM(J160:J162) -> 0 | N159: =SUM(N160:N162) -> 10285 | O159: =SUM(O160:O162) -> 11965
A160: 8.1 | B160: 00039334 | C160: SINAPI | D160: CONDULETE EM PVC, TIPO "E", SEM TAMPA, DE 3/4" | E160: UN | F160: 500 | G160: 0 | H160: 0 | I160: =ROUND(G160*F160,2) -> 0 | J160: =ROUND(H160*F160,2) -> 0 | L160: 9.67 | M160: 11.25 | N160: 4835 | O160: 5625
A161: 8.2 | B161: 017929 | C161: SBC | D161: ADAPTADOR CONDULETE TOP 3/4" | E161: UN | F161: 1000 | G161: 0 | H161: 0 | I161: =ROUND(G161*F161,2) -> 0 | J161: =ROUND(H161*F161,2) -> 0 | L161: 2.2 | M161: 2.56 | N161: 2200 | O161: 2560
A162: 8.3 | B162: 018025 | C162: SBC | D162: TAMPA CEGA CONDULETE 4"x2" | E162: UN | F162: 500 | G162: 0 | H162: 0 | I162: 0 | J162: 0 | L162: 6.5 | M162: 7.56 | N162: 3250 | O162: 3780
A163: 9 | D163: Kit 5 (conjunto condulete para tomada 10A) | I163: =SUM(I164:I167) -> 0 | J163: =SUM(J164:J167) -> 0 | N163: =SUM(N164:N167) -> 27890 | O163: =SUM(O164:O167) -> 32440
A164: 9.1 | B164: 00039334 | C164: SINAPI | D164: CONDULETE EM PVC, TIPO "E", SEM TAMPA, DE 3/4" | E164: UN | F164: 1000 | G164: 0 | H164: 0 | I164: =ROUND(G164*F164,2) -> 0 | J164: =ROUND(H164*F164,2) -> 0 | L164: 9.67 | M164: 11.25 | N164: 9670 | O164: 11250
A165: 9.2 | B165: 017929 | C165: SBC | D165: ADAPTADOR CONDULETE TOP 3/4" | E165: UN | F165: 2000 | G165: 0 | H165: 0 | I165: =ROUND(G165*F165,2) -> 0 | J165: =ROUND(H165*F165,2) -> 0 | L165: 2.2 | M165: 2.56 | N165: 4400 | O165: 5120
A166: 9.3 | B166: 00038101 | C166: SINAPI | D166: TOMADA 2P+T 10A, 250V ( MODULO COM ABAS) | E166: UN | F166: 1000 | G166: 0 | H166: 0 | I166: 0 | J166: 0 | L166: 10.17 | M166: 11.83 | N166: 10170 | O166: 11830
A167: 9.4 | B167: 00039352 | C167: SINAPI | D167: TAMPA PARA CONDULETE, EM PVC, PARA TOMADA HEXAGONAL | E167: UN | F167: 1000 | G167: 0 | H167: 0 | I167: 0 | J167: 0 | L167: 3.65 | M167: 4.24 | N167: 3650 | O167: 4240
A168: 10 | D168: Kit 6 ( conjunto condulete para tomada 20A) | I168: =SUM(I169:I172) -> 0 | J168: =SUM(J169:J172) -> 0 | N168: =SUM(N169:N172) -> 24584 | O168: =SUM(O169:O172) -> 28592
A169: 10.1 | B169: 00039334 | C169: SINAPI | D169: CONDULETE EM PVC, TIPO "E", SEM TAMPA, DE 3/4" | E169: UN | F169: 800 | G169: 0 | H169: 0 | I169: =ROUND(G169*F169,2) -> 0 | J169: =ROUND(H169*F169,2) -> 0 | L169: 9.67 | M169: 11.25 | N169: 7736 | O169: 9000
A170: 10.2 | B170: 017929 | C170: SBC | D170: ADAPTADOR CONDULETE TOP 3/4" | E170: UN | F170: 1600 | G170: 0 | H170: 0 | I170: =ROUND(G170*F170,2) -> 0 | J170: =ROUND(H170*F170,2) -> 0 | L170: 2.2 | M170: 2.56 | N170: 3520 | O170: 4096
A171: 10.3 | B171: 00038102 | C171: SINAPI | D171: TOMADA 2P+T 20A, 250V ( MODULO COM ABAS) | E171: UN | F171: 800 | G171: 0 | H171: 0 | I171: 0 | J171: 0 | L171: 13.01 | M171: 15.13 | N171: 10408 | O171: 12104
A172: 10.4 | B172: 00039352 | C172: SINAPI | D172: TAMPA PARA CONDULETE, EM PVC, PARA TOMADA HEXAGONAL | E172: UN | F172: 800 | G172: 0 | H172: 0 | I172: 0 | J172: 0 | L172: 3.65 | M172: 4.24 | N172: 2920 | O172: 3392
A173: 11 | D173: Itens elétricos sem kit | I173: =SUM(I174:I217) -> 0 | J173: =SUM(J174:J217) -> 0 | N173: =SUM(N174:N217) -> 210382.24 | O173: =SUM(O174:O217) -> 244631.92
A174: 11.1 | B174: 001253 | C174: SBC | D174: CABO PP CORDPLAST 2 CONDUTORES 450/750V 2,50mm2 | E174: M | F174: 1000 | G174: 0 | H174: 0 | I174: =ROUND(G174*F174,2) -> 0 | J174: =ROUND(H174*F174,2) -> 0 | L174: 6.05 | M174: 7.04 | N174: 6050 | O174: 7040
A175: 11.2 | B175: 004989 | C175: SBC | D175: FIO SUPERASTIC FLEX 450/750V 2,5mm2 CORES DIVERSAS | E175: M | F175: 10000 | G175: 0 | H175: 0 | I175: =ROUND(G175*F175,2) -> 0 | J175: =ROUND(H175*F175,2) -> 0 | L175: 2.48 | M175: 2.88 | N175: 24800 | O175: 28800
A176: 11.3 | B176: 003580 | C176: SBC | D176: FIO SUPERASTIC FLEX 450/750V 4,0mm2 CORES DIVERSAS | E176: M | F176: 1000 | G176: 0 | H176: 0 | I176: 0 | J176: 0 | L176: 4.01 | M176: 4.66 | N176: 4010 | O176: 4660
A177: 11.4 | B177: 00043973 | C177: SINAPI | D177: CABO DE REDE, PAR TRANCADO U/UTP, 4 PARES, CATEGORIA 6 (CAT 6), ISOLAMENTO PVC (CM) | E177: M | F177: 5000 | G177: 0 | H177: 0 | I177: 0 | J177: 0 | L177: 3.65 | M177: 4.24 | N177: 18250 | O177: 21200
A178: 11.5 | B178: 036462 | C178: SBC | D178: ADAPTADOR PARA TOMADA NOVO PADRAO NBR14.136 690661 PIAL | E178: UN | F178: 100 | G178: 0 | H178: 0 | I178: 0 | J178: 0 | L178: 21.6 | M178: 25.12 | N178: 2160 | O178: 2512
A179: 11.6 | B179: 00020111 | C179: SINAPI | D179: FITA ISOLANTE ADESIVA ANTICHAMA, USO ATE 750 V, EM ROLO DE 19 MM X 20 M | E179: UN | F179: 250 | G179: 0 | H179: 0 | I179: 0 | J179: 0 | L179: 12.25 | M179: 14.25 | N179: 3062.5 | O179: 3562.5
A180: 11.7 | B180: 004500 | C180: SBC | D180: INTERRUPTOR SIMPLES EMBUTIR 10A-250V COM PLACA PIAL | E180: UN | F180: 30 | G180: 0 | H180: 0 | I180: 0 | J180: 0 | L180: 23.99 | M180: 27.9 | N180: 719.7 | O180: 837
A181: 11.8 | B181: 00039390 | C181: SINAPI | D181: LUMINARIA LED REFLETOR RETANGULAR BIVOLT, LUZ BRANCA, 30 W | E181: UN | F181: 100 | G181: 0 | H181: 0 | I181: 0 | J181: 0 | L181: 26.13 | M181: 30.39 | N181: 2613 | O181: 3039
A182: 11.9 | B182: 004771 | C182: SBC | D182: LAMPADA LED SOLLAR BULBO 7W BRANCA BIVOLT | E182: UN | F182: 100 | G182: 0 | H182: 0 | I182: 0 | J182: 0 | L182: 19.9 | M182: 23.14 | N182: 1990 | O182: 2314
A183: 11.10 | B183: 00039387 | C183: SINAPI | D183: LAMPADA LED TUBULAR BIVOLT 18/20 W, BASE G13 | E183: UN | F183: 100 | G183: 0 | H183: 0 | I183: 0 | J183: 0 | L183: 9.58 | M183: 11.14 | N183: 958 | O183: 1114
A184: 11.11 | B184: 7° SR - 14 | C184: Próprio | D184: Luz emergência led, 30 un, 3W, bivolt, autonomia minima 12hrs | E184: UN | F184: 50 | G184: 0 | H184: 0 | I184: 0 | J184: 0 | L184: 18.91 | M184: 21.99 | N184: 945.5 | O184: 1099.5
A185: 11.12 | B185: 00039386 | C185: SINAPI | D185: LAMPADA LED TUBULAR BIVOLT 9/10 W, BASE G13 | E185: UN | F185: 500 | G185: 0 | H185: 0 | I185: 0 | J185: 0 | L185: 6.68 | M185: 7.77 | N185: 3340 | O185: 3885
A186: 11.13 | B186: 7° SR - 15 | C186: Próprio | D186: Refletor, alumínio injetado, tipo led, 100W, 220V, IP65 | E186: UN | F186: 20 | G186: 0 | H186: 0 | I186: 0 | J186: 0 | L186: 57.02 | M186: 66.31 | N186: 1140.4 | O186: 1326.2
A187: 11.14 | B187: 7° SR - 16 | C187: Próprio | D187: Refletor, alumínio, 4 unidades, tipo led, 200W, 220V, IP67 | E187: UN | F187: 20 | G187: 0 | H187: 0 | I187: 0 | J187: 0 | L187: 75.9 | M187: 88.27 | N187: 1518 | O187: 1765.4
A188: 11.15 | B188: 064446 | C188: SBC | D188: SUPORTE/SOQUETE PLASTICO ANTIVIBRATORIO PARA LAMPADA FLUORESCENTE | E188: UN | F188: 200 | G188: 0 | H188: 0 | I188: 0 | J188: 0 | L188: 2.5 | M188: 2.91 | N188: 500 | O188: 582
A189: 11.16 | B189: 7° SR - 17 | C189: Próprio | D189: Filtro de Linha, 110/220V, para 6 tomadas, 60Hz | E189: UN | F189: 100 | G189: 0 | H189: 0 | I189: 0 | J189: 0 | L189: 43.65 | M189: 50.76 | N189: 4365 | O189: 5076
A190: 11.17 | B190: 00039253 | C190: SINAPI | D190: ELETRODUTO/CONDULETE DE PVC RIGIDO, LISO, COR CINZA, DE 3/4", PARA INSTALACOES APARENTES (NBR 5410) | E190: M | F190: 1500 | G190: 0 | H190: 0 | I190: 0 | J190: 0 | L190: 16.95 | M190: 19.71 | N190: 25425 | O190: 29565
A191: 11.18 | B191: 00039255 | C191: SINAPI | D191: ELETRODUTO/CONDULETE DE PVC RIGIDO, LISO, COR CINZA, DE 1", PARA INSTALACOES APARENTES (NBR 5410) | E191: M | F191: 150 | G191: 0 | H191: 0 | I191: 0 | J191: 0 | L191: 24.6 | M191: 28.61 | N191: 3690 | O191: 4291.5
A192: 11.19 | B192: 002025 | C192: SBC | D192: BOX ALUMINIO RETO PARA ELETRODUTO 3/4" TRAMONTINA | E192: UN | F192: 500 | G192: 0 | H192: 0 | I192: 0 | J192: 0 | L192: 4.41 | M192: 5.13 | N192: 2205 | O192: 2565
A193: 11.20 | B193: 006895 | C193: SBC | D193: BOX ALUMINIO RETO PARA ELETRODUTO 1" TRAMONTINA | E193: UN | F193: 150 | G193: 0 | H193: 0 | I193: 0 | J193: 0 | L193: 5.82 | M193: 6.77 | N193: 873 | O193: 1015.5
A194: 11.21 | B194: 003577 | C194: SBC | D194: INTERRUPTOR BIPOLAR 10A-250V LIZ TRAMONTINA | E194: UN | F194: 200 | G194: 0 | H194: 0 | I194: 0 | J194: 0 | L194: 19.3 | M194: 22.45 | N194: 3860 | O194: 4490
A195: 11.22 | B195: 000032 | C195: SBC | D195: INTERRUPTOR 3 TECLAS SIMPLES COM PLACA SERIE MODULARE FAME | E195: UN | F195: 50 | G195: 0 | H195: 0 | I195: 0 | J195: 0 | L195: 22.9 | M195: 26.63 | N195: 1145 | O195: 1331.5
A196: 11.23 | B196: 00010569 | C196: SINAPI | D196: CAIXA DE PASSAGEM / DERIVACAO / LUZ, OCTOGONAL 4 X4, EM ACO ESMALTADA, COM FUNDO MOVEL SIMPLES (FMS) | E196: UN | F196: 50 | G196: 0 | H196: 0 | I196: 0 | J196: 0 | L196: 2.69 | M196: 3.13 | N196: 134.5 | O196: 156.5
A197: 11.24 | B197: 00038096 | C197: SINAPI | D197: ESPELHO / PLACA DE 2 POSTOS 4" X 4", PARA INSTALACAO DE TOMADAS E INTERRUPTORES | E197: UN | F197: 50 | G197: 0 | H197: 0 | I197: 0 | J197: 0 | L197: 7.18 | M197: 8.35 | N197: 359 | O197: 417.5
A198: 11.25 | B198: 00038101 | C198: SINAPI | D198: TOMADA 2P+T 10A, 250V (APENAS MODULO) | E198: UN | F198: 100 | G198: 0 | H198: =ROUND(G198*(1+$H$2),2) -> 0 | I198: 0 | J198: 0 | L198: 10.17 | M198: 11.83 | N198: 1017 | O198: 1183
A199: 11.26 | B199: 00038092 | C199: SINAPI | D199: ESPELHO / PLACA DE 1 POSTO 4" X 2", PARA INSTALACAO DE TOMADAS E INTERRUPTORES | E199: UN | F199: 100 | G199: 0 | H199: 0 | I199: 0 | J199: 0 | L199: 2.99 | M199: 3.48 | N199: 299 | O199: 348
A200: 11.27 | B200: 00038099 | C200: SINAPI | D200: SUPORTE DE FIXACAO PARA ESPELHO / PLACA 4" X 2", PARA 1 MODULO, PARA INSTALACAO DE TOMADAS E INTERRUPTORES (SOMENTE SUPORTE) | E200: UN | F200: 100 | G200: 0 | H200: 0 | I200: 0 | J200: 0 | L200: 1.96 | M200: 2.28 | N200: 196 | O200: 228
... 55 more rows

Sheet EPI
A1: Item | B1: Profissional | C1: EPI | D1: Referência | E1: Custo Unitário (R$) | F1: Vida útil (dias) | G1: Vida útil (horas) | H1: Coefíciente de utilização | I1: Custo Horario (R$) | J1: Custo Mensal (R$) | L1: Soma | M1: Custo Mensal
A2: 1.1 | B2: Carpinteiro | C2: Uniforme comum | D2: SINAPI | E2: 0 | F2: 180 | G2: 1131.43 | H2: 1 | I2: =ROUND(E2/G2*H2,4) -> 0 | J2: =ROUND(I2*30/7*44,2) -> 0 | L2: Carpinteiro | M2: =SUMIF(EPI[Profissional],L2,EPI[Custo Mensal (R$)]) -> 0
A3: 1.2 | B3: Carpinteiro | C3: Capacete | D3: SINAPI | E3: 0 | F3: 360 | G3: 2262.86 | H3: 1 | I3: 0 | J3: 0 | L3: Eletricista | M3: =SUMIF(EPI[Profissional],L3,EPI[Custo Mensal (R$)]) -> 0
A4: 1.3 | B4: Carpinteiro | C4: Botas de couro cano curto | D4: SINAPI | E4: 0 | F4: 90 | G4: 565.71 | H4: 1 | I4: 0 | J4: 0 | L4: Encanador | M4: =SUMIF(EPI[Profissional],L4,EPI[Custo Mensal (R$)]) -> 0
A5: 1.4 | B5: Carpinteiro | C5: Luvas de raspa cano curto | D5: SINAPI | E5: 0 | F5: 10 | G5: 73.33 | H5: 1 | I5: 0 | J5: 0 | L5: Engenheiro | M5: =SUMIF(EPI[Profissional],L5,EPI[Custo Mensal (R$)]) -> 0
A6: 1.5 | B6: Carpinteiro | C6: Óculos contra impacto | D6: SINAPI | E6: 0 | F6: 60 | G6: 377.14 | H6: 1 | I6: 0 | J6: 0 | L6: Encarregado | M6: =SUMIF(EPI[Profissional],L6,EPI[Custo Mensal (R$)]) -> 0
A7: 1.6 | B7: Carpinteiro | C7: Protetor auricular | D7: SINAPI | E7: 0 | F7: 20 | G7: 146.67 | H7: 0.6 | I7: 0 | J7: 0 | L7: Pintor | M7: =SUMIF(EPI[Profissional],L7,EPI[Custo Mensal (R$)]) -> 0
A8: 1.7 | B8: Carpinteiro | C8: Abafador de ruídos | D8: SINAPI | E8: 0 | F8: 90 | G8: 565.71 | H8: 0.5 | I8: 0 | J8: 0 | L8: Servente | M8: =SUMIF(EPI[Profissional],L8,EPI[Custo Mensal (R$)]) -> 0
A9: 1.8 | B9: Carpinteiro | C9: Respirador descartável sem vávula | D9: SINAPI | E9: 0 | F9: 1 | G9: 7.33 | H9: 0.4 | I9: 0 | J9: 0
A10: 1.9 | B10: Carpinteiro | C10: Protetor facial de acrílico | D10: SINAPI | E10: 0 | F10: 60 | G10: 377.14 | H10: 0.5 | I10: 0 | J10: 0
A11: 1.10 | B11: Carpinteiro | C11: Avental de raspa | D11: SINAPI | E11: 0 | F11: 30 | G11: 188.57 | H11: 0.5 | I11: 0 | J11: 0
A12: 2.1 | B12: Eletricista | C12: Uniforme comum (2 unidades) | D12: SINAPI | E12: 0 | F12: 180 | G12: 1131.43 | H12: 1 | I12: 0 | J12: 0
A13: 2.2 | B13: Eletricista | C13: Capacete | D13: SINAPI | E13: 0 | F13: 360 | G13: 2262.86 | H13: 1 | I13: 0 | J13: 0
A14: 2.3 | B14: Eletricista | C14: Botas de couro cano curto | D14: SINAPI | E14: 0 | F14: 90 | G14: 565.71 | H14: 1 | I14: 0 | J14: 0
A15: 2.4 | B15: Eletricista | C15: Luvas de borracha - látex - cano curto | D15: SINAPI | E15: 0 | F15: 2 | G15: 14.67 | H15: 0.3 | I15: 0 | J15: 0
A16: 2.5 | B16: Eletricista | C16: Luvas de raspa cano curto | D16: SINAPI | E16: 0 | F16: 10 | G16: 73.33 | H16: 0.7 | I16: 0 | J16: 0
A17: 2.6 | B17: Eletricista | C17: Óculos contra impacto | D17: SINAPI | E17: 0 | F17: 60 | G17: 377.14 | H17: 1 | I17: 0 | J17: 0
A18: 2.7 | B18: Eletricista | C18: Protetor auricular | D18: SINAPI | E18: 0 | F18: 20 | G18: 146.67 | H18: 0.6 | I18: 0 | J18: 0
A19: 2.8 | B19: Eletricista | C19: Cinto de segurança tipo paraquedista | D19: SINAPI | E19: 0 | F19: 180 | G19: 1131.43 | H19: 0.2 | I19: 0 | J19: 0
A20: 2.9 | B20: Eletricista | C20: Trava quedas | D20: SINAPI | E20: 0 | F20: 90 | G20: 565.71 | H20: 0.2 | I20: 0 | J20: 0
A21: 2.10 | B21: Eletricista | C21: Talabarte | D21: SINAPI | E21: 0 | F21: 90 | G21: 565.71 | H21: 0.2 | I21: 0 | J21: 0
A22: 2.11 | B22: Eletricista | C22: Protetor facial de acrílico | D22: SINAPI | E22: 0 | F22: 60 | G22: 377.14 | H22: 0.5 | I22: 0 | J22: 0
A23: 2.12 | B23: Eletricista | C23: Respirador descartável sem válvula | D23: SINAPI | E23: 0 | F23: 1 | G23: 7.33 | H23: 0.2 | I23: 0 | J23: 0
A24: 2.13 | B24: Eletricista | C24: Luva de Alta Tensão | D24: SINAPI | E24: 0 | F24: 360 | G24: 2262.86 | H24: 0.5 | I24: 0 | J24: 0
A25: 1 | B25: Encanador | C25: Uniforme comum (2 unidades) | D25: SINAPI | E25: 0 | F25: 180 | G25: 1131.43 | H25: 1 | I25: 0 | J25: 0
A26: 2 | B26: Encanador | C26: Capacete | D26: SINAPI | E26: 0 | F26: 360 | G26: 2262.86 | H26: 1 | I26: 0 | J26: 0
A27: 3 | B27: Encanador | C27: Botas de couro cano curto | D27: SINAPI | E27: 0 | F27: 90 | G27: 565.71 | H27: 0.6 | I27: =ROUND(E27/G27*H27,4) -> 0 | J27: 0
A28: 4 | B28: Encanador | C28: Botas de PVC cano médio | D28: SINAPI | E28: 0 | F28: 90 | G28: 565.71 | H28: 0.4 | I28: 0 | J28: 0
A29: 5 | B29: Encanador | C29: Luvas de borracha - látex - cano curto | D29: SINAPI | E29: 0 | F29: 2 | G29: 14.67 | H29: 0.3 | I29: 0 | J29: 0
A30: 6 | B30: Encanador | C30: Luvas de raspa cano curto | D30: SINAPI | E30: 0 | F30: 10 | G30: 73.33 | H30: 0.7 | I30: 0 | J30: 0
A31: 7 | B31: Encanador | C31: Óculos contra impacto | D31: SINAPI | E31: 0 | F31: 60 | G31: 377.14 | H31: 1 | I31: 0 | J31: 0
A32: 8 | B32: Encanador | C32: Protetor auricular | D32: SINAPI | E32: 0 | F32: 20 | G32: 146.67 | H32: 0.6 | I32: 0 | J32: 0
A33: 1 | B33: Engenheiro | C33: Uniforme comum (2 unidades) | D33: SINAPI | E33: 0 | F33: 180 | G33: 1131.43 | H33: 1 | I33: 0 | J33: 0
A34: 2 | B34: Engenheiro | C34: Capacete | D34: SINAPI | E34: 0 | F34: 360 | G34: 2262.86 | H34: 1 | I34: 0 | J34: 0
A35: 3 | B35: Engenheiro | C35: Botas de couro cano curto | D35: SINAPI | E35: 0 | F35: 90 | G35: 565.71 | H35: 1 | I35: 0 | J35: 0
A36: 4 | B36: Engenheiro | C36: Protetor auricular | D36: SINAPI | E36: 0 | F36: 20 | G36: 146.67 | H36: 0.3 | I36: 0 | J36: 0
A37: 5 | B37: Engenheiro | C37: Óculos contra impacto | D37: SINAPI | E37: 0 | F37: 60 | G37: 377.14 | H37: 0.5 | I37: 0 | J37: 0
A38: 1 | B38: Encarregado | C38: Uniforme comum (2 unidades) | D38: SINAPI | E38: 0 | F38: 180 | G38: 1131.43 | H38: 1 | I38: 0 | J38: 0
A39: 2 | B39: Encarregado | C39: Capacete | D39: SINAPI | E39: 0 | F39: 360 | G39: 2262.86 | H39: 1 | I39: 0 | J39: 0
A40: 3 | B40: Encarregado | C40: Botas de couro cano curto | D40: SINAPI | E40: 0 | F40: 90 | G40: 565.71 | H40: 0.7 | I40: 0 | J40: 0
A41: 4 | B41: Encarregado | C41: Botas de PVC cano médio | D41: SINAPI | E41: 0 | F41: 90 | G41: 565.71 | H41: 0.3 | I41: 0 | J41: 0
A42: 5 | B42: Encarregado | C42: Luvas de PVC cano médio forradas | D42: SINAPI | E42: 0 | F42: 5 | G42: 36.67 | H42: 0.3 | I42: 0 | J42: =ROUND(I42*30/7*44,2) -> 0
A43: 6 | B43: Encarregado | C43: Luvas de raspa cano curto | D43: SINAPI | E43: 0 | F43: 10 | G43: 73.33 | H43: 0.7 | I43: 0 | J43: 0
A44: 7 | B44: Encarregado | C44: Óculos contra impacto | D44: SINAPI | E44: 0 | F44: 60 | G44: 377.14 | H44: 1 | I44: 0 | J44: 0
A45: 8 | B45: Encarregado | C45: Protetor auricular | D45: SINAPI | E45: 0 | F45: 20 | G45: 146.67 | H45: 0.6 | I45: 0 | J45: 0
A46: 14 | B46: Encarregado | C46: Respirador descartável sem válvula | D46: SINAPI | E46: 0 | F46: 1 | G46: 7.33 | H46: 0.2 | I46: =ROUND(E46/G46*H46,4) -> 0 | J46: 0
A47: 1 | B47: Pintor | C47: Uniforme comum (2 unidades) | D47: SINAPI | E47: 0 | F47: 180 | G47: 1131.43 | H47: 1 | I47: 0 | J47: 0
A48: 2 | B48: Pintor | C48: Capacete | D48: SINAPI | E48: 0 | F48: 360 | G48: 2262.86 | H48: 1 | I48: 0 | J48: 0
A49: 3 | B49: Pintor | C49: Botas de couro cano curto | D49: SINAPI | E49: 0 | F49: 90 | G49: 565.71 | H49: 1 | I49: 0 | J49: 0
A50: 4 | B50: Pintor | C50: Luvas de borracha - látex - cano curto | D50: SINAPI | E50: 0 | F50: 2 | G50: 14.67 | H50: 1 | I50: 0 | J50: 0
A51: 5 | B51: Pintor | C51: Avental de PVC | D51: SINAPI | E51: 0 | F51: 15 | G51: 110 | H51: 1 | I51: 0 | J51: 0
A52: 6 | B52: Pintor | C52: Óculos contra impacto | D52: SINAPI | E52: 0 | F52: 60 | G52: 377.14 | H52: 1 | I52: 0 | J52: 0
A53: 7 | B53: Pintor | C53: Respirador descartável sem válvula | D53: SINAPI | E53: 0 | F53: 1 | G53: 7.33 | H53: 0.5 | I53: 0 | J53: 0
A54: 8 | B54: Pintor | C54: Máscara semifacial com 1 filtro | D54: SINAPI | E54: 0 | F54: 120 | G54: 754.29 | H54: 0.5 | I54: 0 | J54: 0
A55: 9 | B55: Pintor | C55: Filtro para máscara semifacial | D55: SINAPI | E55: 0 | F55: 10 | G55: 73.33 | H55: 0.5 | I55: 0 | J55: 0
A56: 10 | B56: Pintor | C56: Protetor auricular | D56: SINAPI | E56: 0 | F56: 20 | G56: 146.67 | H56: 0.6 | I56: 0 | J56: 0
A57: 1 | B57: Servente | C57: Uniforme comum (2 unidades) | D57: SINAPI | E57: 0 | F57: 180 | G57: 1131.43 | H57: 1 | I57: 0 | J57: 0
A58: 2 | B58: Servente | C58: Capacete | D58: SINAPI | E58: 0 | F58: 360 | G58: 2262.86 | H58: 1 | I58: 0 | J58: 0
A59: 3 | B59: Servente | C59: Botas de couro cano curto | D59: SINAPI | E59: 0 | F59: 90 | G59: 565.71 | H59: 0.7 | I59: 0 | J59: 0
A60: 4 | B60: Servente | C60: Botas de PVC cano médio | D60: SINAPI | E60: 0 | F60: 90 | G60: 565.71 | H60: 0.3 | I60: 0 | J60: 0
A61: 5 | B61: Servente | C61: Luvas de PVC cano médio forradas | D61: SINAPI | E61: 0 | F61: 5 | G61: 36.67 | H61: 0.3 | I61: 0 | J61: 0
A62: 6 | B62: Servente | C62: Luvas de borracha - látex - cano curto | D62: SINAPI | E62: 0 | F62: 2 | G62: 14.67 | H62: 0.2 | I62: 0 | J62: 0
A63: 7 | B63: Servente | C63: Luvas de raspa cano curto | D63: SINAPI | E63: 0 | F63: 10 | G63: 73.33 | H63: 0.5 | I63: 0 | J63: 0
A64: 8 | B64: Servente | C64: Óculos contra impacto | D64: SINAPI | E64: 0 | F64: 60 | G64: 377.14 | H64: 0.7 | I64: 0 | J64: 0
A65: 9 | B65: Servente | C65: Respirador descartável sem válvula | D65: SINAPI | E65: 0 | F65: 1 | G65: 7.33 | H65: 0.7 | I65: 0 | J65: 0
A66: 10 | B66: Servente | C66: Protetor auricular | D66: SINAPI | E66: 0 | F66: 20 | G66: 146.67 | H66: 0.3 | I66: 0 | J66: 0
A67: 11 | B67: Servente | C67: Abafador de ruídos | D67: SINAPI | E67: 0 | F67: 90 | G67: 565.71 | H67: 0.2 | I67: 0 | J67: 0

Sheet FER
A1: Item | B1: Profissional | C1: Ferramentas | D1: Referência | E1: Custo Unitário (R$) | F1: Vida útil (dias) | G1: Vida útil (horas) | H1: Coefíciente de utilização | I1: Custo Horario (R$) | J1: Custo Mensal (R$) | L1: Soma | M1: Custo Mensal
A2: 1.1 | B2: Carpinteiro | C2: Furadeira de impacto 1/2" - 600W | D2: SINAPI | E2: 0 | F2: 720 | G2: 4525.71 | H2: 0.5 | I2: =ROUND(E2/G2*H2,4) -> 0 | J2: =ROUND(I2*30/7*44,2) -> 0 | L2: Carpinteiro | M2: =SUMIF(FER[Profissional],L2,FER[Custo Mensal (R$)]) -> 0
A3: 1.2 | B3: Carpinteiro | C3: Grampo de aperto rápido 18" | D3: SINAPI | E3: 0 | F3: 360 | G3: 2262.86 | H3: 0.3 | I3: 0 | J3: 0 | L3: Eletricista | M3: =SUMIF(FER[Profissional],L3,FER[Custo Mensal (R$)]) -> 0
A4: 1.3 | B4: Carpinteiro | C4: Trena | D4: SINAPI | E4: 0 | F4: 360 | G4: 2262.86 | H4: 0.8 | I4: 0 | J4: 0 | L4: Encanador | M4: =SUMIF(FER[Profissional],L4,FER[Custo Mensal (R$)]) -> 0
A5: 1.4 | B5: Carpinteiro | C5: Martelo de pedreiro - 1 corte - cabo 20 cm - 1/2 kg | D5: SINAPI | E5: 0 | F5: 90 | G5: 565.71 | H5: 0.7 | I5: 0 | J5: 0 | L5: Engenheiro | M5: =SUMIF(FER[Profissional],L5,FER[Custo Mensal (R$)]) -> 0
A6: 1.5 | B6: Carpinteiro | C6: Martelo de borracha | D6: SINAPI | E6: 0 | F6: 180 | G6: 1131.43 | H6: 0.5 | I6: 0 | J6: 0 | L6: Encarregado | M6: =SUMIF(FER[Profissional],L6,FER[Custo Mensal (R$)]) -> 0
A7: 1.6 | B7: Carpinteiro | C7: Nível de bolha - alumínio - 35 cm | D7: SINAPI | E7: 0 | F7: 90 | G7: 565.71 | H7: 0.5 | I7: 0 | J7: 0 | L7: Pintor | M7: =SUMIF(FER[Profissional],L7,FER[Custo Mensal (R$)]) -> 0
A8: 1.7 | B8: Carpinteiro | C8: Serrote 20 | D8: SINAPI | E8: 0 | F8: 90 | G8: 565.71 | H8: 0.3 | I8: 0 | J8: 0 | L8: Servente | M8: =SUMIF(FER[Profissional],L8,FER[Custo Mensal (R$)]) -> 0
A9: 1.8 | B9: Carpinteiro | C9: Alicate diagonal para corte rente 6" | D9: SINAPI | E9: 0 | F9: 180 | G9: 1131.43 | H9: 0.2 | I9: 0 | J9: 0
A10: 1.9 | B10: Carpinteiro | C10: Kit Chave de Fenda e Phillips | D10: SINAPI | E10: 0 | F10: 360 | G10: 2262.86 | H10: 0.4 | I10: 0 | J10: 0
A11: 1.10 | B11: Carpinteiro | C11: Lápis de carpinteiro | D11: SINAPI | E11: 0 | F11: 2 | G11: 14.67 | H11: 0.8 | I11: 0 | J11: 0
A12: 1.11 | B12: Carpinteiro | C12: Estilete 18 mm | D12: SINAPI | E12: 0 | F12: 30 | G12: 188.57 | H12: 0.5 | I12: 0 | J12: 0
A13: 1.12 | B13: Carpinteiro | C13: Régua de Alumínio - 2m | D13: SINAPI | E13: 0 | F13: 360 | G13: 2262.86 | H13: 0.3 | I13: 0 | J13: 0
A14: 1.13 | B14: Carpinteiro | C14: Esquadro 90° x 30 cm (12") | D14: SINAPI | E14: 0 | F14: 360 | G14: 2262.86 | H14: 0.5 | I14: 0 | J14: 0
A15: 1.14 | B15: Carpinteiro | C15: Riscador com ponta de videa | D15: SINAPI | E15: 0 | F15: 360 | G15: 2262.86 | H15: 0.5 | I15: 0 | J15: 0
A16: 1.15 | B16: Carpinteiro | C16: Formão chanfrado 1" | D16: SINAPI | E16: 0 | F16: 180 | G16: 1131.43 | H16: 0.4 | I16: 0 | J16: 0
A17: 2.1 | B17: Eletricista | C17: Bolsa de lona para ferramentas 40 x 30 x 20 cm | D17: SINAPI | E17: 0 | F17: 180 | G17: 1131.43 | H17: 1 | I17: 0 | J17: 0
A18: 2.2 | B18: Eletricista | C18: Alicate Profissional 8'' | D18: SINAPI | E18: 0 | F18: 180 | G18: 1131.43 | H18: 0.3 | I18: 0 | J18: 0
A19: 2.3 | B19: Eletricista | C19: Alicate de Bico Longo de 6" | D19: SINAPI | E19: 0 | F19: 180 | G19: 1131.43 | H19: 0.3 | I19: 0 | J19: 0
A20: 2.4 | B20: Eletricista | C20: Alicate diagonal para corte rente 6" | D20: SINAPI | E20: 0 | F20: 180 | G20: 1131.43 | H20: 0.3 | I20: 0 | J20: 0
A21: 2.5 | B21: Eletricista | C21: Arco de serra | D21: SINAPI | E21: 0 | F21: 90 | G21: 565.71 | H21: 0.2 | I21: 0 | J21: 0
A22: 2.6 | B22: Eletricista | C22: Alicate Climpador | D22: SINAPI | E22: 0 | F22: 180 | G22: 1131.43 | H22: 0.3 | I22: 0 | J22: 0
A23: 2.7 | B23: Eletricista | C23: Kit Chave de Fenda e Phillips | D23: SINAPI | E23: 0 | F23: 360 | G23: 2262.86 | H23: 0.4 | I23: 0 | J23: 0
A24: 2.8 | B24: Eletricista | C24: Decapador de fio | D24: SINAPI | E24: 0 | F24: 180 | G24: 1131.43 | H24: 0.3 | I24: 0 | J24: 0
A25: 2.9 | B25: Eletricista | C25: Alicate de pressão 11" | D25: SINAPI | E25: 0 | F25: 180 | G25: 1131.43 | H25: 0.3 | I25: 0 | J25: 0
A26: 2.10 | B26: Eletricista | C26: Chave inglesa 6'' | D26: SINAPI | E26: 0 | F26: 180 | G26: 1131.43 | H26: 0.3 | I26: 0 | J26: 0
A27: 2.11 | B27: Eletricista | C27: Jogo de chave allen estrela ou hexagonal | D27: SINAPI | E27: 0 | F27: 180 | G27: 1131.43 | H27: 0.3 | I27: 0 | J27: 0
A28: 2.12 | B28: Eletricista | C28: Detector de tensao | D28: SINAPI | E28: 0 | F28: 360 | G28: 2262.86 | H28: 0.2 | I28: 0 | J28: 0
A29: 2.13 | B29: Eletricista | C29: Alicate amperímetro | D29: SINAPI | E29: 0 | F29: 360 | G29: 2262.86 | H29: 0.2 | I29: 0 | J29: 0
A30: 2.14 | B30: Eletricista | C30: Lima redonda 8 | D30: SINAPI | E30: 0 | F30: 180 | G30: 1131.43 | H30: 0.3 | I30: 0 | J30: 0
A31: 2.15 | B31: Eletricista | C31: Ferro de solda | D31: SINAPI | E31: 0 | F31: 180 | G31: 1131.43 | H31: 0.2 | I31: 0 | J31: 0
A32: 2.16 | B32: Eletricista | C32: Furadeira de impacto 1/2" - 600W | D32: SINAPI | E32: 0 | F32: 720 | G32: 4525.71 | H32: 0.2 | I32: 0 | J32: 0
A33: 2.17 | B33: Eletricista | C33: Trena | D33: SINAPI | E33: 0 | F33: 360 | G33: 2262.86 | H33: 0.5 | I33: 0 | J33: 0
A34: 2.18 | B34: Eletricista | C34: Lixadeira elétrica angular | D34: SINAPI | E34: 0 | F34: 360 | G34: 2262.86 | H34: 0.3 | I34: 0 | J34: 0
A35: 2.19 | B35: Eletricista | C35: Estilete 18 mm | D35: SINAPI | E35: 0 | F35: 30 | G35: 188.57 | H35: 0.3 | I35: 0 | J35: 0
A36: 2.20 | B36: Eletricista | C36: Jogo de serra copo | D36: SINAPI | E36: 0 | F36: 180 | G36: 1131.43 | H36: 0.2 | I36: 0 | J36: 0
A37: 2.21 | B37: Eletricista | C37: Martelo de borracha | D37: SINAPI | E37: 0 | F37: 180 | G37: 1131.43 | H37: 0.2 | I37: 0 | J37: 0
A38: 2.22 | B38: Eletricista | C38: Ponteiro aço liso 3/4" x 10" | D38: SINAPI | E38: 0 | F38: 30 | G38: 188.57 | H38: 0.2 | I38: 0 | J38: 0
A39: 2.23 | B39: Eletricista | C39: Escada de abrir | D39: SINAPI | E39: 0 | F39: 180 | G39: 1131.43 | H39: 0.5 | I39: 0 | J39: 0
A40: 2.24 | B40: Eletricista | C40: Talhadeira aço chato 10" | D40: SINAPI | E40: 0 | F40: 30 | G40: 188.57 | H40: 0.2 | I40: 0 | J40: 0
A41: 2.25 | B41: Eletricista | C41: Lima quadrada 8" | D41: SINAPI | E41: 0 | F41: 180 | G41: 1131.43 | H41: 0.3 | I41: 0 | J41: 0
A42: 3.1 | B42: Encanador | C42: Corta-tubos com capacidade de 6 - 42 mm | D42: SINAPI | E42: 0 | F42: 360 | G42: 2262.86 | H42: 0.3 | I42: 0 | J42: 0
A43: 3.2 | B43: Encanador | C43: Arco de serra | D43: SINAPI | E43: 0 | F43: 90 | G43: 565.71 | H43: 0.3 | I43: 0 | J43: 0
A44: 3.3 | B44: Encanador | C44: Chave de grifo de 24" | D44: SINAPI | E44: 0 | F44: 180 | G44: 1131.43 | H44: 0.3 | I44: 0 | J44: 0
A45: 3.4 | B45: Encanador | C45: Chave fixa 19 X 22 | D45: SINAPI | E45: 0 | F45: 180 | G45: 1131.43 | H45: 0.2 | I45: 0 | J45: 0
A46: 3.5 | B46: Encanador | C46: Chave inglesa 15" | D46: SINAPI | E46: 0 | F46: 180 | G46: 1131.43 | H46: 0.2 | I46: 0 | J46: 0
A47: 3.6 | B47: Encanador | C47: Chave inglesa 10'' | D47: SINAPI | E47: 0 | F47: 180 | G47: 1131.43 | H47: 0.2 | I47: 0 | J47: 0
A48: 3.7 | B48: Encanador | C48: Furadeira de impacto 1/2" - 600W | D48: SINAPI | E48: 0 | F48: 720 | G48: 4525.71 | H48: 0.2 | I48: 0 | J48: 0
A49: 3.8 | B49: Encanador | C49: Maçarico de Solda | D49: SINAPI | E49: 0 | F49: 360 | G49: 2262.86 | H49: 0.2 | I49: 0 | J49: 0
A50: 3.9 | B50: Encanador | C50: Trena | D50: SINAPI | E50: 0 | F50: 360 | G50: 2262.86 | H50: 0.5 | I50: 0 | J50: 0
A51: 3.10 | B51: Encanador | C51: Nível de bolha - alumínio - 35 cm | D51: SINAPI | E51: 0 | F51: 90 | G51: 565.71 | H51: 0.5 | I51: 0 | J51: 0
A52: 3.11 | B52: Encanador | C52: Marreta 1/2 kg | D52: SINAPI | E52: 0 | F52: 90 | G52: 565.71 | H52: 0.2 | I52: 0 | J52: 0
A53: 3.12 | B53: Encanador | C53: Lixadeira elétrica angular 7" - 2.200 W | D53: SINAPI | E53: 0 | F53: 720 | G53: 4525.71 | H53: 0.3 | I53: 0 | J53: 0
A54: 3.13 | B54: Encanador | C54: Linha de Pedreiro 100m | D54: SINAPI | E54: 0 | F54: 7 | G54: 51.33 | H54: 0.2 | I54: 0 | J54: 0
A55: 3.14 | B55: Encanador | C55: Régua de Alumínio - 2m | D55: SINAPI | E55: 0 | F55: 360 | G55: 2262.86 | H55: 0.3 | I55: 0 | J55: 0
A56: 3.15 | B56: Encanador | C56: Talhadeira aço chato 10" | D56: SINAPI | E56: 0 | F56: 30 | G56: 188.57 | H56: 0.2 | I56: 0 | J56: 0
A57: 3.16 | B57: Encanador | C57: Torno/morsa de bancada número 4 | D57: SINAPI | E57: 0 | F57: 720 | G57: 4525.71 | H57: 0.2 | I57: 0 | J57: 0
A58: 4.1 | B58: Engenheiro | C58: Trena | D58: SINAPI | E58: 0 | F58: 360 | G58: 2262.86 | H58: 0.5 | I58: 0 | J58: 0
A59: 4.2 | B59: Engenheiro | C59: Esquadro 90° x 30 cm (12") | D59: SINAPI | E59: 0 | F59: 360 | G59: 2262.86 | H59: 0.2 | I59: 0 | J59: 0
A60: 4.3 | B60: Engenheiro | C60: Prumo de Parede | D60: SINAPI | E60: 0 | F60: 360 | G60: 2262.86 | H60: 0.2 | I60: 0 | J60: 0
A61: 4.4 | B61: Encarregado | C61: Trena | D61: SINAPI | E61: 0 | F61: 360 | G61: 2262.86 | H61: 0.8 | I61: 0 | J61: 0
A62: 4.5 | B62: Encarregado | C62: Martelo de borracha preto 450 g | D62: SINAPI | E62: 0 | F62: 180 | G62: 1131.43 | H62: 0.2 | I62: 0 | J62: 0
A63: 4.6 | B63: Encarregado | C63: Nível de bolha - alumínio - 35 cm | D63: SINAPI | E63: 0 | F63: 90 | G63: 565.71 | H63: 0.2 | I63: =ROUND(E63/G63*H63,4) -> 0 | J63: =ROUND(I63*30/7*44,2) -> 0
A64: 4.7 | B64: Encarregado | C64: Prumo de Parede | D64: SINAPI | E64: 0 | F64: 360 | G64: 2262.86 | H64: 0.3 | I64: 0 | J64: 0
A65: 4.8 | B65: Encarregado | C65: Prumo de Centro | D65: SINAPI | E65: 0 | F65: 360 | G65: 2262.86 | H65: 0.3 | I65: 0 | J65: 0
A66: 4.9 | B66: Encarregado | C66: Esquadro 90° x 30 cm (12") | D66: SINAPI | E66: 0 | F66: 360 | G66: 2262.86 | H66: 0.2 | I66: 0 | J66: 0
A67: 4.10 | B67: Encarregado | C67: Lápis de carpinteiro | D67: SINAPI | E67: 0 | F67: 2 | G67: 14.67 | H67: 0.3 | I67: 0 | J67: 0
A68: 5.1 | B68: Pintor | C68: Escada de abrir, com 2 x 8 degraus (2,40m) | D68: SINAPI | E68: 0 | F68: 180 | G68: 1131.43 | H68: 0.3 | I68: 0 | J68: 0
A69: 5.2 | B69: Pintor | C69: Escada de marinheiro em duralumínio, extensível | D69: SINAPI | E69: 0 | F69: 360 | G69: 2262.86 | H69: 0.3 | I69: 0 | J69: 0
A70: 5.3 | B70: Pintor | C70: Espátula de aço inox 10 cm cabo de madeira | D70: SINAPI | E70: 0 | F70: 30 | G70: 188.57 | H70: 0.4 | I70: 0 | J70: 0
A71: 5.4 | B71: Pintor | C71: Espátula PVC lisa (tamanho médio) | D71: SINAPI | E71: 0 | F71: 30 | G71: 188.57 | H71: 0.2 | I71: 0 | J71: 0
A72: 5.5 | B72: Pintor | C72: Desempenadeira Aço Dentada | D72: SINAPI | E72: 0 | F72: 30 | G72: 188.57 | H72: 0.2 | I72: 0 | J72: 0
A73: 5.6 | B73: Pintor | C73: Desempenadeira Aço Lisa | D73: SINAPI | E73: 0 | F73: 30 | G73: 188.57 | H73: 0.4 | I73: 0 | J73: 0
A74: 5.7 | B74: Pintor | C74: Desempenadeira para Lixa | D74: SINAPI | E74: 0 | F74: 30 | G74: 188.57 | H74: 0.3 | I74: 0 | J74: 0
A75: 5.8 | B75: Pintor | C75: Desempenadeira PVC (tamanho médio) | D75: SINAPI | E75: 0 | F75: 30 | G75: 188.57 | H75: 0.2 | I75: 0 | J75: 0
A76: 5.9 | B76: Pintor | C76: Furadeira de impacto 1/2" - 600W | D76: SINAPI | E76: 0 | F76: 360 | G76: 2262.86 | H76: 0.2 | I76: 0 | J76: 0
A77: 5.10 | B77: Pintor | C77: Lixadeira elétrica angular 7" - 2.200 W - 5.000 RPM - 220 V | D77: SINAPI | E77: 0 | F77: 360 | G77: 2262.86 | H77: 0.3 | I77: 0 | J77: 0
A78: 5.11 | B78: Pintor | C78: Escova de aço, com cabo, 4x15 fileiras de cerdas | D78: SINAPI | E78: 0 | F78: 60 | G78: 377.14 | H78: 0.2 | I78: 0 | J78: 0
A79: 5.12 | B79: Pintor | C79: Fita adesiva (crepe) 25 mm x 50 m Ref. 3M ou similar | D79: SINAPI | E79: 0 | F79: 3 | G79: 22 | H79: 0.2 | I79: 0 | J79: 0
A80: 5.13 | B80: Pintor | C80: Estilete 18 mm | D80: SINAPI | E80: 0 | F80: 30 | G80: 188.57 | H80: 0.2 | I80: 0 | J80: 0
A81: 5.14 | B81: Pintor | C81: Lona plástica preta - 4 x 100 m - 12 kg | D81: SINAPI | E81: 0 | F81: 240 | G81: 1508.57 | H81: 0.5 | I81: 0 | J81: 0
A82: 5.15 | B82: Pintor | C82: Estopa | D82: SINAPI | E82: 0 | F82: 30 | G82: 188.57 | H82: 0.5 | I82: 0 | J82: 0
A83: 5.16 | B83: Pintor | C83: Balde 10 L | D83: SINAPI | E83: 0 | F83: 30 | G83: 188.57 | H83: 1 | I83: 0 | J83: 0
A84: 5.17 | B84: Pintor | C84: Bandeja de pintura | D84: SINAPI | E84: 0 | F84: 30 | G84: 188.57 | H84: 0.35 | I84: 0 | J84: 0
A85: 5.18 | B85: Pintor | C85: Misturador de tinta 100 mm x 60 cm | D85: SINAPI | E85: 0 | F85: 60 | G85: 377.14 | H85: 0.35 | I85: 0 | J85: 0
A86: 5.19 | B86: Pintor | C86: Pincel chato 1" cerdas sintéticas pretas | D86: SINAPI | E86: 0 | F86: 6 | G86: 44 | H86: 0.35 | I86: 0 | J86: 0
A87: 5.20 | B87: Pintor | C87: Trincha 2" cerdas sintéticas pretas | D87: SINAPI | E87: 0 | F87: 6 | G87: 44 | H87: 0.35 | I87: 0 | J87: 0
A88: 5.21 | B88: Pintor | C88: Rolo de lã de carneiro 23 cm c/ cabo | D88: SINAPI | E88: 0 | F88: 6 | G88: 44 | H88: 0.2 | I88: 0 | J88: 0
A89: 5.22 | B89: Pintor | C89: Rolo de espuma poliéster 15 cm c/ cabo | D89: SINAPI | E89: 0 | F89: 6 | G89: 44 | H89: 0.2 | I89: 0 | J89: 0
A90: 5.23 | B90: Pintor | C90: Rolo de espuma poliéster 9 cm c/ cabo | D90: SINAPI | E90: 0 | F90: 6 | G90: 44 | H90: 0.2 | I90: 0 | J90: 0
A91: 5.24 | B91: Pintor | C91: Extensor de cabo de rolo 2 m | D91: SINAPI | E91: 0 | F91: 30 | G91: 188.57 | H91: 0.2 | I91: 0 | J91: 0
A92: 5.25 | B92: Pintor | C92: Compressor de ar profissional 10 pés - 110 L | D92: SINAPI | E92: 0 | F92: 720 | G92: 4525.71 | H92: 0.1 | I92: 0 | J92: 0
A93: 5.26 | B93: Pintor | C93: Kit para compressor de ar com 5 peças | D93: SINAPI | E93: 0 | F93: 180 | G93: 1131.43 | H93: 0.1 | I93: 0 | J93: 0
A94: 6.1 | B94: Servente | C94: Ponteiro aço liso 3/4" x 10" | D94: SINAPI | E94: 0 | F94: 30 | G94: 188.57 | H94: 0.3 | I94: 0 | J94: 0
A95: 6.2 | B95: Servente | C95: Talhadeira aço chato 10" | D95: SINAPI | E95: 0 | F95: 30 | G95: 188.57 | H95: 0.3 | I95: 0 | J95: 0
A96: 6.3 | B96: Servente | C96: Marreta 1/2 kg - cabo de madeira | D96: SINAPI | E96: 0 | F96: 90 | G96: 565.71 | H96: 0.3 | I96: 0 | J96: 0
A97: 6.4 | B97: Servente | C97: Pá quadrada com cabo de madeira em Y - 71 cm | D97: SINAPI | E97: 0 | F97: 120 | G97: 754.29 | H97: 0.8 | I97: 0 | J97: 0
A98: 6.5 | B98: Servente | C98: Carrinho de Mão | D98: SINAPI | E98: 0 | F98: 180 | G98: 1131.43 | H98: 0.4 | I98: 0 | J98: 0
A99: 6.6 | B99: Servente | C99: Carrinho Plataforma em madeira 1500 x 800 mm Cap: 600kg | D99: SINAPI | E99: 0 | F99: 360 | G99: 2262.86 | H99: 0.4 | I99: 0 | J99: 0
A100: 6.7 | B100: Servente | C100: Balde 10 L | D100: SINAPI | E100: 0 | F100: 30 | G100: 188.57 | H100: 1 | I100: 0 | J100: 0
A101: 6.8 | B101: Servente | C101: Alicate Profissional 8'' | D101: SINAPI | E101: 0 | F101: 180 | G101: 1131.43 | H101: 0.2 | I101: 0 | J101: 0
A102: 6.9 | B102: Servente | C102: Serrote 20 | D102: SINAPI | E102: 0 | F102: 90 | G102: 565.71 | H102: 0.2 | I102: 0 | J102: 0
A103: 6.10 | B103: Servente | C103: Arco de serra | D103: SINAPI | E103: 0 | F103: 90 | G103: 565.71 | H103: 0.2 | I103: 0 | J103: 0
A104: 6.11 | B104: Servente | C104: Martelo de borracha preto 450 g | D104: SINAPI | E104: 0 | F104: 180 | G104: 1131.43 | H104: 0.4 | I104: 0 | J104: 0
A105: 6.12 | B105: Servente | C105: Enxada Estreita | D105: SINAPI | E105: 0 | F105: 180 | G105: 1131.43 | H105: 0.4 | I105: 0 | J105: 0
